Organisation Name,Organisation Code,Effective Date,Directorate,Service Category,Service Category URI,Supplier Name,Payment Date,Transaction Number,Net Amount,Irrecoverable VAT,Purpose_of_the_expenditure,Merchant Category
Wyre Council,http://opendatacommunities.org/doc/district-council/wyre,29/04/2023,Resources,Cultural and Related Services,132A,Blackpool Council,14/04/2023,RS147560,900,0,Blackpool events guide 2023 - double page (1pg GWF & 1pg market & theatres) + enhanced listing,Advertising - General
Wyre Council,http://opendatacommunities.org/doc/district-council/wyre,29/04/2023,People and Places,Cultural and Related Services,132A,MSG Media Limited,05/04/2023,PE148576,550,0,Full Page advert for Food Festival Wyre Theatres,Advertising - General
Wyre Council,http://opendatacommunities.org/doc/district-council/wyre,29/04/2023,Resources,Planning and Development Servs,132C,Daisy Communications LTD,25/04/2023,RS148700,50.7,0,Calls and Service Charges to 31/03/23,Advertising - General
Wyre Council,http://opendatacommunities.org/doc/district-council/wyre,29/04/2023,People and Places,Planning and Development Servs,132C,Atlas (UK) Limited,13/04/2023,PE148785,650,0,Blackpool North Station (1) Ad-Point Consumer Venue,Advertising - General
Wyre Council,http://opendatacommunities.org/doc/district-council/wyre,29/04/2023,People and Places,Cultural and Related Services,132A,EVOLUTION CONSTRUCTION GROUP LTD,05/04/2023,PE148587,12.28,0,Marine Hall: Make repairs to MH notice board lock - top of MH hill,Advertising - General
Wyre Council,http://opendatacommunities.org/doc/district-council/wyre,29/04/2023,Resources,Support Services,135B,JGP Resourcing LTD,04/04/2023,RS148505,1338.72,0,Candidate search Head of Assets,Advertising - Recruitment
Wyre Council,http://opendatacommunities.org/doc/district-council/wyre,29/04/2023,Resources,Housing General Fund,134A,RHEA PROJECTS LTD,26/04/2023,RS149059,6135,0,Payment of invoice RP- 1789. Affordable warmth support ,Affordable Warmth 2017/18
Wyre Council,http://opendatacommunities.org/doc/district-council/wyre,29/04/2023,Resources,Housing General Fund,134A,RHEA PROJECTS LTD,26/04/2023,RS149057,1264.8,0,Affordable Warmth support RP 1805,Affordable Warmth 2017/18
Wyre Council,http://opendatacommunities.org/doc/district-council/wyre,29/04/2023,People and Places,Support Services,135B,M J Wilkinson,18/04/2023,PE148871,105.6,0,Labour,Agency Staff
Wyre Council,http://opendatacommunities.org/doc/district-council/wyre,29/04/2023,People and Places,Support Services,135B,M J Wilkinson,18/04/2023,PE148872,105.6,0,Labour,Agency Staff
Wyre Council,http://opendatacommunities.org/doc/district-council/wyre,29/04/2023,Resources,Support Services,135B,G2V Recruitment Group Ltd T/A G2 Recruitment Solu,27/04/2023,RS149027,1687.85,0,Payment of invoice Period End 16/04/2023,Agency Staff
Wyre Council,http://opendatacommunities.org/doc/district-council/wyre,29/04/2023,Resources,Support Services,135B,G2V Recruitment Group Ltd T/A G2 Recruitment Solu,25/04/2023,RS148473,1625.2,0,Payment of invoice  Period End 26/03/2023,Agency Staff
Wyre Council,http://opendatacommunities.org/doc/district-council/wyre,29/04/2023,People and Places,Support Services,135B,G2V Recruitment Group Ltd T/A G2 Recruitment Solu,25/04/2023,PE148690,1688.3,0,Payment of invoice period end 02/04/23,Agency Staff
Wyre Council,http://opendatacommunities.org/doc/district-council/wyre,29/04/2023,Resources,Support Services,135B,Park Avenue Recruitment Ltd,26/04/2023,RS149087,2196.6,0,Appointment of an interim Estates Surveyor,Agency Staff
Wyre Council,http://opendatacommunities.org/doc/district-council/wyre,29/04/2023,Resources,Support Services,135B,Park Avenue Recruitment Ltd,26/04/2023,RS149084,2032.2,0,Appointment of an interim Estates Surveyor,Agency Staff
Wyre Council,http://opendatacommunities.org/doc/district-council/wyre,29/04/2023,Resources,Support Services,135B,Michael Page International Recruitment Limited,14/04/2023,RS148786,4528.57,0,Building Control Manager - staffing and expense cost,Agency Staff
Wyre Council,http://opendatacommunities.org/doc/district-council/wyre,29/04/2023,Resources,Support Services,135B,Michael Page International Recruitment Limited,14/04/2023,RS148786,2603.27,0,2 days per week for 6 months plus travel expenses. See ODR dated 29/07/22,Agency Staff
Wyre Council,http://opendatacommunities.org/doc/district-council/wyre,29/04/2023,Resources,Support Services,135B,Michael Page International Recruitment Limited,14/04/2023,RS148695,1237.8,0,Building Control Manager - staffing and expense cost,Agency Staff
Wyre Council,http://opendatacommunities.org/doc/district-council/wyre,29/04/2023,Resources,Support Services,135B,Michael Page International Recruitment Limited,26/04/2023,RS149082,2000,0,Appointment of Interim Asset Manager,Agency Staff
Wyre Council,http://opendatacommunities.org/doc/district-council/wyre,29/04/2023,Resources,Support Services,135B,Michael Page International Recruitment Limited,12/04/2023,RS148780,2000,0,Appointment of Interim Asset Manager,Agency Staff
Wyre Council,http://opendatacommunities.org/doc/district-council/wyre,29/04/2023,Resources,Support Services,135B,Daisy Communications LTD,25/04/2023,RS148700,13.87,0,Calls and Service Charges to 31/03/23,Alarm Systems and Security - Annual
Wyre Council,http://opendatacommunities.org/doc/district-council/wyre,29/04/2023,People and Places,Cultural and Related Services,132A,M D Security,12/04/2023,PE148637,528.8,0,Maintenance and monitoring of security alarm system at Memorial Park,Alarm Systems and Security - Annual
Wyre Council,http://opendatacommunities.org/doc/district-council/wyre,29/04/2023,People and Places,Cultural and Related Services,132A,M D Security,12/04/2023,PE148617,462.6,0,Maintenance and monitoring of security alarm system at Thornton Little Theatre,Alarm Systems and Security - Annual
Wyre Council,http://opendatacommunities.org/doc/district-council/wyre,29/04/2023,People and Places,Planning and Development Servs,132C,M D Security,12/04/2023,PE148638,310,0,Maintenance and monitoring of security alarm system for Fleetwood Market Studios,Alarm Systems and Security - Annual
Wyre Council,http://opendatacommunities.org/doc/district-council/wyre,29/04/2023,People and Places,Planning and Development Servs,132C,M D Security,11/04/2023,PE148573,494.4,0,Fwood Market Maintenance and monitoring of security alarm system for 1 year,Alarm Systems and Security - Annual
Wyre Council,http://opendatacommunities.org/doc/district-council/wyre,29/04/2023,People and Places,Cultural and Related Services,132A,M D Security,11/04/2023,PE148616,511.5,0,Marine Hall Maintenance and Monitoring of security alarm system for 1 year,Alarm Systems and Security - Annual
Wyre Council,http://opendatacommunities.org/doc/district-council/wyre,29/04/2023,People and Places,Cultural and Related Services,132A,M D Security,12/04/2023,PE148618,449.76,0,Maintenance and monitoring of alarm system for River Side Rangers Containers,Alarm Systems and Security - Annual
Wyre Council,http://opendatacommunities.org/doc/district-council/wyre,29/04/2023,People and Places,Cultural and Related Services,132A,M D Security,13/04/2023,PE148761,500,0,Mount Pavillion (Lodge cafe and arts and disables WC) Maintenance and monitoring of security alarm system for 1 year maintenance of fire alarm,Alarm Systems and Security - Annual
Wyre Council,http://opendatacommunities.org/doc/district-council/wyre,29/04/2023,People and Places,Cultural and Related Services,132A,M D Security,12/04/2023,PE148658,428.36,0,Maintenance and monitoring for New Wave Beach Patrol,Alarm Systems and Security - Annual
Wyre Council,http://opendatacommunities.org/doc/district-council/wyre,29/04/2023,People and Places,Cultural and Related Services,132A,M D Security,12/04/2023,PE148657,428.36,0,Maintenance and monitoring of security alarm at New Wave Cafe,Alarm Systems and Security - Annual
Wyre Council,http://opendatacommunities.org/doc/district-council/wyre,29/04/2023,People and Places,Cultural and Related Services,132A,M D Security,05/04/2023,PE148614,140,0,Rossal Point: Maintenance of fire alarm system for 1 year,Alarm Systems and Security - Annual
Wyre Council,http://opendatacommunities.org/doc/district-council/wyre,29/04/2023,People and Places,Cultural and Related Services,132A,M D Security,05/04/2023,PE148613,462.6,0,Rossal Point: Maintenance and monitoring of security alarm system for 1 year,Alarm Systems and Security - Annual
Wyre Council,http://opendatacommunities.org/doc/district-council/wyre,29/04/2023,People and Places,Environmental Services,132B,M D Security,05/04/2023,PE148619,472.6,0,Chatwsorth Rd Depot: Maintenance and monitoring of security alarm system for 1 year,Alarm Systems and Security - Annual
Wyre Council,http://opendatacommunities.org/doc/district-council/wyre,29/04/2023,People and Places,Planning and Development Servs,132C,M D Security,12/04/2023,PE148639,562.6,0,Maintenance and monitoring of security alarm system at copse road depot,Alarm Systems and Security - Annual
Wyre Council,http://opendatacommunities.org/doc/district-council/wyre,29/04/2023,People and Places,Support Services,135B,M D Security,13/04/2023,PE148762,255,0,Civic Centre 1 x repair fault to external sounder. 1 z supply 5 x 7ah batteries. Labour,Alarm Systems and Security - Responsive
Wyre Council,http://opendatacommunities.org/doc/district-council/wyre,29/04/2023,People and Places,Planning and Development Servs,132C,M D Security,19/04/2023,PE148898,125.5,0,Call out to false alarms at copse road,Alarm Systems and Security - Responsive
Wyre Council,http://opendatacommunities.org/doc/district-council/wyre,29/04/2023,People and Places,Planning and Development Servs,132C,QUARTIX LTD,11/04/2023,PE148512,125.5,0,Call out of false alarms on 25/03/23 deactivate zone 2014 (street cl;eaner roller 2) no access return visit needed. Revist on 29/03/2023. Replaced shutter contact (zone 2014 street cleaners shutter 2) reset sone back to intruderr tested all ok parts.,Alarm Systems and Security - Responsive
Wyre Council,http://opendatacommunities.org/doc/district-council/wyre,29/04/2023,People and Places,Planning and Development Servs,132C,QUARTIX LTD,18/04/2023,PE148512,-125.5,0,Call out of false alarms on 25/03/23 deactivate zone 2014 (street cl;eaner roller 2) no access return visit needed. Revist on 29/03/2023. Replaced shutter contact (zone 2014 street cleaners shutter 2) reset sone back to intruderr tested all ok parts.,Alarm Systems and Security - Responsive
Wyre Council,http://opendatacommunities.org/doc/district-council/wyre,29/04/2023,Resources,Cultural and Related Services,132A,Preston City Council,04/04/2023,RS148516,27.32,0,2 x Window vinyls for Garstang Library - 1200x780mm,Amenity and Information Signs
Wyre Council,http://opendatacommunities.org/doc/district-council/wyre,29/04/2023,Resources,Cultural and Related Services,132A,Amazon Business,25/04/2023,RS149019,10.99,0,"Infitix pack of 12 bungee cords - 4 sizes, 3 of each size, 12 bungee cords in totalFor securing of vinyl banners",Amenity and Information Signs
Wyre Council,http://opendatacommunities.org/doc/district-council/wyre,29/04/2023,Finance,Support Services,135B,,25/04/2023,WPST00103830,4920,0,Total Apprenticeship Levy,Apprenticeship Levy
Wyre Council,http://opendatacommunities.org/doc/district-council/wyre,29/04/2023,Finance,Corporate and Democratic Core,131A,NATWEST BANK,21/04/2023,WPST00103520,2750.42,0,Worldpay Invoice 250683410,Bank Charges
Wyre Council,http://opendatacommunities.org/doc/district-council/wyre,29/04/2023,Finance,Corporate and Democratic Core,131A,NATWEST BANK,21/04/2023,WPST00103602,2750.42,0,Worldpay Invoice 250683410,Bank Charges
Wyre Council,http://opendatacommunities.org/doc/district-council/wyre,29/04/2023,Finance,Corporate and Democratic Core,131A,NATWEST BANK,21/04/2023,WPST00103604,3353.97,0,Worldpay Invoice 250605307,Bank Charges
Wyre Council,http://opendatacommunities.org/doc/district-council/wyre,29/04/2023,Finance,Corporate and Democratic Core,131A,NATWEST BANK,21/04/2023,WPST00103522,3353.97,0,Worldpay Invoice 250605307,Bank Charges
Wyre Council,http://opendatacommunities.org/doc/district-council/wyre,29/04/2023,Finance,Corporate and Democratic Core,131A,NATWEST BANK,04/04/2023,WPST00101485,827.16,0,03MAR GRP 99795000,Bank Charges
Wyre Council,http://opendatacommunities.org/doc/district-council/wyre,29/04/2023,People and Places,Environmental Services,132B,N Power LTD,12/04/2023,PE148683,56.27,0,Unmetered CCTV electricity supply 1-31 March 2023,CCTV Running Costs
Wyre Council,http://opendatacommunities.org/doc/district-council/wyre,29/04/2023,People and Places,Environmental Services,132B,N Power LTD,12/04/2023,PE148683,5.32,0,Climate Levy,CCTV Running Costs
Wyre Council,http://opendatacommunities.org/doc/district-council/wyre,29/04/2023,People and Places,Environmental Services,132B,N Power LTD,12/04/2023,PE148683,79.16,0,Unmetered CCTV electricity supply 1-31 March 2023,CCTV Running Costs
Wyre Council,http://opendatacommunities.org/doc/district-council/wyre,29/04/2023,People and Places,Environmental Services,132B,N Power LTD,12/04/2023,PE148683,9.38,0,Unmetered CCTV electricity supply 1-31 March 2023,CCTV Running Costs
Wyre Council,http://opendatacommunities.org/doc/district-council/wyre,29/04/2023,Resources,Support Services,135B,Konica Minolta Business Solutions UK LTD,12/04/2023,RS148233,34.65,0,1840141295 - WECP,Central Printer/Copier Expenses
Wyre Council,http://opendatacommunities.org/doc/district-council/wyre,29/04/2023,People and Places,Planning and Development Servs,132C,Key Engineering & Hygiene Supplies LTD,05/04/2023,PE148572,214.52,0,Cleaning products (already phoned through,Cleaning Materials
Wyre Council,http://opendatacommunities.org/doc/district-council/wyre,29/04/2023,People and Places,Cultural and Related Services,132A,Key Engineering & Hygiene Supplies LTD,26/04/2023,PE149053,82.98,0,6 no Blue towel rolls @11.88,Cleaning Materials
Wyre Council,http://opendatacommunities.org/doc/district-council/wyre,29/04/2023,People and Places,Cultural and Related Services,132A,Key Engineering & Hygiene Supplies LTD,26/04/2023,PE149053,35.5,0,GREEN 1 PLY INTER-FOLD HAND TOWEL 250L X 190W 3600 SHEETS,Cleaning Materials
Wyre Council,http://opendatacommunities.org/doc/district-council/wyre,29/04/2023,People and Places,Planning and Development Servs,132C,Key Engineering & Hygiene Supplies LTD,14/04/2023,PE148783,26.76,0,Box - Cranberry Air Freshener,Cleaning Materials
Wyre Council,http://opendatacommunities.org/doc/district-council/wyre,29/04/2023,People and Places,Planning and Development Servs,132C,Key Engineering & Hygiene Supplies LTD,14/04/2023,PE148783,7.3,0,BLUE VINYL DISPOSB GLOVES POWDERED MEDIUM PER100 BLUE,Cleaning Materials
Wyre Council,http://opendatacommunities.org/doc/district-council/wyre,29/04/2023,People and Places,Planning and Development Servs,132C,Key Engineering & Hygiene Supplies LTD,14/04/2023,PE148783,14.28,0,Thickened Bleach 5 ltr,Cleaning Materials
Wyre Council,http://opendatacommunities.org/doc/district-council/wyre,29/04/2023,People and Places,Planning and Development Servs,132C,Key Engineering & Hygiene Supplies LTD,14/04/2023,PE148783,17.88,0,FLORATILE GENERAL PURPOSE  CLEANER 5 LTR,Cleaning Materials
Wyre Council,http://opendatacommunities.org/doc/district-council/wyre,29/04/2023,People and Places,Planning and Development Servs,132C,Key Engineering & Hygiene Supplies LTD,14/04/2023,PE148783,8.4,0,EAUFRESH NON ACIDIC APPLE TOILET CLEANER 1 LTR,Cleaning Materials
Wyre Council,http://opendatacommunities.org/doc/district-council/wyre,29/04/2023,People and Places,Planning and Development Servs,132C,Key Engineering & Hygiene Supplies LTD,14/04/2023,PE148783,22.56,0,KEYPINE PINE DISINFECTANT 5 LITRE,Cleaning Materials
Wyre Council,http://opendatacommunities.org/doc/district-council/wyre,29/04/2023,People and Places,Cultural and Related Services,132A,Lyreco UK LTD,05/04/2023,PE148625,52.76,0,3349389 - TORK SMARTONE T8 WHITE 2 PLY TOILET ROLL 207M - PACK OF 6,Cleaning Materials
Wyre Council,http://opendatacommunities.org/doc/district-council/wyre,29/04/2023,People and Places,Cultural and Related Services,132A,Lyreco UK LTD,05/04/2023,PE148625,105.52,0,3349389 - Tork Smartone T8 White 2 Ply Toilet Roll 207m - pack of 6,Cleaning Materials
Wyre Council,http://opendatacommunities.org/doc/district-council/wyre,29/04/2023,People and Places,Support Services,135B,Arthur J Gallagher Insurance Brokers Ltd,24/04/2023,PE148959,4000,0,Broker Client fee,Commission Fees Etc.
Wyre Council,http://opendatacommunities.org/doc/district-council/wyre,29/04/2023,Resources,Support Services,135B,Insight Direct (UK) Limited,25/04/2023,RS148855,-890.14,0,Epson document scanner - returned,Comp Hardware Purchases
Wyre Council,http://opendatacommunities.org/doc/district-council/wyre,29/04/2023,Resources,Support Services,135B,Amazon Business,12/04/2023,RS148718,691.98,0,Samsung - Galaxy A13-6.6`` Smartphone - FHD+ - 4/64GB - Black.,Comp Hardware Purchases
Wyre Council,http://opendatacommunities.org/doc/district-council/wyre,29/04/2023,Resources,Support Services,135B,Amazon Business,12/04/2023,RS148681,115.6,0,"Logitech M90 Wired USB Mouse, 1000 DPI Optical Tracking, Ambidextrous PC / Mac / Laptop - Black.",Comp Hardware Purchases
Wyre Council,http://opendatacommunities.org/doc/district-council/wyre,29/04/2023,Resources,Support Services,135B,Amazon Business,21/04/2023,RS148905,33.16,0,"YINGCOLOR LC3237 Ink Cartridges for Brother LC-3237 LC3239XL 3239XL Ink Cartridges for Brother HL-J6000DW HL-J6100DW MFC-J5945DW MFC-J6945DW MFC-J6947DW (1 Black 1 Cyan 1 Magenta 1 Yellow, 4 Pack).",Comp Hardware Purchases
Wyre Council,http://opendatacommunities.org/doc/district-council/wyre,29/04/2023,Resources,Support Services,135B,Amazon Business,28/04/2023,RS149158,703,0,"TECHGEAR UTILITY Case fits Apple iPad 10 2022 [10th Generation] 10.9`` Tough Rugged HEAVY DUTY Armour Shockproof Case 360 Degree Rotating Stand, Hand and Shoulder Strap Case - Black.",Comp Hardware Purchases
Wyre Council,http://opendatacommunities.org/doc/district-council/wyre,29/04/2023,Resources,Support Services,135B,Amazon Business,21/04/2023,RS148905,17.49,0,Spigen Tough Armor Case Compatible with Samsung Galaxy A54 5G - Black.,Computer Stationery and Consumables
Wyre Council,http://opendatacommunities.org/doc/district-council/wyre,29/04/2023,People and Places,Cultural and Related Services,132A,Knight Kavanagh & Page,26/04/2023,PE149105,2695,0,"Utilities consultancy support for Wyre Council/Fylde Coast YMCA, supporting the 5 Leisure Centres and Swimming Pools to improve their energy efficiency",Consultants Fees
Wyre Council,http://opendatacommunities.org/doc/district-council/wyre,29/04/2023,People and Places,Planning and Development Servs,132C,AFFORDABILITY RESEARCH COMMUNITIES (ARC 4),25/04/2023,PE149026,3865.57,0,"Fylde Coast Gypsy, Traveller and Travelling Showpeople Study",Consultants Fees
Wyre Council,http://opendatacommunities.org/doc/district-council/wyre,29/04/2023,People and Places,Planning and Development Servs,132C,Keppie Massie,24/04/2023,PE148971,1722.5,0,"Further Viability assessment on planning app:  Land to the South of Copp Lane, Great Eccleston 21/01394/FUL",Consultants Fees
Wyre Council,http://opendatacommunities.org/doc/district-council/wyre,29/04/2023,People and Places,Planning and Development Servs,132C,CASSIDY AND ASHTON GROUP LTD,26/04/2023,PE149010,-750,0,offset inv PE148910,Consultants Fees
Wyre Council,http://opendatacommunities.org/doc/district-council/wyre,29/04/2023,Resources,Support Services,135B,PSTAX Consulting Limited,11/04/2023,RS148712,2850,0,Partial Exemption Check - Full Review(CRM:0015221),Consultants Fees
Wyre Council,http://opendatacommunities.org/doc/district-council/wyre,29/04/2023,People and Places,Environmental Services,132B,LK Consult Limited,24/04/2023,PE148968,900,0,"The undertaking & reporting of a Phase I Preliminary Risk Assessment for the land known as King Georges Memorial, Playing Field, Fleetwood, Lancashire in accordance with quotation reference: LKC 22 1393 Quote R0 dated 25th May 2022. - 900 + VAT",Consultants Fees
Wyre Council,http://opendatacommunities.org/doc/district-council/wyre,29/04/2023,People and Places,Planning and Development Servs,132C,AG & P Jackson,17/04/2023,PE148859,410,0,"Alan Jackson - Agricultural Consultee Fee for planning application 23/00223/FULBramblemoore, 1 Leach Villas, Preston Road, Inskip-with-Sowerby, PR4 0TT",Consultants Fees
Wyre Council,http://opendatacommunities.org/doc/district-council/wyre,29/04/2023,People and Places,Planning and Development Servs,132C,AG & P Jackson,14/04/2023,PE148834,410,0,Alan Jackson - Agricultural Consultee Fee for planning application 23/00168/FUL Land Adjacent To New House Farm Lancaster Road,Consultants Fees
Wyre Council,http://opendatacommunities.org/doc/district-council/wyre,29/04/2023,People and Places,"Cultural, Environ and Planning",137B,Halcrow Group LTD,11/04/2023,PE148678,2880.08,0,Additional works to provide information to support the planning and Marine License applications requested by the statutory consultees.Approved by Carl Green,Consultants Fees (New CCR)
Wyre Council,http://opendatacommunities.org/doc/district-council/wyre,29/04/2023,Resources,"Cultural, Environ and Planning",137B,Preston City Council,04/04/2023,RS148516,203.8,0,4 x Our Future Coast pull up banners (50.95 per unit) (saltmarsh/dunes/communities/generic),Consultants Fees (New CCR)
Wyre Council,http://opendatacommunities.org/doc/district-council/wyre,29/04/2023,People and Places,"Cultural, Environ and Planning",137B,The Lancashire Wildlife Trust Ltd,25/04/2023,PE148899,4600,0,Part 3 of 3 payments 2022/23 40% of year 1 of the ECO-CoBS Project,Consultants Fees (New CCR)
Wyre Council,http://opendatacommunities.org/doc/district-council/wyre,29/04/2023,People and Places,"Cultural, Environ and Planning",137B,The Lancashire Wildlife Trust Ltd,25/04/2023,PE148899,275.83,0,Part 1 of 3 payments 2022/23 40% of year 1 of the ECO-CoBS Project costs,Consultants Fees (New CCR)
Wyre Council,http://opendatacommunities.org/doc/district-council/wyre,29/04/2023,People and Places,"Cultural, Environ and Planning",137B,MARLAN MARITIME TECHNOLOGIES LTD,12/04/2023,PE148782,13500,0,Works to provide synoptic radar monitoring at sites across NW for Eco-CoBS project.Deployment at first site Fleetwood 16 Dec 2021.Contract until 31 March 2027.,Consultants Fees (New CCR)
Wyre Council,http://opendatacommunities.org/doc/district-council/wyre,29/04/2023,People and Places,"Cultural, Environ and Planning",137B,Susannah Bleakley Consulting,14/04/2023,PE148840,9707.56,0,ECO-CoBS Project,Consultants Fees (New CCR)
Wyre Council,http://opendatacommunities.org/doc/district-council/wyre,29/04/2023,People and Places,"Cultural, Environ and Planning",137B,Robin Zahler Design + Photography,04/04/2023,PE148546,946.8,0,Photographer for Our Future Coast Conference  The Grange Hotel,Consultants Fees (New CCR)
Wyre Council,http://opendatacommunities.org/doc/district-council/wyre,29/04/2023,People and Places,Support Services,135B,Blackpool Skip Hire LTD,19/04/2023,PE148895,120,0,Empty of skips for Cemetries in Wyre,Containers Skips and Hire
Wyre Council,http://opendatacommunities.org/doc/district-council/wyre,29/04/2023,People and Places,Support Services,135B,Blackpool Skip Hire LTD,06/04/2023,PE148568,135,0,Skip Empty at Preesall Cemetery,Containers Skips and Hire
Wyre Council,http://opendatacommunities.org/doc/district-council/wyre,29/04/2023,Resources,"Cultural, Environ and Planning",137B,DANFO (UK) LTD,13/04/2023,RS148274,43631,0,To deliver Changing Places Facility Fleetwood scheme,Contract (New CCR)
Wyre Council,http://opendatacommunities.org/doc/district-council/wyre,29/04/2023,People and Places,"Cultural, Environ and Planning",137B,Vivid Resourcing Ltd,05/04/2023,PE148474,7920,0,Fleetwood Market Project - Steve Solsby,Contract (New CCR)
Wyre Council,http://opendatacommunities.org/doc/district-council/wyre,29/04/2023,People and Places,"Cultural, Environ and Planning",137B,F PARKINSON LTD,13/04/2023,PE148806,16886.28,0,Fleetwood Market Restoration & Refurbishment Works - Order PEO0025328 - HSHAZ - Valuation 4C,Contract (New CCR)
Wyre Council,http://opendatacommunities.org/doc/district-council/wyre,29/04/2023,People and Places,"Cultural, Environ and Planning",137B,F PARKINSON LTD,13/04/2023,PE148805,99793.57,0,Fleetwood Market Restoration & Refurbishment Works - Order PEO0025328 - HSHAZ - Valuation 4B,Contract (New CCR)
Wyre Council,http://opendatacommunities.org/doc/district-council/wyre,29/04/2023,People and Places,"Cultural, Environ and Planning",137B,F PARKINSON LTD,12/04/2023,PE148776,4511.55,0,"Fleetwood Market  Adelaide Street, Fleetwood, Lancashire FY7 6AB.  Refurbishment Works.  UKSPF funded works carried out under a JCT Intermediate Building Contract with Contractor�s Design (ICD) 2016",Contract (New CCR)
Wyre Council,http://opendatacommunities.org/doc/district-council/wyre,29/04/2023,People and Places,"Cultural, Environ and Planning",137B,F PARKINSON LTD,12/04/2023,PE148775,220474.32,0,"Appointment of Principal Contractor for refurbishment works via a JCT Intermediate Building Contract with Contractor�s Design (ICD) 2016 at Fleetwood Market, Adelaide Street, Fleetwood, Lancashire FY7 6AB.",Contract (New CCR)
Wyre Council,http://opendatacommunities.org/doc/district-council/wyre,29/04/2023,People and Places,"Cultural, Environ and Planning",137B,F PARKINSON LTD,12/04/2023,PE148778,67206.21,0,Fleetwood Market.  Annex Roof Replacement (Materials Element Only),Contract (New CCR)
Wyre Council,http://opendatacommunities.org/doc/district-council/wyre,29/04/2023,People and Places,"Cultural, Environ and Planning",137B,Balfour Beatty Civil Engineering Ltd,26/04/2023,PE149062,608584.19,0,"FAO Chloe SumnerBalfour Beatty Civil Engineering LtdChaddock Lane WorsleyManchesterM28 1XYTel, 0161 638 0800 Chloe.Sumner@balfourbeatty.com Wyre Beach Management Scheme Phase 1 � Construction Works.Cost 2,687,156.94",Contract (New CCR)
Wyre Council,http://opendatacommunities.org/doc/district-council/wyre,29/04/2023,People and Places,"Cultural, Environ and Planning",137B,Balfour Beatty Civil Engineering Ltd,13/04/2023,PE148698,730123.75,0,"FAO Chloe Sumner Balfour Beatty Civil Engineering Ltd Chaddock Lane  Worsley Manchester M28 1XY  Tel, 0161 638 0800 Chloe.Sumner@balfourbeatty.com   Wyre Beach Management Scheme Phase 1 � Construction Works.  Cost 2,687,156.94",Contract (New CCR)
Wyre Council,http://opendatacommunities.org/doc/district-council/wyre,29/04/2023,Resources,Corporate and Democratic Core,131A,North West Employers,25/04/2023,RS149013,4293.66,0,Full Member subscription Apr 23 to Mar 24,Corporate and Professional Subscriptions
Wyre Council,http://opendatacommunities.org/doc/district-council/wyre,29/04/2023,People and Places,Environmental Services,132B,Ricardo AEA LTD,05/04/2023,PE148570,1376,0,EMAQ Subscription for 2023/24 - Tier 2 - 12 Credits + 2 free.  Early Bird Offer - Purchase Order,Corporate and Professional Subscriptions
Wyre Council,http://opendatacommunities.org/doc/district-council/wyre,29/04/2023,Resources,Support Services,135B,Apse,28/04/2023,RS149169,2826.23,0,"To delivery of training: Working Adjacent to Highways and Verges1 day 17th April 2023  8.30 - 4.30 at our premises, Civic Centre, Breck Road, Poulton le Fylde FY6 7PUin the Members Lounge for up to 20 delegates2676 + 150 travel expenses.",Corporate Training - Health and Safety
Wyre Council,http://opendatacommunities.org/doc/district-council/wyre,29/04/2023,Finance,Current Assets,130B,,18/04/2023,WPST00103129,16391.37,0,C/tax refund 14/04/23,Council Tax Refunds
Wyre Council,http://opendatacommunities.org/doc/district-council/wyre,29/04/2023,Finance,Current Assets,130B,,25/04/2023,WPST00103928,14289.11,0,Ctax Refund,Council Tax Refunds
Wyre Council,http://opendatacommunities.org/doc/district-council/wyre,29/04/2023,Finance,Current Assets,130B,,12/04/2023,WPST00102282,32550.46,0,Ctax refund,Council Tax Refunds
Wyre Council,http://opendatacommunities.org/doc/district-council/wyre,29/04/2023,People and Places,Cultural and Related Services,132A,Fools Paradise LTD,19/04/2023,PE148882,391,0,"For the hire of Bread and Butter Theatre Company`s Flock for the event Walk This Way, in Garstang Town Centre on Saturday 15th April 11am till 4pm.Fee 940",Creative People and Places Contribution
Wyre Council,http://opendatacommunities.org/doc/district-council/wyre,29/04/2023,People and Places,Environmental Services,132B,Amazon Business,19/04/2023,PE148832,18.12,0,Wing Mirror for Tractor,Daywork Materials (Excl.Tyres)
Wyre Council,http://opendatacommunities.org/doc/district-council/wyre,29/04/2023,People and Places,Environmental Services,132B,Amazon Business,19/04/2023,PE148832,18.12,0,Wing Mirror for Tractor,Daywork Materials (Excl.Tyres)
Wyre Council,http://opendatacommunities.org/doc/district-council/wyre,29/04/2023,People and Places,Environmental Services,132B,Amazon Business,19/04/2023,PE148832,18.12,0,Wing Mirror for Tractor,Daywork Materials (Excl.Tyres)
Wyre Council,http://opendatacommunities.org/doc/district-council/wyre,29/04/2023,Resources,Support Services,135B,THE NETWORKING PEOPLE (TNP) LTD,25/04/2023,RS149016,8575.92,0,switch controller,Disaster Recovery
Wyre Council,http://opendatacommunities.org/doc/district-council/wyre,29/04/2023,Resources,Support Services,135B,THE NETWORKING PEOPLE (TNP) LTD,25/04/2023,RS149016,6003.14,0,Premium Support,Disaster Recovery
Wyre Council,http://opendatacommunities.org/doc/district-council/wyre,29/04/2023,People and Places,Public Transport,133G,M J Wilkinson,17/04/2023,PE148866,-3179,0,"*** Confirmation Order *** Provide long reach excavator, dumpster and labour to undertake dredging works at Knott End Slipway for Thurs 16 - Sat 18 March, Mon 19 March, Mon 27 - Tues 28 Mar. Include transport to/from slipway",Dredging
Wyre Council,http://opendatacommunities.org/doc/district-council/wyre,29/04/2023,People and Places,Public Transport,133G,M J Wilkinson,17/04/2023,PE148866,3179,0,"*** Confirmation Order *** Provide long reach excavator, dumpster and labour to undertake dredging works at Knott End Slipway for Thurs 16 - Sat 18 March, Mon 19 March, Mon 27 - Tues 28 Mar. Include transport to/from slipway",Dredging
Wyre Council,http://opendatacommunities.org/doc/district-council/wyre,29/04/2023,People and Places,Public Transport,133G,M J Wilkinson,18/04/2023,PE148877,3179,0,"*** Confirmation Order *** Provide long reach excavator, dumpster and labour to undertake dredging works at Knott End Slipway for Thurs 16 - Sat 18 March, Mon 19 March, Mon 27 - Tues 28 Mar. Include transport to/from slipway",Dredging
Wyre Council,http://opendatacommunities.org/doc/district-council/wyre,29/04/2023,People and Places,Public Transport,133G,M J Wilkinson,18/04/2023,PE148867,2488,0,"*** Confirmation Order *** Provide long reach excavator, dumpster and labour to undertake dredging works at Knott End Slipway for Thurs 16 - Sat 18 March, Mon 19 March, Mon 27 - Tues 28 Mar. Include transport to/from slipway",Dredging
Wyre Council,http://opendatacommunities.org/doc/district-council/wyre,29/04/2023,People and Places,Environmental Services,132B,N Power LTD,11/04/2023,PE148684,231.42,0,Electricity Charges for the period 01/03/23-31/03/23,Electricity
Wyre Council,http://opendatacommunities.org/doc/district-council/wyre,29/04/2023,People and Places,Environmental Services,132B,N Power LTD,12/04/2023,PE148685,0.35,0,Electricity charges for the period 01/03/23-31/03/23,Electricity
Wyre Council,http://opendatacommunities.org/doc/district-council/wyre,29/04/2023,People and Places,Parking Services,133F,N Power LTD,12/04/2023,PE148685,1.91,0,Electricity charges for the period 01/03/23-31/03/23,Electricity
Wyre Council,http://opendatacommunities.org/doc/district-council/wyre,29/04/2023,People and Places,Parking Services,133F,N Power LTD,12/04/2023,PE148685,0.08,0,Electricity charges for the period 01/03/23-31/03/23,Electricity
Wyre Council,http://opendatacommunities.org/doc/district-council/wyre,29/04/2023,People and Places,Parking Services,133F,N Power LTD,12/04/2023,PE148686,315.3,0,Electricity chaarges for the period 01/03/23-31/03/23,Electricity
Wyre Council,http://opendatacommunities.org/doc/district-council/wyre,29/04/2023,People and Places,Parking Services,133F,N Power LTD,11/04/2023,PE148684,1297.86,0,Electricity Charges for the period 01/03/23-31/03/23,Electricity
Wyre Council,http://opendatacommunities.org/doc/district-council/wyre,29/04/2023,People and Places,Planning and Development Servs,132C,Corona Energy Retail 4 Limited,19/04/2023,PE148825,433.3,0,1640000184606 Council Depot Copse Road Fleetwood FY76RP01/03/23 to 31/03/23,Electricity
Wyre Council,http://opendatacommunities.org/doc/district-council/wyre,29/04/2023,People and Places,Cultural and Related Services,132A,Corona Energy Retail 4 Limited,19/04/2023,PE148826,60.74,0,1640000233705 Coastal Observation Point Rossal Point Fleetwood FY78AF01/03/23 to 31/03/23,Electricity
Wyre Council,http://opendatacommunities.org/doc/district-council/wyre,29/04/2023,People and Places,Environmental Services,132B,Corona Energy Retail 4 Limited,25/04/2023,PE148997,264.47,0,"1610004742413 Stanah Pumphouse  11, River Road, Thornton Cleveleys, FY5 5LR 01/03/23 to 31/03/23 (E)",Electricity
Wyre Council,http://opendatacommunities.org/doc/district-council/wyre,29/04/2023,People and Places,Environmental Services,132B,Corona Energy Retail 4 Limited,25/04/2023,PE148987,250.26,0,"1610004742413 Stanah Pumphouse  11, River Road, Thornton Cleveleys, FY5 5LR 01/02/23 to 28/02/23 (E)",Electricity
Wyre Council,http://opendatacommunities.org/doc/district-council/wyre,29/04/2023,People and Places,Environmental Services,132B,Corona Energy Retail 4 Limited,25/04/2023,PE148984,281.22,0,"1610004742413 Stanah Pumphouse  11, River Road, Thornton Cleveleys, FY5 5LR 01/01/23 to 31/01/23 (E)",Electricity
Wyre Council,http://opendatacommunities.org/doc/district-council/wyre,29/04/2023,People and Places,Cultural and Related Services,132A,Corona Energy Retail 4 Limited,19/04/2023,PE148822,8257.52,0,1600000162875 Marine Hall The Esplanade Fleetwood FY76HF01/03/23 to 31/03/23,Electricity
Wyre Council,http://opendatacommunities.org/doc/district-council/wyre,29/04/2023,People and Places,Cultural and Related Services,132A,Corona Energy Retail 4 Limited,25/04/2023,PE148998,1242.92,0,"1610004773866 801, Fleetwood  Road North, Thornton Cleveleys, FY5 4AD 01/03/23 to 31/03/23 (E)",Electricity
Wyre Council,http://opendatacommunities.org/doc/district-council/wyre,29/04/2023,People and Places,Cultural and Related Services,132A,Corona Energy Retail 4 Limited,25/04/2023,PE148990,150.59,0,"1610004863632 _G, Fleetwood, FY7  6QD 01/03/23 to 31/03/23 (E)",Electricity
Wyre Council,http://opendatacommunities.org/doc/district-council/wyre,29/04/2023,People and Places,Central Services to the Public,131C,Corona Energy Retail 4 Limited,25/04/2023,PE148992,1848.16,0,"1610004322012 WRVS, Teanlowe Day  Centre, Queensway, Poulton Le Fylde, FY6 7ST 01/03/23 to 31/03/23 (R)",Electricity
Wyre Council,http://opendatacommunities.org/doc/district-council/wyre,29/04/2023,People and Places,Cultural and Related Services,132A,Corona Energy Retail 4 Limited,19/04/2023,PE148824,228.04,0,1630000670291 Promenade Cafe North Promenade Thornton-Cleveleys FY51DB01/03/23 to 31/03/23,Electricity
Wyre Council,http://opendatacommunities.org/doc/district-council/wyre,29/04/2023,People and Places,Planning and Development Servs,132C,Corona Energy Retail 4 Limited,19/04/2023,PE148823,1579.4,0,1620000784666 Main Hall Adelaide Street Fleetwood FY76AB01/03/23 to 31/03/23,Electricity
Wyre Council,http://opendatacommunities.org/doc/district-council/wyre,29/04/2023,People and Places,Support Services,135B,Corona Energy Retail 4 Limited,19/04/2023,PE148821,13063.07,0,1600000162857 Civic Centre Breck Road Blackpool FY39DT 01/03/23 to 31/03/23,Electricity
Wyre Council,http://opendatacommunities.org/doc/district-council/wyre,29/04/2023,People and Places,Environmental Services,132B,Corona Energy Retail 4 Limited,25/04/2023,PE148985,909.52,0,"1610004347328 East Cemetry,  Garstang Road East, Poulton Le Fylde, FY6 7SN 01/03/23 to 31/03/23 (E)",Electricity
Wyre Council,http://opendatacommunities.org/doc/district-council/wyre,29/04/2023,People and Places,Cultural and Related Services,132A,Corona Energy Retail 4 Limited,25/04/2023,PE148980,45.92,0,"1610004305434 _G, Blackpool Old  Road, Poulton Le Fylde, FY6 7RH 01/03/23 to 31/03/23 (E)",Electricity
Wyre Council,http://opendatacommunities.org/doc/district-council/wyre,29/04/2023,People and Places,Cultural and Related Services,132A,Corona Energy Retail 4 Limited,25/04/2023,PE148982,28.39,0,"1610004305443 _G, Blackpool Old  Road, Poulton Le Fylde, FY6 7RH 01/03/23 to 31/03/23 (E)",Electricity
Wyre Council,http://opendatacommunities.org/doc/district-council/wyre,29/04/2023,People and Places,Cultural and Related Services,132A,Corona Energy Retail 4 Limited,25/04/2023,PE148981,55.04,0,"1610004318841 Jean Stansfield  Bowling Green, Vicarage Rd, Poulton Le Fylde, FY6 7BE 01/03/23 to 31/03/23  (E)",Electricity
Wyre Council,http://opendatacommunities.org/doc/district-council/wyre,29/04/2023,People and Places,Cultural and Related Services,132A,Corona Energy Retail 4 Limited,25/04/2023,PE148986,55.77,0,"1610004724089 Pavilion, North  Drive, Thornton Cleveleys, FY5 2QD 01/03/23 to 31/03/23 (R)",Electricity
Wyre Council,http://opendatacommunities.org/doc/district-council/wyre,29/04/2023,People and Places,Cultural and Related Services,132A,Corona Energy Retail 4 Limited,25/04/2023,PE148908,941.47,0,"1650000008330 The Mount Pavilion, Mount Rd, Fleetwood, FY7 6EZ 01/03/23 to 31/03/23 R",Electricity
Wyre Council,http://opendatacommunities.org/doc/district-council/wyre,29/04/2023,People and Places,Cultural and Related Services,132A,Corona Energy Retail 4 Limited,25/04/2023,PE148909,1427.54,0,"1640000960322 The Mount Lodge, The Esplanade, Fleetwood, FY7 6EZ 01/03/23 to 31/03/23 R",Electricity
Wyre Council,http://opendatacommunities.org/doc/district-council/wyre,29/04/2023,People and Places,Cultural and Related Services,132A,Corona Energy Retail 4 Limited,25/04/2023,PE148983,164.91,0,"1610004742431 Visitors Centre,  River Road, Thornton Cleveleys, FY5 5LR 01/03/23 to 31/03/23 (E)",Electricity
Wyre Council,http://opendatacommunities.org/doc/district-council/wyre,29/04/2023,People and Places,Cultural and Related Services,132A,Corona Energy Retail 4 Limited,25/04/2023,PE148996,1153.89,0,"1610004742399 River Road,  Thornton Cleveleys, FY5 5LR 01/03/23 to 31/03/23 (R)",Electricity
Wyre Council,http://opendatacommunities.org/doc/district-council/wyre,29/04/2023,People and Places,Cultural and Related Services,132A,Corona Energy Retail 4 Limited,25/04/2023,PE148994,8.14,0,"1610004742404 River Road,  Thornton Cleveleys, FY5 5LR 01/03/23 to 31/03/23 (R)",Electricity
Wyre Council,http://opendatacommunities.org/doc/district-council/wyre,29/04/2023,People and Places,Environmental Services,132B,Corona Energy Retail 4 Limited,25/04/2023,PE148993,21.53,0,"1610004421200 801, Thornton  Cleveleys, FY5 5NH 01/03/23 to 31/03/23 (E)",Electricity
Wyre Council,http://opendatacommunities.org/doc/district-council/wyre,29/04/2023,People and Places,Environmental Services,132B,Corona Energy Retail 4 Limited,25/04/2023,PE148995,24.42,0,"1610004421042 801, Thornton  Cleveleys, FY5 5NS 01/03/23 to 31/03/23 (E)",Electricity
Wyre Council,http://opendatacommunities.org/doc/district-council/wyre,29/04/2023,People and Places,Environmental Services,132B,Corona Energy Retail 4 Limited,19/04/2023,PE148820,24.68,0,1600000023675 Royles Brook Pumping Station Off Victoria Road East Thornton FY55OX 01/03/23 to 31/03/23,Electricity
Wyre Council,http://opendatacommunities.org/doc/district-council/wyre,29/04/2023,People and Places,Environmental Services,132B,Corona Energy Retail 4 Limited,25/04/2023,PE148989,715.3,0,"1610004665168 PC Bus Station,  Rough Lea Rd, Thornton Cleveleys, FY5 1BW 01/03/23 to 31/03/23 (R)",Electricity
Wyre Council,http://opendatacommunities.org/doc/district-council/wyre,29/04/2023,People and Places,Environmental Services,132B,Corona Energy Retail 4 Limited,25/04/2023,PE148988,78.85,0,"1610023232505 Car Park PC High  St, Garstang, PR3 1FA 01/03/23 to 31/03/23 (R)",Electricity
Wyre Council,http://opendatacommunities.org/doc/district-council/wyre,29/04/2023,People and Places,Environmental Services,132B,Corona Energy Retail 4 Limited,25/04/2023,PE148991,499.91,0,"1610004313728 PC Teanlowe  Centre, Queensway, Poulton Le Fylde, FY6 7DF 01/03/23 to 31/03/23 (E)",Electricity
Wyre Council,http://opendatacommunities.org/doc/district-council/wyre,29/04/2023,People and Places,Planning and Development Servs,132C,Drax Energy Solutions Limited,14/04/2023,PE148746,129.91,0,"3200000534755 Unit 7A, Dock Ave, Fleetwood, FY7 6PS 01/03/23 to 31/03/23 Actual",Electricity
Wyre Council,http://opendatacommunities.org/doc/district-council/wyre,29/04/2023,People and Places,Planning and Development Servs,132C,Drax Energy Solutions Limited,14/04/2023,PE148745,129.91,0,"3200000534746 Unit 6, Dock Ave, Fleetwood, FY7 6PS 01/03/23 to 31/03/23 Actual",Electricity
Wyre Council,http://opendatacommunities.org/doc/district-council/wyre,29/04/2023,People and Places,Planning and Development Servs,132C,Drax Energy Solutions Limited,14/04/2023,PE148744,129.91,0,"3200000534737 Unit 5, Dock Ave, Fleetwood, FY7 6PS 01/03/23 to 31/03/23 Actual",Electricity
Wyre Council,http://opendatacommunities.org/doc/district-council/wyre,29/04/2023,People and Places,Planning and Development Servs,132C,Drax Energy Solutions Limited,14/04/2023,PE148743,130.12,0,"3200000534728 Unit 4, Dock Ave, Fleetwood, FY7 6PS 01/03/23 to 31/03/23 Actual",Electricity
Wyre Council,http://opendatacommunities.org/doc/district-council/wyre,29/04/2023,People and Places,Planning and Development Servs,132C,Drax Energy Solutions Limited,14/04/2023,PE148751,125.69,0,"3200000534807 LL Supply c/o ABP Port Office, Dock Ave, Fleetwood, FY7 6PS 01/03/23 to 31/03/23 Actual",Electricity
Wyre Council,http://opendatacommunities.org/doc/district-council/wyre,29/04/2023,People and Places,Planning and Development Servs,132C,Drax Energy Solutions Limited,14/04/2023,PE148750,128.85,0,"3200000534791 Unit 10, Dock Ave, Fleetwood, FY7 6PS 01/03/23 to 31/03/23 Actual",Electricity
Wyre Council,http://opendatacommunities.org/doc/district-council/wyre,29/04/2023,People and Places,Planning and Development Servs,132C,Drax Energy Solutions Limited,14/04/2023,PE148749,129.7,0,"3200000534782 Unit 19, Dock Ave, Fleetwood, FY7 6PS 01/03/23 to 31/03/23 Actual",Electricity
Wyre Council,http://opendatacommunities.org/doc/district-council/wyre,29/04/2023,People and Places,Planning and Development Servs,132C,Drax Energy Solutions Limited,14/04/2023,PE148748,132.23,0,"3200000534773 Unit 8, Dock Ave, Fleetwood, FY7 6PS 01/03/23 to 31/03/23 Actual",Electricity
Wyre Council,http://opendatacommunities.org/doc/district-council/wyre,29/04/2023,People and Places,Planning and Development Servs,132C,Drax Energy Solutions Limited,14/04/2023,PE148747,128.22,0,"3200000534764 Unit 7B, Dock Ave, Fleetwood, FY7 6PS 01/03/23 to 31/03/23 Actual",Electricity
Wyre Council,http://opendatacommunities.org/doc/district-council/wyre,29/04/2023,People and Places,Environmental Services,132B,Engie Power Limited,26/04/2023,PE148951,90.32,0,"1610004845313Fleetwood Corporation Cemetery, Beach Road, Fleetwood, Lancashire Fy7 8Ph01/03/23 to 31/03/23",Electricity
Wyre Council,http://opendatacommunities.org/doc/district-council/wyre,29/04/2023,People and Places,Environmental Services,132B,Engie Power Limited,26/04/2023,PE148928,310.23,0,"1610004845304Fleetwood Corporation Cemetery, Beach Road, Fleetwood, Lancashire Fy7 8Ph01/03/23 to 31/03/23",Electricity
Wyre Council,http://opendatacommunities.org/doc/district-council/wyre,29/04/2023,People and Places,Cultural and Related Services,132A,Engie Power Limited,25/04/2023,PE148915,89.04,0,"1640000400837Beach Huts, The Esplanade, Fleetwood, Lancashire Fy7 6Qd01/03/23 to 31/03/23",Electricity
Wyre Council,http://opendatacommunities.org/doc/district-council/wyre,29/04/2023,People and Places,Environmental Services,132B,Engie Power Limited,26/04/2023,PE148936,230.3,0,"1610004933625Springfield Pumping Station 17, Fleetwood Road, Fleetwood, Lancashire Fy7 8Tw01/03/23 to 31/03/23",Electricity
Wyre Council,http://opendatacommunities.org/doc/district-council/wyre,29/04/2023,People and Places,Cultural and Related Services,132A,Engie Power Limited,26/04/2023,PE148944,106.33,0,"1630000841586Garstang Tourist Information Centre, Unit 1, Cherestanc Square, Preston,01/03/23 to 31/03/23",Electricity
Wyre Council,http://opendatacommunities.org/doc/district-council/wyre,29/04/2023,People and Places,Cultural and Related Services,132A,Engie Power Limited,26/04/2023,PE148935,103.23,0,"1610004932427King Georges Field, Broadwater, Fleetwood Road, Fleetwood, Lancashire Fy7 8Bd01/03/23 to 31/03/23",Electricity
Wyre Council,http://opendatacommunities.org/doc/district-council/wyre,29/04/2023,People and Places,Environmental Services,132B,Engie Power Limited,26/04/2023,PE148927,537.35,0,"1610004828771Council Depot;Chatsworth Day Centre, Chatsworth Avenue, Fleetwood, Lancashire01/03/23 to 31/03/23",Electricity
Wyre Council,http://opendatacommunities.org/doc/district-council/wyre,29/04/2023,People and Places,Environmental Services,132B,Engie Power Limited,26/04/2023,PE148930,152.95,0,"1610023169146Public Conveniences, Barton Square, Knott End On Sea, Knott End-On-Sea,01/03/23 to 31/03/23",Electricity
Wyre Council,http://opendatacommunities.org/doc/district-council/wyre,29/04/2023,People and Places,Environmental Services,132B,Engie Power Limited,26/04/2023,PE148929,209.34,0,"1610013371994Public Conveniences, The Weind, Great Eccleston, Lancashire Pr3 0Zu01/03/23 to 31/03/23",Electricity
Wyre Council,http://opendatacommunities.org/doc/district-council/wyre,29/04/2023,People and Places,Environmental Services,132B,Engie Power Limited,25/04/2023,PE148914,137.8,0,"1640000258365Public Convenience, River Road, Thornton-Cleveleys, Lancashire Fy5 5Lr01/03/23 to 31/03/23",Electricity
Wyre Council,http://opendatacommunities.org/doc/district-council/wyre,29/04/2023,People and Places,Environmental Services,132B,Engie Power Limited,26/04/2023,PE148933,305.94,0,"1610023251891Public Conveience, Gubberford Lane, Scorton, Preston, Lancashire Pr3 1Bl01/03/23 to 31/03/23",Electricity
Wyre Council,http://opendatacommunities.org/doc/district-council/wyre,29/04/2023,People and Places,Environmental Services,132B,Engie Power Limited,26/04/2023,PE148932,237.82,0,"1610023195261Public Con, Smallwood Hey, Pilling, Preston, Lancashire Pr3 6Hj01/03/23 to 31/03/23",Electricity
Wyre Council,http://opendatacommunities.org/doc/district-council/wyre,29/04/2023,People and Places,Environmental Services,132B,Engie Power Limited,26/04/2023,PE148939,461.32,0,"1610004885487Public Conveniences, Preston Street, Fleetwood, Lancashire Fy7 6Ja01/03/23 to 31/03/23",Electricity
Wyre Council,http://opendatacommunities.org/doc/district-council/wyre,29/04/2023,People and Places,Environmental Services,132B,Engie Power Limited,26/04/2023,PE148946,230.66,0,"1630000584632Toilets, Public Conveniences Rear Of Tesco, Rough Lea Road, Thornton Cleveleys01/03/23 to 31/03/23",Electricity
Wyre Council,http://opendatacommunities.org/doc/district-council/wyre,29/04/2023,People and Places,Environmental Services,132B,Engie Power Limited,26/04/2023,PE148945,112.59,0,"1620001343345Public Conveniences, Thornton Centre, Victoria Road East Fy5 5Dx01/03/23 to 31/03/23",Electricity
Wyre Council,http://opendatacommunities.org/doc/district-council/wyre,29/04/2023,People and Places,Environmental Services,132B,Engie Power Limited,26/04/2023,PE148948,145.65,0,"1630000819048Public Conveniences, Cherestanc Square, Garstang, Lancashire Pr3 1Ef01/03/23 to 31/03/23",Electricity
Wyre Council,http://opendatacommunities.org/doc/district-council/wyre,29/04/2023,People and Places,Environmental Services,132B,Engie Power Limited,26/04/2023,PE148947,282.8,0,"1630000740099Public Toilet, Wyre Side, Knott End-On-Sea, Poulton-Le-Fylde, Lancashire Fy6 0Aa01/03/23 to 31/03/23",Electricity
Wyre Council,http://opendatacommunities.org/doc/district-council/wyre,29/04/2023,People and Places,Environmental Services,132B,Engie Power Limited,26/04/2023,PE148926,232.51,0,"1610004846520Boating Lake Toilets, Laidleys Walk, Fleetwood, Lancashire Fy7 7Hu01/03/23 to 31/03/23",Electricity
Wyre Council,http://opendatacommunities.org/doc/district-council/wyre,29/04/2023,People and Places,Environmental Services,132B,Engie Power Limited,26/04/2023,PE148918,181.33,0,"1640000218200Public Conveniences, Bold Street, Fleetwood, Lancashire Fy7 6Bw01/03/23 to 31/03/23",Electricity
Wyre Council,http://opendatacommunities.org/doc/district-council/wyre,29/04/2023,People and Places,Environmental Services,132B,Engie Power Limited,26/04/2023,PE148923,144.77,0,"1610004845322Public Conveniences, Beach Road, Fleetwood, Lancashire Fy7 8Ph01/03/23 to 31/03/23",Electricity
Wyre Council,http://opendatacommunities.org/doc/district-council/wyre,29/04/2023,People and Places,Planning and Development Servs,132C,Engie Power Limited,25/04/2023,PE148913,64.34,0,"1640000947172Kiosk 5, Fleetwood Market, Adelaide Street, Fleetwood, Lancashire Fy7 6Ab01/03/23 to 31/03/23",Electricity
Wyre Council,http://opendatacommunities.org/doc/district-council/wyre,29/04/2023,People and Places,Planning and Development Servs,132C,Engie Power Limited,25/04/2023,PE148912,92.09,0,"1640000947154Kiosk 3, Fleetwood Market, Adelaide Street, Fleetwood, Lancashire Fy7 6Ab01/03/23 to 31/03/23",Electricity
Wyre Council,http://opendatacommunities.org/doc/district-council/wyre,29/04/2023,People and Places,Planning and Development Servs,132C,Engie Power Limited,26/04/2023,PE148916,59.23,0,"1640000947181Kiosk 6, Fleetwood Market, Adelaide Street, Fleetwood, Lancashire Fy7 6Ab01/03/23 to 31/03/23",Electricity
Wyre Council,http://opendatacommunities.org/doc/district-council/wyre,29/04/2023,People and Places,Planning and Development Servs,132C,Engie Power Limited,26/04/2023,PE148921,49.45,0,"1640000947215Landlord Supply, Fleetwood Market, Adelaide Street, Fleetwood, Lancashire Fy7 6Ab01/03/23 to 31/03/23",Electricity
Wyre Council,http://opendatacommunities.org/doc/district-council/wyre,29/04/2023,People and Places,Planning and Development Servs,132C,Engie Power Limited,26/04/2023,PE148920,56.63,0,"1640000947206Kiosk 8, Fleetwood Market, Adelaide Street, Fleetwood, Lancashire Fy7 6Ab01/03/23 to 31/03/23",Electricity
Wyre Council,http://opendatacommunities.org/doc/district-council/wyre,29/04/2023,People and Places,Planning and Development Servs,132C,Engie Power Limited,26/04/2023,PE148919,329.88,0,"1640000947190Kiosk 7, Fleetwood Market, Adelaide Street, Fleetwood, Lancashire Fy7 6Ab01/03/23 to 31/03/23",Electricity
Wyre Council,http://opendatacommunities.org/doc/district-council/wyre,29/04/2023,People and Places,Planning and Development Servs,132C,Engie Power Limited,26/04/2023,PE148955,62.07,0,"1640000947145Kiosk 2, Fleetwood Market, Adelaide Street, Fleetwood, Lancashire Fy7 6Ab01/03/23 to 31/03/23",Electricity
Wyre Council,http://opendatacommunities.org/doc/district-council/wyre,29/04/2023,People and Places,Planning and Development Servs,132C,Engie Power Limited,26/04/2023,PE148957,77.26,0,"1640000947163Kiosk 4, Fleetwood Market, Adelaide Street, Fleetwood, Lancashire Fy7 6Ab01/03/23 to 31/03/23",Electricity
Wyre Council,http://opendatacommunities.org/doc/district-council/wyre,29/04/2023,People and Places,Planning and Development Servs,132C,Engie Power Limited,26/04/2023,PE148956,55.83,0,"1640000947136Kiosk 1, Fleetwood Market, Adelaide Street, Fleetwood, Lancashire Fy7 6Ab01/03/23 to 31/03/23",Electricity
Wyre Council,http://opendatacommunities.org/doc/district-council/wyre,29/04/2023,People and Places,Cultural and Related Services,132A,Engie Power Limited,26/04/2023,PE148938,502.93,0,"1610004890636Fishermans Walk, Lord Street, Fleetwood, Lancashire Fy7 6Du01/03/23 to 31/03/23",Electricity
Wyre Council,http://opendatacommunities.org/doc/district-council/wyre,29/04/2023,People and Places,Cultural and Related Services,132A,Engie Power Limited,26/04/2023,PE148917,263.75,0,"1640000118533Feeder Pillar, Vicarage Road, Poulton-Le-Fylde, Lancashire Fy6 7Be01/03/23 to 31/03/23",Electricity
Wyre Council,http://opendatacommunities.org/doc/district-council/wyre,29/04/2023,People and Places,Cultural and Related Services,132A,Engie Power Limited,26/04/2023,PE148949,102.03,0,"1640000004924Fedder Pillar, Hawthorne Park, Hawthorne Road, Thornton-Cleveleys, Fy5 5Dh01/03/23 to 31/03/23",Electricity
Wyre Council,http://opendatacommunities.org/doc/district-council/wyre,29/04/2023,People and Places,Cultural and Related Services,132A,Engie Power Limited,26/04/2023,PE148942,73.53,0,"1610004863776Tourist Information Office, The Esplanade, Fleetwood, Lancashire Fy7 6Dl01/03/23 to 31/03/23",Electricity
Wyre Council,http://opendatacommunities.org/doc/district-council/wyre,29/04/2023,People and Places,Cultural and Related Services,132A,Engie Power Limited,26/04/2023,PE148925,73.76,0,"1610004846502Valve House, Marine Lake, Laidleys Walk, Fleetwood, Lancashire Fy7 7Jl01/03/23 to 31/03/23",Electricity
Wyre Council,http://opendatacommunities.org/doc/district-council/wyre,29/04/2023,People and Places,Cultural and Related Services,132A,Engie Power Limited,26/04/2023,PE148924,502.5,0,"1610004863623Pitch & Putt Kiosk, Carr Road, The Esplanade, Fleetwood, Lancashire Fy7 6Qe01/03/23 to 31/03/23",Electricity
Wyre Council,http://opendatacommunities.org/doc/district-council/wyre,29/04/2023,People and Places,Cultural and Related Services,132A,Engie Power Limited,26/04/2023,PE148952,1303.36,0,"1610004775083He Windmill, Fleetwood Road North, Thornton Cleveleys, Lancashire Fy5 4Bp01/03/23 to 31/03/23",Electricity
Wyre Council,http://opendatacommunities.org/doc/district-council/wyre,29/04/2023,People and Places,Cultural and Related Services,132A,Engie Power Limited,26/04/2023,PE148931,111.57,0,"1610004775074The Windmill, Fleetwood Road North, Thornton Cleveleys, Lancashire Fy5 4Bp01/03/23 to 31/03/23",Electricity
Wyre Council,http://opendatacommunities.org/doc/district-council/wyre,29/04/2023,People and Places,Cultural and Related Services,132A,Engie Power Limited,26/04/2023,PE148953,209.5,0,"1610004846390Pump House, Model Yacht Pond, Laidleys Walk, Fleetwood, Lancashire Fy7 7Jl01/03/23 to 31/03/23",Electricity
Wyre Council,http://opendatacommunities.org/doc/district-council/wyre,29/04/2023,People and Places,Cultural and Related Services,132A,Engie Power Limited,26/04/2023,PE148950,143.5,0,"1610004897394Bowls House, Memorial Park, Fleetwood, Lancashire Fy7 7Ae01/03/23 to 31/03/23",Electricity
Wyre Council,http://opendatacommunities.org/doc/district-council/wyre,29/04/2023,People and Places,Cultural and Related Services,132A,Engie Power Limited,26/04/2023,PE148940,273.57,0,"1610004897385Tennis Pavilion, Memorial Park, Fleetwood, Lancashire Fy7 7Ae01/03/23 to 31/03/23",Electricity
Wyre Council,http://opendatacommunities.org/doc/district-council/wyre,29/04/2023,People and Places,Cultural and Related Services,132A,Engie Power Limited,26/04/2023,PE148934,502.5,0,"1610004897400Ladies, Bowls Pavilion, Memorial Park, Fleetwood, Lancashire Fy7 7Ae01/03/23 to 31/03/23",Electricity
Wyre Council,http://opendatacommunities.org/doc/district-council/wyre,29/04/2023,People and Places,Cultural and Related Services,132A,Engie Power Limited,26/04/2023,PE148943,189.55,0,"1610004867441Mount Hotel, Mount Road, Fleetwood, Lancashire Fy7 6Ra01/03/23 to 31/03/23",Electricity
Wyre Council,http://opendatacommunities.org/doc/district-council/wyre,29/04/2023,People and Places,Cultural and Related Services,132A,Engie Power Limited,26/04/2023,PE148941,421.56,0,"1610004867432Mount Hotel, Mount Road, Fleetwood, Lancashire Fy7 6Ra01/03/23 to 31/03/23",Electricity
Wyre Council,http://opendatacommunities.org/doc/district-council/wyre,29/04/2023,People and Places,Cultural and Related Services,132A,Engie Power Limited,26/04/2023,PE148937,189.44,0,"1610004867488The Mount Pavilion, Mount Road, Fleetwood, Lancashire Fy7 6Ez01/03/23 to 31/03/23",Electricity
Wyre Council,http://opendatacommunities.org/doc/district-council/wyre,29/04/2023,People and Places,Cultural and Related Services,132A,Engie Power Limited,26/04/2023,PE148922,339.92,0,"1610004863605Central Toilets Kiosk, The Esplanade, Fleetwood, Lancashire Fy7 7Be01/03/23 to 31/03/23",Electricity
Wyre Council,http://opendatacommunities.org/doc/district-council/wyre,29/04/2023,People and Places,Cultural and Related Services,132A,Engie Power Limited,26/04/2023,PE148954,139.86,0,"1610004846558Pump Station, The Esplanade, Fleetwood, Lancashire Fy7 6Hf01/03/23 to 31/03/23",Electricity
Wyre Council,http://opendatacommunities.org/doc/district-council/wyre,29/04/2023,Finance,Central Services to the Public,131C,,12/04/2023,WPST00102284,32000,0,Energy bills sup schm alt fund,Energy Rebate Payment
Wyre Council,http://opendatacommunities.org/doc/district-council/wyre,29/04/2023,Finance,Central Services to the Public,131C,,27/04/2023,WPST00104319,3600,0,C/TAX-NNDR REFUNDS 25/4/23,Energy Rebate Payment
Wyre Council,http://opendatacommunities.org/doc/district-council/wyre,29/04/2023,Finance,Central Services to the Public,131C,,12/04/2023,WPST00102283,21400,0,Energy bills sup schm alt fund,Energy Rebate Payment
Wyre Council,http://opendatacommunities.org/doc/district-council/wyre,29/04/2023,Finance,Central Services to the Public,131C,,21/04/2023,WPST00103540,2000,0,19/04/2023,Energy Rebate Payment
Wyre Council,http://opendatacommunities.org/doc/district-council/wyre,29/04/2023,Finance,Central Services to the Public,131C,,21/04/2023,WPST00103458,2000,0,19/04/2023,Energy Rebate Payment
Wyre Council,http://opendatacommunities.org/doc/district-council/wyre,29/04/2023,Finance,Central Services to the Public,131C,,27/04/2023,WPST00104318,61200,0,CTAX-NNDR REFUNDS 25/4/23,Energy Rebate Payment
Wyre Council,http://opendatacommunities.org/doc/district-council/wyre,29/04/2023,Finance,Central Services to the Public,131C,,21/04/2023,WPST00103539,22400,0,19/04/2023,Energy Rebate Payment
Wyre Council,http://opendatacommunities.org/doc/district-council/wyre,29/04/2023,Finance,Central Services to the Public,131C,,21/04/2023,WPST00103457,22400,0,19/04/2023,Energy Rebate Payment
Wyre Council,http://opendatacommunities.org/doc/district-council/wyre,29/04/2023,People and Places,Cultural and Related Services,132A,Fools Paradise LTD,19/04/2023,PE148882,549,0,"For the hire of Bread and Butter Theatre Company`s Flock for the event Walk This Way, in Garstang Town Centre on Saturday 15th April 11am till 4pm.Fee 940",Exhibitions and Events
Wyre Council,http://opendatacommunities.org/doc/district-council/wyre,29/04/2023,People and Places,Cultural and Related Services,132A,Play Inclusion Project,25/04/2023,PE149028,5008.72,0,Holiday and Food Club Easter 2023 - Play Inclusion Project (SEND provision)PLACES15 x 4 = 60 x 15.00 = 900STAFFING3391.50FOOD60 x 3 = 180OTHER COSTS780TOTAL = 5251.50,External Coaching
Wyre Council,http://opendatacommunities.org/doc/district-council/wyre,29/04/2023,People and Places,Cultural and Related Services,132A,Lords Deli,27/04/2023,PE149113,2015,0,Holiday and Food Club  Easter Food order - Lords Deli  Absolute Futbol Fleetwood/Thornton YMCA,External Coaching
Wyre Council,http://opendatacommunities.org/doc/district-council/wyre,29/04/2023,People and Places,Cultural and Related Services,132A,Fylde Coast Holiday Club,06/04/2023,PE148565,3654,0,Holiday and Food Club Provider Invoice - PEO0025873,External Coaching
Wyre Council,http://opendatacommunities.org/doc/district-council/wyre,29/04/2023,People and Places,Cultural and Related Services,132A,Fylde Coast Holiday Club,12/04/2023,PE148563,1050,0,"Holiday and Food Club Provider Invoice - Fylde Coast Holiday Club  228 places booked x 12.00 per child per day = 2736.00 228 breakfast/lunch/snacks x 4.50 per child per day = 1026.00 Additional staff, 2 coaches x 100.00 per day = 400.00 1 extra room",External Coaching
Wyre Council,http://opendatacommunities.org/doc/district-council/wyre,29/04/2023,People and Places,Cultural and Related Services,132A,Acorns,27/04/2023,PE149116,1691,0,Easter 2023 Holiday and Food Club - AcornsPLACES20 places per day x 4 days = 80 X 25.00 = 2000FOOD5 per head X 80 = 400.00ADMIN25 per hour x 6 = 150.00TOTAL = 2550,External Coaching
Wyre Council,http://opendatacommunities.org/doc/district-council/wyre,29/04/2023,People and Places,Cultural and Related Services,132A,Healthy Heads Education Ltd,26/04/2023,PE149099,840,0,Easter HAF 2023 - Healthy HeadsDelivery - 60 per session x 12 = 720.00Food - 10 per session x 12 = 120.00,External Coaching
Wyre Council,http://opendatacommunities.org/doc/district-council/wyre,29/04/2023,People and Places,Cultural and Related Services,132A,Absolute Futbol Ltd,26/04/2023,PE149098,15645,0,Holiday & Food Club Easter 2023 - Absolute FutbolManor BeachPLACES50 x 4 = 200 x 21 = 4200FOOD5 x 200 = 1000Manor Beach Total = 5200.00Over Wyre/ThorntonPLACES105 x 4 = 420 x 21 = 8820FOOD5.00 x 420 = 2100.00Over Wyre/,External Coaching
Wyre Council,http://opendatacommunities.org/doc/district-council/wyre,29/04/2023,People and Places,Public Transport,133G,Andrew Signs LTD,11/04/2023,PE148715,60,0,Supplied signs etc... as requested2x600mm circles - Knott end slipway,Ferry Dock Maintenance
Wyre Council,http://opendatacommunities.org/doc/district-council/wyre,29/04/2023,People and Places,Planning and Development Servs,132C,Lyreco UK LTD,05/04/2023,PE148627,50.42,0,"First Aid kitTransport Delivery to Wyre Council, Copse Road Depot, Copse Road, Fleetwood, FY7 6RP",First Aid Supplies
Wyre Council,http://opendatacommunities.org/doc/district-council/wyre,29/04/2023,People and Places,Environmental Services,132B,UK Health Security Agency,06/04/2023,PE148622,654,0,Shellfish testing 2020/2021,Food and Drug Etc Samples
Wyre Council,http://opendatacommunities.org/doc/district-council/wyre,29/04/2023,People and Places,Environmental Services,132B,UK Health Security Agency,05/04/2023,PE148349,392.4,0,For shellfish testing -  April 2022 - March 2023,Food and Drug Etc Samples
Wyre Council,http://opendatacommunities.org/doc/district-council/wyre,29/04/2023,People and Places,Planning and Development Servs,132C,British Gas,25/04/2023,PE148960,102.95,0,"603764150 -  Copse Road, Copse Road Depot 22/02/23 to 06/04/23",Gas
Wyre Council,http://opendatacommunities.org/doc/district-council/wyre,29/04/2023,People and Places,Planning and Development Servs,132C,British Gas,25/04/2023,PE148960,264.49,0,"603764150 -  Copse Road, Copse Road Depot 22/02/23 to 06/04/23",Gas
Wyre Council,http://opendatacommunities.org/doc/district-council/wyre,29/04/2023,People and Places,Planning and Development Servs,132C,British Gas,12/04/2023,PE148774,359.2,0,"603764150 - 992580972/974. Copse Road, Copse Road Depot 06/12/22 to  21/02/23",Gas
Wyre Council,http://opendatacommunities.org/doc/district-council/wyre,29/04/2023,People and Places,Planning and Development Servs,132C,British Gas,25/04/2023,PE148960,-7131.45,0,"603764162 - Adelaide Street, Wyre Borough Council credit note bill number 720058321",Gas
Wyre Council,http://opendatacommunities.org/doc/district-council/wyre,29/04/2023,People and Places,Support Services,135B,British Gas,25/04/2023,PE148960,7282.71,0,"603764151 -  Wyre Borough Council, Wyre Civic Centre 02/03/23 to 06/04/23",Gas
Wyre Council,http://opendatacommunities.org/doc/district-council/wyre,29/04/2023,People and Places,Support Services,135B,British Gas,12/04/2023,PE148774,20987.19,0,"603764151 - 992580975/977. Wyre Borough Council, Wyre Civic Centre  06/12/22 to 01/03/23",Gas
Wyre Council,http://opendatacommunities.org/doc/district-council/wyre,29/04/2023,People and Places,Cultural and Related Services,132A,British Gas,25/04/2023,PE148960,1046.04,0,"603764149 - Victoria Road East, Thornton Little Theatre 01/03/23 to 06/04/23",Gas
Wyre Council,http://opendatacommunities.org/doc/district-council/wyre,29/04/2023,People and Places,Cultural and Related Services,132A,British Gas,12/04/2023,PE148774,3646,0,"603764149 - 992580969/971 Victoria Road  East, Thornton Little Theatre 06/12/22 to 28/02/23",Gas
Wyre Council,http://opendatacommunities.org/doc/district-council/wyre,29/04/2023,People and Places,Planning and Development Servs,132C,British Gas,12/04/2023,PE148774,22439.56,0,"603764162 - 992580978/980 . Adelaide Street, Wyre Borough Council  07/12/22 ti 28/02/23",Gas
Wyre Council,http://opendatacommunities.org/doc/district-council/wyre,29/04/2023,People and Places,Planning and Development Servs,132C,British Gas,25/04/2023,PE148960,7765.28,0,"603764162 -  Adelaide Street, Wyre Borough Council 30/01/23 to 06/04/23",Gas
Wyre Council,http://opendatacommunities.org/doc/district-council/wyre,29/04/2023,People and Places,"Cultural, Environ and Planning",137B,Fleetwood Museum Trust,12/04/2023,PE148729,41854.38,0,Fleetwood HSHAZ Grant - Fleetwood Museum,Grants and Advances
Wyre Council,http://opendatacommunities.org/doc/district-council/wyre,29/04/2023,Resources,"Cultural, Environ and Planning",137B,Lucy Moss,06/04/2023,RS148662,672.6,0,Fleetwood HSHAZ Grant: 19 - 23 Adelaide St,Grants and Advances
Wyre Council,http://opendatacommunities.org/doc/district-council/wyre,29/04/2023,People and Places,Environmental Services,132B,Blackpool Skip Hire LTD,05/04/2023,PE148571,1000,0,"Removal of Waste/Asbestos from rear of 61 Bold Street, Fleetwood - RE: Bold St Fleetwood access at 36 Pharos St600 labour  200 Transport ( To site and then to Clifton marsh landfill)200 Materials and PaperworkWaste to be tipped on your Accoun",Hazardous Waste Disposal
Wyre Council,http://opendatacommunities.org/doc/district-council/wyre,29/04/2023,Resources,Planning and Development Servs,132C,Konica Minolta Business Solutions UK LTD,18/04/2023,RS148860,43.53,0,1840080773 - Fleetwood Market,Hire of Tools or Equipment
Wyre Council,http://opendatacommunities.org/doc/district-council/wyre,29/04/2023,Resources,Planning and Development Servs,132C,Konica Minolta Business Solutions UK LTD,27/04/2023,RS149012,12.63,0,Copy and print charged - Fleetwood Market 1822507483,Hire of Tools or Equipment
Wyre Council,http://opendatacommunities.org/doc/district-council/wyre,29/04/2023,Resources,Planning and Development Servs,132C,Konica Minolta Business Solutions UK LTD,12/04/2023,RS148233,34.65,0,1840080773 - Fleetwood Market,Hire of Tools or Equipment
Wyre Council,http://opendatacommunities.org/doc/district-council/wyre,29/04/2023,Resources,Support Services,135B,Konica Minolta Business Solutions UK LTD,19/04/2023,RS148861,408.9,0,Epson Surecolor SC-T5200 Dual Roll/Urpe000449 - Equipment number 1821320823 - 01/04/2023-31/03/2023  PLEASE ENSURE THIS ORDER NUMBER IS ENTERED ON INVOICES FOR THIS MACHINE,Hire of Tools or Equipment
Wyre Council,http://opendatacommunities.org/doc/district-council/wyre,29/04/2023,Resources,Cultural and Related Services,132A,Konica Minolta Business Solutions UK LTD,12/04/2023,RS148233,24.09,0,Rental Charges - 01/04/2023-31/03/24 1840141270 - Visit Garstang,Hire of Tools or Equipment
Wyre Council,http://opendatacommunities.org/doc/district-council/wyre,29/04/2023,People and Places,Support Services,135B,M J Wilkinson,18/04/2023,PE148873,84.46,0,Excavator  Hire Period 3/4/23 @ 42.24 Delivery charge @ 21.11 Collection charge @ 21.11,Hire of Tools or Equipment
Wyre Council,http://opendatacommunities.org/doc/district-council/wyre,29/04/2023,People and Places,Support Services,135B,M J Wilkinson,18/04/2023,PE148869,84.46,0,Excavator @ 42.24 21/3/23 Delivery charge @ 21.11 Collection charge @ 21.11,Hire of Tools or Equipment
Wyre Council,http://opendatacommunities.org/doc/district-council/wyre,29/04/2023,Resources,Central Services to the Public,131C,Critiqom LTD,11/04/2023,RS148701,1656.6,0,March HSF3 Huggg DBR  Letters,Household Support Fund
Wyre Council,http://opendatacommunities.org/doc/district-council/wyre,29/04/2023,People and Places,Environmental Services,132B,Poulton Pets LTD,25/04/2023,PE149030,1555.5,0,Provision of stray dog kennelling service March 2023,Impounded Dogs Costs
Wyre Council,http://opendatacommunities.org/doc/district-council/wyre,29/04/2023,Resources,Support Services,135B,Daisy Communications LTD,25/04/2023,RS148700,19.39,0,Calls and Service Charges to 31/03/23,Internet and Telephone Charges
Wyre Council,http://opendatacommunities.org/doc/district-council/wyre,29/04/2023,Resources,Support Services,135B,Daisy Communications LTD,25/04/2023,RS148700,80.86,0,Calls and Service Charges to 31/03/23,Internet and Telephone Charges
Wyre Council,http://opendatacommunities.org/doc/district-council/wyre,29/04/2023,Resources,Cultural and Related Services,132A,Daisy Communications LTD,25/04/2023,RS148700,13.87,0,Calls and Service Charges to 31/03/23,Internet and Telephone Charges
Wyre Council,http://opendatacommunities.org/doc/district-council/wyre,29/04/2023,Resources,Cultural and Related Services,132A,Daisy Communications LTD,25/04/2023,RS148700,33.25,0,Calls and Service Charges to 31/03/23,Internet and Telephone Charges
Wyre Council,http://opendatacommunities.org/doc/district-council/wyre,29/04/2023,Resources,Corporate and Democratic Core,131A,Daisy Communications LTD,25/04/2023,RS148700,13.87,0,Calls and Service Charges to 31/03/23,Internet and Telephone Charges
Wyre Council,http://opendatacommunities.org/doc/district-council/wyre,29/04/2023,Resources,Support Services,135B,THE NETWORKING PEOPLE (TNP) LTD,26/04/2023,RS149086,2400,0,Block of 40 RMAC`s,Internet and Telephone Charges
Wyre Council,http://opendatacommunities.org/doc/district-council/wyre,29/04/2023,Resources,Central Services to the Public,131C,Lancashire County Council,28/04/2023,RS149156,640,0,Wyre Council Con29 Searches for March 2023 - 40 @ 16.00 each,L.C.C. Search Fees
Wyre Council,http://opendatacommunities.org/doc/district-council/wyre,29/04/2023,Resources,Central Services to the Public,131C,Lancashire County Council,12/04/2023,RS148730,480,0,Wyre Council Con29 Searches for February 2023 - 30 @ 16.00 each,L.C.C. Search Fees
Wyre Council,http://opendatacommunities.org/doc/district-council/wyre,29/04/2023,People and Places,Highways,133B,Lancashire County Council,26/04/2023,PE149097,1100,0,"Wyre Countryside Park, StanahAs discussed, replace existing lighting column and lamp, and make new connection to mains.",Maint. of Unadopted Assets - Engineers
Wyre Council,http://opendatacommunities.org/doc/district-council/wyre,29/04/2023,People and Places,Highways,133B,HMA Tree Care,26/04/2023,PE149077,500,0,"Quote No: 238Surveyor: Ben WallerSite Ref No: 280Site Address Butts road , Butts road , Thornton - Cleveleys , FY5 4HXG1 PoplarRemove major deadwood throughout whole crown area (Deadwood > 25mm indiameter )200.00G1 PoplarRemove 3 br",Maintenance of Trees and Shrubs
Wyre Council,http://opendatacommunities.org/doc/district-council/wyre,29/04/2023,People and Places,Environmental Services,132B,Andrew Signs LTD,11/04/2023,PE148715,75,0,3xPipe discharge sign - Sea Defences,Materials and Consumables
Wyre Council,http://opendatacommunities.org/doc/district-council/wyre,29/04/2023,People and Places,Environmental Services,132B,Andrew Signs LTD,11/04/2023,PE148715,337.5,0,15xGate entrance signs - Sea Defences,Materials and Consumables
Wyre Council,http://opendatacommunities.org/doc/district-council/wyre,29/04/2023,People and Places,Support Services,135B,Key Engineering & Hygiene Supplies LTD,14/04/2023,PE148848,45.96,0,"Supply and deliver as per quotation 1863520 x Stokoderm sun protect 50, 100ml @ 9.37 each(If you havent got all 20 in stock please could you send what you can as we have a sun safety talk on the 17th April 2023, thank you",Materials and Consumables
Wyre Council,http://opendatacommunities.org/doc/district-council/wyre,29/04/2023,People and Places,Environmental Services,132B,Killgerm Chemicals LTD,28/04/2023,PE149119,20,0,Flea Traps FLEATRAP,Materials and Consumables
Wyre Council,http://opendatacommunities.org/doc/district-council/wyre,29/04/2023,People and Places,Environmental Services,132B,Killgerm Chemicals LTD,28/04/2023,PE149119,59.36,0,Max Force Pushbox MAXPUSH 20X26,Materials and Consumables
Wyre Council,http://opendatacommunities.org/doc/district-council/wyre,29/04/2023,People and Places,Environmental Services,132B,Killgerm Chemicals LTD,28/04/2023,PE149119,26.01,0,Mini Pesticide Spill Kit SPILLKITM,Materials and Consumables
Wyre Council,http://opendatacommunities.org/doc/district-council/wyre,29/04/2023,People and Places,Environmental Services,132B,Killgerm Chemicals LTD,28/04/2023,PE149119,6.48,0,Shoe Covers DISPSHOE,Materials and Consumables
Wyre Council,http://opendatacommunities.org/doc/district-council/wyre,29/04/2023,People and Places,Environmental Services,132B,Killgerm Chemicals LTD,28/04/2023,PE149119,48.06,0,Gorilla Hand Wipes GORILLAPK100,Materials and Consumables
Wyre Council,http://opendatacommunities.org/doc/district-council/wyre,29/04/2023,People and Places,Environmental Services,132B,Killgerm Chemicals LTD,28/04/2023,PE149119,16.8,0,AF Tunnel AFTUNNEL,Materials and Consumables
Wyre Council,http://opendatacommunities.org/doc/district-council/wyre,29/04/2023,People and Places,Environmental Services,132B,Killgerm Chemicals LTD,28/04/2023,PE149119,0.7,0,AF Push Key AFPUSHKEY,Materials and Consumables
Wyre Council,http://opendatacommunities.org/doc/district-council/wyre,29/04/2023,People and Places,Environmental Services,132B,Killgerm Chemicals LTD,28/04/2023,PE149119,4.41,0,Bait Station Warning Stickers BAITSTATWARN,Materials and Consumables
Wyre Council,http://opendatacommunities.org/doc/district-council/wyre,29/04/2023,People and Places,Environmental Services,132B,Killgerm Chemicals LTD,28/04/2023,PE149119,10.26,0,Bait Station Warning Stickers LABELDP1,Materials and Consumables
Wyre Council,http://opendatacommunities.org/doc/district-council/wyre,29/04/2023,People and Places,Environmental Services,132B,Killgerm Chemicals LTD,28/04/2023,PE149119,6.73,0,Bait Station Warning Stickers LABELP1,Materials and Consumables
Wyre Council,http://opendatacommunities.org/doc/district-council/wyre,29/04/2023,People and Places,Environmental Services,132B,Killgerm Chemicals LTD,28/04/2023,PE149119,276,0,Sorexa D SOREXAD010K,Materials and Consumables
Wyre Council,http://opendatacommunities.org/doc/district-council/wyre,29/04/2023,People and Places,Environmental Services,132B,Killgerm Chemicals LTD,28/04/2023,PE149119,177.76,0,Contrac Bloc All Weather Black CONTRA008K,Materials and Consumables
Wyre Council,http://opendatacommunities.org/doc/district-council/wyre,29/04/2023,People and Places,Environmental Services,132B,Killgerm Chemicals LTD,28/04/2023,PE149119,63,0,Sakarat D Whole Wheat (Sewer) SAKDW010K,Materials and Consumables
Wyre Council,http://opendatacommunities.org/doc/district-council/wyre,29/04/2023,People and Places,Environmental Services,132B,Killgerm Chemicals LTD,28/04/2023,PE149119,50.79,0,Detex None Toxic DTEX004K,Materials and Consumables
Wyre Council,http://opendatacommunities.org/doc/district-council/wyre,29/04/2023,People and Places,Environmental Services,132B,Killgerm Chemicals LTD,28/04/2023,PE149119,70.2,0,3M Respirator 3MRESP,Materials and Consumables
Wyre Council,http://opendatacommunities.org/doc/district-council/wyre,29/04/2023,People and Places,Environmental Services,132B,Killgerm Chemicals LTD,28/04/2023,PE149119,81.6,0,Digrain Wasp Destroyer DIGRAINWASP,Materials and Consumables
Wyre Council,http://opendatacommunities.org/doc/district-council/wyre,29/04/2023,People and Places,Support Services,135B,Groundsman Tools Ltd,26/04/2023,PE149100,472.28,0,Tool & equipment,Materials and Consumables
Wyre Council,http://opendatacommunities.org/doc/district-council/wyre,29/04/2023,People and Places,Support Services,135B,Groundsman Tools Ltd,12/04/2023,PE148756,45.9,0,Safety wear grounds,Materials and Consumables
Wyre Council,http://opendatacommunities.org/doc/district-council/wyre,29/04/2023,People and Places,Support Services,135B,Groundsman Tools Ltd,12/04/2023,PE148756,32.13,0,Hard hats,Materials and Consumables
Wyre Council,http://opendatacommunities.org/doc/district-council/wyre,29/04/2023,People and Places,Support Services,135B,Groundsman Tools Ltd,28/04/2023,PE148970,13.77,0,Hard hats,Materials and Consumables
Wyre Council,http://opendatacommunities.org/doc/district-council/wyre,29/04/2023,People and Places,Environmental Services,132B,Groundsman Tools Ltd,26/04/2023,PE149100,35.15,0,Tool & equipment,Materials and Consumables
Wyre Council,http://opendatacommunities.org/doc/district-council/wyre,29/04/2023,People and Places,Support Services,135B,Agrovista UK LTD,24/04/2023,PE148974,707.4,0,"Supply 12 Roundup ProActive 360 @ 58.95 / 5LNo carriage charge Delivery to Wyre Council, Copse Road Depot, Copse Road, Fleetwood, FY7 6RP.",Materials and Consumables
Wyre Council,http://opendatacommunities.org/doc/district-council/wyre,29/04/2023,People and Places,Cultural and Related Services,132A,HUWS GRAY LTD,26/04/2023,PE149102,84.24,0,9 x fence post,Materials and Consumables
Wyre Council,http://opendatacommunities.org/doc/district-council/wyre,29/04/2023,People and Places,Support Services,135B,HUWS GRAY LTD,05/04/2023,PE148365,150.54,0,Materials,Materials and Consumables
Wyre Council,http://opendatacommunities.org/doc/district-council/wyre,29/04/2023,People and Places,Support Services,135B,HUWS GRAY LTD,26/04/2023,PE149055,89.86,0,Materials Keith Urwin,Materials and Consumables
Wyre Council,http://opendatacommunities.org/doc/district-council/wyre,29/04/2023,People and Places,Support Services,135B,HUWS GRAY LTD,26/04/2023,PE149055,352.62,0,Topsoil To be collected,Materials and Consumables
Wyre Council,http://opendatacommunities.org/doc/district-council/wyre,29/04/2023,People and Places,Support Services,135B,HUWS GRAY LTD,26/04/2023,PE149055,28.06,0,Materials  Keith urwin,Materials and Consumables
Wyre Council,http://opendatacommunities.org/doc/district-council/wyre,29/04/2023,People and Places,Support Services,135B,Amazon Business,26/04/2023,PE149076,22.48,0,Tarpaulin Fleetwood Cemetery,Materials and Consumables
Wyre Council,http://opendatacommunities.org/doc/district-council/wyre,29/04/2023,Resources,Housing General Fund,134A,Huck Properties LTD,24/04/2023,RS148966,830,0,REDACT,Minor Adaptations
Wyre Council,http://opendatacommunities.org/doc/district-council/wyre,29/04/2023,Resources,Housing General Fund,134A,J A DICKENS LIMITED,12/04/2023,RS148739,120,0,REDACT,Minor Adaptations
Wyre Council,http://opendatacommunities.org/doc/district-council/wyre,29/04/2023,Resources,Housing General Fund,134A,J A DICKENS LIMITED,12/04/2023,RS148739,188,0,REDACT,Minor Adaptations
Wyre Council,http://opendatacommunities.org/doc/district-council/wyre,29/04/2023,Resources,Housing General Fund,134A,J A DICKENS LIMITED,12/04/2023,RS148735,60,0,REDACT,Minor Adaptations
Wyre Council,http://opendatacommunities.org/doc/district-council/wyre,29/04/2023,Resources,Housing General Fund,134A,J A DICKENS LIMITED,12/04/2023,RS148735,94,0,REDACT,Minor Adaptations
Wyre Council,http://opendatacommunities.org/doc/district-council/wyre,29/04/2023,Resources,Housing General Fund,134A,J A DICKENS LIMITED,12/04/2023,RS148736,60,0,REDACT,Minor Adaptations
Wyre Council,http://opendatacommunities.org/doc/district-council/wyre,29/04/2023,Resources,Housing General Fund,134A,J A DICKENS LIMITED,12/04/2023,RS148736,94,0,REDACT,Minor Adaptations
Wyre Council,http://opendatacommunities.org/doc/district-council/wyre,29/04/2023,Resources,Housing General Fund,134A,J A DICKENS LIMITED,12/04/2023,RS148737,60,0,REDACT,Minor Adaptations
Wyre Council,http://opendatacommunities.org/doc/district-council/wyre,29/04/2023,Resources,Housing General Fund,134A,J A DICKENS LIMITED,12/04/2023,RS148737,94,0,REDACT,Minor Adaptations
Wyre Council,http://opendatacommunities.org/doc/district-council/wyre,29/04/2023,Resources,Housing General Fund,134A,J A DICKENS LIMITED,12/04/2023,RS148738,120,0,REDACT,Minor Adaptations
Wyre Council,http://opendatacommunities.org/doc/district-council/wyre,29/04/2023,Resources,Housing General Fund,134A,J A DICKENS LIMITED,12/04/2023,RS148738,188,0,REDACT,Minor Adaptations
Wyre Council,http://opendatacommunities.org/doc/district-council/wyre,29/04/2023,Resources,Housing General Fund,134A,J A DICKENS LIMITED,24/04/2023,RS148978,270,0,REDACT,Minor Adaptations
Wyre Council,http://opendatacommunities.org/doc/district-council/wyre,29/04/2023,Resources,Housing General Fund,134A,J A DICKENS LIMITED,24/04/2023,RS148976,74,0,REDACT,Minor Adaptations
Wyre Council,http://opendatacommunities.org/doc/district-council/wyre,29/04/2023,Resources,Housing General Fund,134A,J A DICKENS LIMITED,24/04/2023,RS148976,80,0,REDACT,Minor Adaptations
Wyre Council,http://opendatacommunities.org/doc/district-council/wyre,29/04/2023,Resources,Housing General Fund,134A,J A DICKENS LIMITED,24/04/2023,RS148977,147,0,REDACT,Minor Adaptations
Wyre Council,http://opendatacommunities.org/doc/district-council/wyre,29/04/2023,Resources,Housing General Fund,134A,J A DICKENS LIMITED,24/04/2023,RS148977,140,0,REDACT,Minor Adaptations
Wyre Council,http://opendatacommunities.org/doc/district-council/wyre,29/04/2023,Resources,Housing General Fund,134A,J A DICKENS LIMITED,24/04/2023,RS148978,120,0,REDACT,Minor Adaptations
Wyre Council,http://opendatacommunities.org/doc/district-council/wyre,29/04/2023,Resources,Housing General Fund,134A,J A DICKENS LIMITED,26/04/2023,RS149067,280,0,REDACT,Minor Adaptations
Wyre Council,http://opendatacommunities.org/doc/district-council/wyre,29/04/2023,Resources,Housing General Fund,134A,J A DICKENS LIMITED,26/04/2023,RS149067,360,0,REDACT,Minor Adaptations
Wyre Council,http://opendatacommunities.org/doc/district-council/wyre,29/04/2023,Resources,Housing General Fund,134A,J A DICKENS LIMITED,26/04/2023,RS149068,380,0,REDACT,Minor Adaptations
Wyre Council,http://opendatacommunities.org/doc/district-council/wyre,29/04/2023,Resources,Housing General Fund,134A,J A DICKENS LIMITED,26/04/2023,RS149068,440,0,REDACT,Minor Adaptations
Wyre Council,http://opendatacommunities.org/doc/district-council/wyre,29/04/2023,Resources,Housing General Fund,134A,J A DICKENS LIMITED,26/04/2023,RS149069,107,0,REDACT,Minor Adaptations
Wyre Council,http://opendatacommunities.org/doc/district-council/wyre,29/04/2023,Resources,Housing General Fund,134A,J A DICKENS LIMITED,26/04/2023,RS149069,180,0,REDACT,Minor Adaptations
Wyre Council,http://opendatacommunities.org/doc/district-council/wyre,29/04/2023,Resources,Housing General Fund,134A,J A DICKENS LIMITED,26/04/2023,RS149070,107,0,REDACT,Minor Adaptations
Wyre Council,http://opendatacommunities.org/doc/district-council/wyre,29/04/2023,Resources,Housing General Fund,134A,J A DICKENS LIMITED,26/04/2023,RS149070,180,0,REDACT,Minor Adaptations
Wyre Council,http://opendatacommunities.org/doc/district-council/wyre,29/04/2023,Resources,Housing General Fund,134A,J A DICKENS LIMITED,26/04/2023,RS149071,107,0,REDACT,Minor Adaptations
Wyre Council,http://opendatacommunities.org/doc/district-council/wyre,29/04/2023,Resources,Housing General Fund,134A,J A DICKENS LIMITED,26/04/2023,RS149073,230,0,REDACT,Minor Adaptations
Wyre Council,http://opendatacommunities.org/doc/district-council/wyre,29/04/2023,Resources,Housing General Fund,134A,J A DICKENS LIMITED,26/04/2023,RS149073,290,0,REDACT,Minor Adaptations
Wyre Council,http://opendatacommunities.org/doc/district-council/wyre,29/04/2023,Resources,Housing General Fund,134A,J A DICKENS LIMITED,26/04/2023,RS149071,180,0,REDACT,Minor Adaptations
Wyre Council,http://opendatacommunities.org/doc/district-council/wyre,29/04/2023,Resources,Housing General Fund,134A,J A DICKENS LIMITED,26/04/2023,RS149072,128,0,REDACT,Minor Adaptations
Wyre Council,http://opendatacommunities.org/doc/district-council/wyre,29/04/2023,Resources,Housing General Fund,134A,J A DICKENS LIMITED,26/04/2023,RS149072,180,0,REDACT,Minor Adaptations
Wyre Council,http://opendatacommunities.org/doc/district-council/wyre,29/04/2023,Finance,Non-Current Liabilities,130D,,25/04/2023,WPST00103847,3278200,0,LCC Pension Fund - Wyre Prepay,Miscellaneous Debits
Wyre Council,http://opendatacommunities.org/doc/district-council/wyre,29/04/2023,Resources,Current Assets,130B,SME HCI Ltd,27/04/2023,RS149108,1457.5,0,INVOICE NUMBER: 144919,Miscellaneous Debits
Wyre Council,http://opendatacommunities.org/doc/district-council/wyre,29/04/2023,People and Places,Highways,133B,Andrew Signs LTD,11/04/2023,PE148715,386.5,0,Various Street nameplates,Naming of Streets
Wyre Council,http://opendatacommunities.org/doc/district-council/wyre,29/04/2023,People and Places,Highways,133B,Glasdon UK LTD,05/04/2023,PE148645,324.3,0,"Supply and deliver 10 Flexmaster marker Posts with Black & White with red reflector at the top at price quoted on Glasdon chat 25/1/23 @ 32.43 each Delivery to Wyre Council, Copse Road Depot, Copse Road, Fleetwood, FY7 6RP, FAO Ken White",Naming of Streets
Wyre Council,http://opendatacommunities.org/doc/district-council/wyre,29/04/2023,Finance,Current Assets,130B,,25/04/2023,WPST00103929,4642.71,0,NDR Refund,NNDR Refunds
Wyre Council,http://opendatacommunities.org/doc/district-council/wyre,29/04/2023,Resources,Support Services,135B,People Asset Management LTD,13/04/2023,RS148713,833.75,0,Monthly fee (Aug to March 22,Occupational Health Fees
Wyre Council,http://opendatacommunities.org/doc/district-council/wyre,29/04/2023,Resources,Support Services,135B,People Asset Management LTD,13/04/2023,RS148713,41.9,0,Monthly PAYG Charges no VAT- March 2023,Occupational Health Fees
Wyre Council,http://opendatacommunities.org/doc/district-council/wyre,29/04/2023,Resources,General Fund below the line,136A,Catterall Parish Council,03/04/2023,RS148523,98000,0,Catterall Parish Precept 23/24,Other Contributions
Wyre Council,http://opendatacommunities.org/doc/district-council/wyre,29/04/2023,Resources,General Fund below the line,136A,Hambleton Parish Council,03/04/2023,RS148524,40000,0,Hambleton Parish Precept 23/24,Other Contributions
Wyre Council,http://opendatacommunities.org/doc/district-council/wyre,29/04/2023,Resources,General Fund below the line,136A,Preesall Town Council,03/04/2023,RS148525,98186,0,Preesall Town Precept 23/24,Other Contributions
Wyre Council,http://opendatacommunities.org/doc/district-council/wyre,29/04/2023,Resources,General Fund below the line,136A,Cabus Parish Council,03/04/2023,RS148526,9500,0,Cabus Parish Precept 23/24,Other Contributions
Wyre Council,http://opendatacommunities.org/doc/district-council/wyre,29/04/2023,Resources,General Fund below the line,136A,Great Eccleston Parish Council,03/04/2023,RS148527,45000,0,Gt Eccleston Parish Precept 23/24,Other Contributions
Wyre Council,http://opendatacommunities.org/doc/district-council/wyre,29/04/2023,Resources,General Fund below the line,136A,Forton Parish Council,03/04/2023,RS148528,21000,0,Forton Parish Precept 23/24,Other Contributions
Wyre Council,http://opendatacommunities.org/doc/district-council/wyre,29/04/2023,Resources,General Fund below the line,136A,Inskip with Sowerby Parish Council,03/04/2023,RS148529,11358.75,0,Inskip Parish Precept 23/24,Other Contributions
Wyre Council,http://opendatacommunities.org/doc/district-council/wyre,29/04/2023,Resources,General Fund below the line,136A,Bleasdale Parish Council,03/04/2023,RS148530,1000,0,Bleasdale Parish Precept 2023/24,Other Contributions
Wyre Council,http://opendatacommunities.org/doc/district-council/wyre,29/04/2023,Resources,General Fund below the line,136A,Pilling Parish Council,03/04/2023,RS148532,78000,0,Pilling Precept 23/24,Other Contributions
Wyre Council,http://opendatacommunities.org/doc/district-council/wyre,29/04/2023,Resources,General Fund below the line,136A,Stalmine With Staynall Parish Council,03/04/2023,RS148531,38013,0,Stalmine Parish Precept 23/24,Other Contributions
Wyre Council,http://opendatacommunities.org/doc/district-council/wyre,29/04/2023,Resources,General Fund below the line,136A,Barnacre With Bonds Parish Council,03/04/2023,RS148533,8000,0,Barnacre Parish Precept 2023/24,Other Contributions
Wyre Council,http://opendatacommunities.org/doc/district-council/wyre,29/04/2023,Resources,General Fund below the line,136A,Garstang Town Council,03/04/2023,RS148534,114188,0,Garstang Town Precept 23/24,Other Contributions
Wyre Council,http://opendatacommunities.org/doc/district-council/wyre,29/04/2023,Resources,General Fund below the line,136A,c. Kirkland Parish Council,03/04/2023,RS148535,13500,0,Kirkland Parish Precept 23/24,Other Contributions
Wyre Council,http://opendatacommunities.org/doc/district-council/wyre,29/04/2023,Resources,General Fund below the line,136A,Upper Rawcliffe-With-Tarnacre Parish Council,03/04/2023,RS148536,7500,0,U Rawcliffe Parish Precept 23/24,Other Contributions
Wyre Council,http://opendatacommunities.org/doc/district-council/wyre,29/04/2023,Resources,General Fund below the line,136A,Winmarleigh Parish Council,03/04/2023,RS148537,6735,0,Winmarleigh Parish Precept 23/24,Other Contributions
Wyre Council,http://opendatacommunities.org/doc/district-council/wyre,29/04/2023,Resources,General Fund below the line,136A,Out Rawcliffe Parish Council,03/04/2023,RS148538,7000,0,Out Rawcliffe Parish Precept 23/24,Other Contributions
Wyre Council,http://opendatacommunities.org/doc/district-council/wyre,29/04/2023,Resources,General Fund below the line,136A,Nateby Parish Council,03/04/2023,RS148539,4820,0,Nateby Parish Precept 23/24,Other Contributions
Wyre Council,http://opendatacommunities.org/doc/district-council/wyre,29/04/2023,Resources,General Fund below the line,136A,Myerscough & Bilsborrow Parish Council,03/04/2023,RS148540,19000,0,Myerscough Parish Precept 23/24,Other Contributions
Wyre Council,http://opendatacommunities.org/doc/district-council/wyre,29/04/2023,Resources,General Fund below the line,136A,Claughton-On-Brock Parish Council,03/04/2023,RS148541,21000,0,Claughton Parish Precept 23/24,Other Contributions
Wyre Council,http://opendatacommunities.org/doc/district-council/wyre,29/04/2023,Resources,General Fund below the line,136A,Nether Wyresdale Parish Council,03/04/2023,RS148542,25000,0,Nether W Parish Precept 23/24,Other Contributions
Wyre Council,http://opendatacommunities.org/doc/district-council/wyre,29/04/2023,Resources,General Fund below the line,136A,Fleetwood Town Council,03/04/2023,RS148543,245049,0,Fleetwood Town Precept 23/24,Other Contributions
Wyre Council,http://opendatacommunities.org/doc/district-council/wyre,29/04/2023,People and Places,Environmental Services,132B,DANFO (UK) LTD,04/04/2023,PE148513,21763.1,0,Public Conveniences - Maintenance and Cleaning 2022/23,Other Establishments
Wyre Council,http://opendatacommunities.org/doc/district-council/wyre,29/04/2023,People and Places,Cultural and Related Services,132A,Fleetwood Trust,19/04/2023,PE148896,8556,0,NHS Cost of Living Grant,Other Grants
Wyre Council,http://opendatacommunities.org/doc/district-council/wyre,29/04/2023,Finance,Collection Fund Revenue Accts,138A,LANCASHIRE FIRE AUTHORITY,04/04/2023,WPST00101601,21662.51,0,Apr 22 Lancs Fire 22/23 Business Rates,Other Local Authorities
Wyre Council,http://opendatacommunities.org/doc/district-council/wyre,29/04/2023,Finance,Collection Fund Revenue Accts,138A,,04/04/2023,WPST00101597,194940.54,0,Apr 22 LCC 22/23 Business Rates,Other Local Authorities
Wyre Council,http://opendatacommunities.org/doc/district-council/wyre,29/04/2023,Finance,Collection Fund Revenue Accts,138A,LANCASHIRE FIRE AUTHORITY,04/04/2023,WPST00101613,21660,0,Aug 22 Lancs Fire 22/23 Business Rates,Other Local Authorities
Wyre Council,http://opendatacommunities.org/doc/district-council/wyre,29/04/2023,Finance,Collection Fund Revenue Accts,138A,,04/04/2023,WPST00101609,194942,0,Aug 22 LCC 22/23 Business Rates,Other Local Authorities
Wyre Council,http://opendatacommunities.org/doc/district-council/wyre,29/04/2023,Finance,Collection Fund Revenue Accts,138A,LANCASHIRE FIRE AUTHORITY,25/04/2023,WPST00103841,25566.2,0,Lancs Fire 23/24 Business Rates,Other Local Authorities
Wyre Council,http://opendatacommunities.org/doc/district-council/wyre,29/04/2023,Finance,Collection Fund Revenue Accts,138A,LANCASHIRE COUNTY COUNCIL,25/04/2023,WPST00103837,230114,0,LCC 23/24 Business Rates,Other Local Authorities
Wyre Council,http://opendatacommunities.org/doc/district-council/wyre,29/04/2023,Finance,Collection Fund Revenue Accts,138A,,04/04/2023,WPST00101616,21250,0,Aug 22 PCC 21/22 Ctax surplus,Other Local Authorities
Wyre Council,http://opendatacommunities.org/doc/district-council/wyre,29/04/2023,Finance,Collection Fund Revenue Accts,138A,LANCASHIRE COUNTY COUNCIL,25/04/2023,WPST00103835,6061937.28,0,LCC - 23/24 Council Tax,Other Local Authorities
Wyre Council,http://opendatacommunities.org/doc/district-council/wyre,29/04/2023,Finance,Collection Fund Revenue Accts,138A,LANCASHIRE FIRE AUTHORITY,25/04/2023,WPST00103836,297670,0,LCC - 22/23 Council Tax Surplus,Other Local Authorities
Wyre Council,http://opendatacommunities.org/doc/district-council/wyre,29/04/2023,Finance,Collection Fund Revenue Accts,138A,LANCASHIRE FIRE AUTHORITY,25/04/2023,WPST00103839,316707,0,Lancs Fire 23/24 Council Tax,Other Local Authorities
Wyre Council,http://opendatacommunities.org/doc/district-council/wyre,29/04/2023,Finance,Collection Fund Revenue Accts,138A,,25/04/2023,WPST00103840,15185,0,Lancs Fire 22/23 Council Tax Surplus,Other Local Authorities
Wyre Council,http://opendatacommunities.org/doc/district-council/wyre,29/04/2023,Finance,Collection Fund Revenue Accts,138A,,25/04/2023,WPST00103843,967970.62,0,Police & Crime Comm Lancs 23/24 Ctax,Other Local Authorities
Wyre Council,http://opendatacommunities.org/doc/district-council/wyre,29/04/2023,Finance,Collection Fund Revenue Accts,138A,,25/04/2023,WPST00103844,46476,0,Police & Crime Comm Lancs 22/23 Ctax sur,Other Local Authorities
Wyre Council,http://opendatacommunities.org/doc/district-council/wyre,29/04/2023,Finance,Collection Fund Revenue Accts,138A,LANCASHIRE COUNTY COUNCIL,04/04/2023,WPST00101595,5754980.73,0,Apr 22 LCC 22/23 Ctax,Other Local Authorities
Wyre Council,http://opendatacommunities.org/doc/district-council/wyre,29/04/2023,Finance,Collection Fund Revenue Accts,138A,,04/04/2023,WPST00101596,136652,0,Apr 22 LCC 21/22 Ctax surplus,Other Local Authorities
Wyre Council,http://opendatacommunities.org/doc/district-council/wyre,29/04/2023,Finance,Collection Fund Revenue Accts,138A,LANCASHIRE FIRE AUTHORITY,04/04/2023,WPST00101599,293656,0,Apr 22 Lancs Fire 22/23 Ctax,Other Local Authorities
Wyre Council,http://opendatacommunities.org/doc/district-council/wyre,29/04/2023,Finance,Collection Fund Revenue Accts,138A,,04/04/2023,WPST00101600,6780,0,Apr 22 Lancs Fire 21/22 Ctax surplus,Other Local Authorities
Wyre Council,http://opendatacommunities.org/doc/district-council/wyre,29/04/2023,Finance,Collection Fund Revenue Accts,138A,,04/04/2023,WPST00101603,898619.57,0,Apr 22 PCC 22/23 Ctax,Other Local Authorities
Wyre Council,http://opendatacommunities.org/doc/district-council/wyre,29/04/2023,Finance,Collection Fund Revenue Accts,138A,,04/04/2023,WPST00101604,21251,0,Apr 22 PCC 21/22 Ctax surplus,Other Local Authorities
Wyre Council,http://opendatacommunities.org/doc/district-council/wyre,29/04/2023,Finance,Collection Fund Revenue Accts,138A,LANCASHIRE COUNTY COUNCIL,04/04/2023,WPST00101607,5754977,0,Aug 22 LCC 22/23 Ctax,Other Local Authorities
Wyre Council,http://opendatacommunities.org/doc/district-council/wyre,29/04/2023,Finance,Collection Fund Revenue Accts,138A,,04/04/2023,WPST00101608,136649,0,Aug 22 LCC 21/22 Ctax surplus,Other Local Authorities
Wyre Council,http://opendatacommunities.org/doc/district-council/wyre,29/04/2023,Finance,Collection Fund Revenue Accts,138A,LANCASHIRE FIRE AUTHORITY,04/04/2023,WPST00101611,293661,0,Aug 22 Lancs Fire 22/23 Ctax,Other Local Authorities
Wyre Council,http://opendatacommunities.org/doc/district-council/wyre,29/04/2023,Finance,Collection Fund Revenue Accts,138A,,04/04/2023,WPST00101612,6782,0,Aug 22 Lancs Fire 21/22 Ctax surplus,Other Local Authorities
Wyre Council,http://opendatacommunities.org/doc/district-council/wyre,29/04/2023,Finance,Collection Fund Revenue Accts,138A,,04/04/2023,WPST00101615,898615,0,Aug 22 PCC 22/23 Ctax,Other Local Authorities
Wyre Council,http://opendatacommunities.org/doc/district-council/wyre,29/04/2023,People and Places,Environmental Services,132B,D Hollowell & Sons LTD,04/04/2023,PE148553,957,0,REDACT,Other Rechargeable Services
Wyre Council,http://opendatacommunities.org/doc/district-council/wyre,29/04/2023,Resources,Environmental Services,132B,D Hollowell & Sons LTD,04/04/2023,RS148554,875,0,REDACT,Other Rechargeable Services
Wyre Council,http://opendatacommunities.org/doc/district-council/wyre,29/04/2023,People and Places,Cultural and Related Services,132A,PPL PRS Ltd,28/04/2023,PE149132,98.18,0,TLT up to 6/4/23,Performing Rights
Wyre Council,http://opendatacommunities.org/doc/district-council/wyre,29/04/2023,People and Places,Cultural and Related Services,132A,PPL PRS Ltd,28/04/2023,PE149131,241.71,0,MH up to 6/4/23 part 1,Performing Rights
Wyre Council,http://opendatacommunities.org/doc/district-council/wyre,29/04/2023,People and Places,Cultural and Related Services,132A,PPL PRS Ltd,28/04/2023,PE149130,1109.89,0,M Hall up to 6/4/23 part2,Performing Rights
Wyre Council,http://opendatacommunities.org/doc/district-council/wyre,29/04/2023,Finance,Cultural and Related Services,132A,,29/04/2023,WPST00104660,599,0,Siemens,Planned Building Maintenance
Wyre Council,http://opendatacommunities.org/doc/district-council/wyre,29/04/2023,People and Places,Cultural and Related Services,132A,Schneider Electric LTD,25/04/2023,PE148755,801.5,0,Marine Hall: Maintenance for01/10/22 to 30/09/23,Planned Building Maintenance
Wyre Council,http://opendatacommunities.org/doc/district-council/wyre,29/04/2023,People and Places,Cultural and Related Services,132A,M D Security,25/04/2023,PE148793,690,0,Mount Pavilion: maintenance and monitoring of fire and security alarm system for 1 year,Planned Building Maintenance
Wyre Council,http://opendatacommunities.org/doc/district-council/wyre,29/04/2023,Resources,Non Service Related Exp,137F,Dell Corporation LTD,21/04/2023,RS148906,32923.71,0, PowerEdge R650 Server(210-AYJZ),"Plant, equipment and furniture"
Wyre Council,http://opendatacommunities.org/doc/district-council/wyre,29/04/2023,Resources,Non Service Related Exp,137F,Dell Corporation LTD,21/04/2023,RS148904,37793.52,0, Dell ME5012 Storage Array(210-BBII),"Plant, equipment and furniture"
Wyre Council,http://opendatacommunities.org/doc/district-council/wyre,29/04/2023,People and Places,Environmental Services,132B,The Columbaria Company,04/04/2023,PE148396,55,0,REDACT,Plaque Inscriptions and Furniture
Wyre Council,http://opendatacommunities.org/doc/district-council/wyre,29/04/2023,People and Places,Environmental Services,132B,The Columbaria Company,21/04/2023,PE148902,430,0,REDACT,Plaque Inscriptions and Furniture
Wyre Council,http://opendatacommunities.org/doc/district-council/wyre,29/04/2023,People and Places,Environmental Services,132B,The Columbaria Company,21/04/2023,PE148902,41,0,REDACT,Plaque Inscriptions and Furniture
Wyre Council,http://opendatacommunities.org/doc/district-council/wyre,29/04/2023,People and Places,Environmental Services,132B,The Columbaria Company,27/04/2023,PE149063,216.25,0,REDACT,Plaque Inscriptions and Furniture
Wyre Council,http://opendatacommunities.org/doc/district-council/wyre,29/04/2023,People and Places,Environmental Services,132B,The Columbaria Company,26/04/2023,PE149041,99,0,REDACT,Plaque Inscriptions and Furniture
Wyre Council,http://opendatacommunities.org/doc/district-council/wyre,29/04/2023,People and Places,Environmental Services,132B,The Columbaria Company,24/04/2023,PE148881,226.75,0,REDACT,Plaque Inscriptions and Furniture
Wyre Council,http://opendatacommunities.org/doc/district-council/wyre,29/04/2023,Finance,Central Services to the Public,131C,SANTANDER,11/04/2023,WPST00102047,598,0,SAN UK ACC RECEIVE,Plastic Cards Processing Fees
Wyre Council,http://opendatacommunities.org/doc/district-council/wyre,29/04/2023,Resources,Support Services,135B,Critiqom LTD,11/04/2023,RS148701,16.62,0,March IQ post - CC - Energy  Surcharge,Postage
Wyre Council,http://opendatacommunities.org/doc/district-council/wyre,29/04/2023,Resources,Support Services,135B,Critiqom LTD,11/04/2023,RS148701,366.1,0,March IQ Post - Planning,Postage
Wyre Council,http://opendatacommunities.org/doc/district-council/wyre,29/04/2023,Resources,Support Services,135B,Critiqom LTD,11/04/2023,RS148701,14.65,0,March IQ Post - Planning -  Energy Surcharge,Postage
Wyre Council,http://opendatacommunities.org/doc/district-council/wyre,29/04/2023,Resources,Central Services to the Public,131C,Critiqom LTD,11/04/2023,RS148701,238.78,0,March IQ post - Electoral,Postage
Wyre Council,http://opendatacommunities.org/doc/district-council/wyre,29/04/2023,Resources,Central Services to the Public,131C,Critiqom LTD,11/04/2023,RS148701,8.5,0,March IQ post - Electoral -  Energy Surcharge,Postage
Wyre Council,http://opendatacommunities.org/doc/district-council/wyre,29/04/2023,Resources,Support Services,135B,Critiqom LTD,11/04/2023,RS148701,467.08,0,March IQ post - Off Serv Admin,Postage
Wyre Council,http://opendatacommunities.org/doc/district-council/wyre,29/04/2023,Resources,Support Services,135B,Critiqom LTD,11/04/2023,RS148701,16.62,0,March IQ post - Off Serv Admin -  Energy Surcharge,Postage
Wyre Council,http://opendatacommunities.org/doc/district-council/wyre,29/04/2023,Resources,Support Services,135B,Critiqom LTD,11/04/2023,RS148693,1820.1,0,NNDR Bills,Postage
Wyre Council,http://opendatacommunities.org/doc/district-council/wyre,29/04/2023,Resources,Support Services,135B,Critiqom LTD,11/04/2023,RS148692,644.25,0,NNDR Bills,Postage
Wyre Council,http://opendatacommunities.org/doc/district-council/wyre,29/04/2023,Resources,Support Services,135B,Critiqom LTD,11/04/2023,RS148691,28.48,0,NNDR Bills Energy Surcharge,Postage
Wyre Council,http://opendatacommunities.org/doc/district-council/wyre,29/04/2023,Resources,Support Services,135B,Critiqom LTD,11/04/2023,RS148701,467.08,0,March IQ post - CC,Postage
Wyre Council,http://opendatacommunities.org/doc/district-council/wyre,29/04/2023,Resources,Central Services to the Public,131C,Critiqom LTD,11/04/2023,RS148701,587.79,0,March  Daily Bills,Postage
Wyre Council,http://opendatacommunities.org/doc/district-council/wyre,29/04/2023,Resources,Central Services to the Public,131C,Critiqom LTD,11/04/2023,RS148701,20.92,0,March Daily Bills - Energy  Surcharge,Postage
Wyre Council,http://opendatacommunities.org/doc/district-council/wyre,29/04/2023,Resources,Central Services to the Public,131C,Critiqom LTD,11/04/2023,RS148693,20883.24,0,Council Tax Bills,Postage
Wyre Council,http://opendatacommunities.org/doc/district-council/wyre,29/04/2023,Resources,Central Services to the Public,131C,Critiqom LTD,11/04/2023,RS148692,3763.16,0,Council Tax Bills,Postage
Wyre Council,http://opendatacommunities.org/doc/district-council/wyre,29/04/2023,Resources,Central Services to the Public,131C,Critiqom LTD,11/04/2023,RS148691,317.33,0,Council Tax Bills Energy Surcharge,Postage
Wyre Council,http://opendatacommunities.org/doc/district-council/wyre,29/04/2023,Resources,Housing General Fund,134A,Critiqom LTD,11/04/2023,RS148702,182.68,0,March Benefit Notifications,Postage
Wyre Council,http://opendatacommunities.org/doc/district-council/wyre,29/04/2023,Resources,Housing General Fund,134A,Critiqom LTD,11/04/2023,RS148691,61.02,0,CTBills & Benefit Notifs Energy Surcharge,Postage
Wyre Council,http://opendatacommunities.org/doc/district-council/wyre,29/04/2023,Resources,Housing General Fund,134A,Critiqom LTD,11/04/2023,RS148692,1040.6,0,CTBills & Benefit Notifs,Postage
Wyre Council,http://opendatacommunities.org/doc/district-council/wyre,29/04/2023,Resources,Housing General Fund,134A,Critiqom LTD,11/04/2023,RS148693,4086.05,0,CTBills & Benefit Notifs,Postage
Wyre Council,http://opendatacommunities.org/doc/district-council/wyre,29/04/2023,Resources,Housing General Fund,134A,Critiqom LTD,11/04/2023,RS148701,60.73,0,March Benefit Notifications,Postage
Wyre Council,http://opendatacommunities.org/doc/district-council/wyre,29/04/2023,Resources,Housing General Fund,134A,Critiqom LTD,11/04/2023,RS148701,2.16,0,March Benefit Notifications -  Energy Surcharge,Postage
Wyre Council,http://opendatacommunities.org/doc/district-council/wyre,29/04/2023,Resources,Central Services to the Public,131C,Critiqom LTD,11/04/2023,RS148702,2430.23,0,March  Daily Bills,Postage
Wyre Council,http://opendatacommunities.org/doc/district-council/wyre,29/04/2023,Finance,Housing General Fund,134A,,11/04/2023,WPST00102048,9819.35,0,HB PAYMENTS Homes for Ukraine,Private Contractors
Wyre Council,http://opendatacommunities.org/doc/district-council/wyre,29/04/2023,Finance,Housing General Fund,134A,,21/04/2023,WPST00103456,761.29,0,Homes for ukraine - 19/4,Private Contractors
Wyre Council,http://opendatacommunities.org/doc/district-council/wyre,29/04/2023,Finance,Housing General Fund,134A,,21/04/2023,WPST00103538,761.29,0,Homes for ukraine - 19/4,Private Contractors
Wyre Council,http://opendatacommunities.org/doc/district-council/wyre,29/04/2023,People and Places,Public Transport,133G,Wyre Marine Services,14/04/2023,PE148838,8685,0,"Fleetwood - Knott End Ferry Service.Schedule of payments12 April 2022             - 11 May 2022                        �,8685.0012 May 2022             - 11 June 2022                       8,685.0012 June 2022            - 11 July 2022",Private Contractors
Wyre Council,http://opendatacommunities.org/doc/district-council/wyre,29/04/2023,People and Places,Environmental Services,132B,M J Wilkinson,18/04/2023,PE148875,1240,0,"Hire of 20T Machine @ 990 Each way Transport @ @ 125 each way Recovery of 3 boats at knott-end (Beach waste)  3 days  23,24,27th march 2023",Private Contractors
Wyre Council,http://opendatacommunities.org/doc/district-council/wyre,29/04/2023,Resources,Parking Services,133F,DANFO (UK) LTD,13/04/2023,RS148274,6315,0,"Provide a sluice for the Central car park at Fleetwood.  The cost is 6,315 and should be paid from 2022/3 budgets.  Agreed payment by Carl Green",Private Contractors
Wyre Council,http://opendatacommunities.org/doc/district-council/wyre,29/04/2023,People and Places,Support Services,135B,Pipescan LTD,05/04/2023,PE148575,720,0,"Empty the main pump chamber and silt chamber at Memorial Park in Fleetwood.  Arranged to visit on site Tuesday 4th April available 1st job, 8-8:30am.  Estimated cost for tanker and jetting unit/confined spaces is 720+vat.   Contact details: Mark Stanley",Private Contractors
Wyre Council,http://opendatacommunities.org/doc/district-council/wyre,29/04/2023,Resources,Housing General Fund,134A,Mapleleaf Letting Centre LTD,28/04/2023,RS149160,700,0,"Refugee Support 3 Hapton Street Thornton, Rent for period 23 April to 22nd May.",Private Contractors
Wyre Council,http://opendatacommunities.org/doc/district-council/wyre,29/04/2023,People and Places,Parking Services,133F,NSL Services Group,11/04/2023,PE148699,4272.84,0,variable fee - car park enforcement NSL March 2023,Private Contractors
Wyre Council,http://opendatacommunities.org/doc/district-council/wyre,29/04/2023,People and Places,Environmental Services,132B,M D Security,12/04/2023,PE148559,85,0,Call out to fault due to water damage at Stanah Pump House,Private Contractors
Wyre Council,http://opendatacommunities.org/doc/district-council/wyre,29/04/2023,Resources,Housing General Fund,134A,Salvation Army,26/04/2023,RS149058,40306.46,0,Refugee Support 2022/23 Q4,Private Contractors
Wyre Council,http://opendatacommunities.org/doc/district-council/wyre,29/04/2023,People and Places,Parking Services,133F,CHIPSIDE LTD,06/04/2023,PE148647,51.25,0,Banking tansaction fees March 23,Private Contractors
Wyre Council,http://opendatacommunities.org/doc/district-council/wyre,29/04/2023,People and Places,Parking Services,133F,CHIPSIDE LTD,05/04/2023,PE148648,43.5,0,DVLA enquiries May 22 to Mar 23,Private Contractors
Wyre Council,http://opendatacommunities.org/doc/district-council/wyre,29/04/2023,People and Places,Parking Services,133F,CHIPSIDE LTD,27/04/2023,PE149104,803.1,0,2022-23 Processing charges Mar 23,Private Contractors
Wyre Council,http://opendatacommunities.org/doc/district-council/wyre,29/04/2023,People and Places,Cultural and Related Services,132A,Scream Theatre Schools LLP,13/04/2023,PE148798,-64,0,Scream Oscars 30/03/23 Catering,Private Contractors
Wyre Council,http://opendatacommunities.org/doc/district-council/wyre,29/04/2023,Resources,Parking Services,133F,Traffic Enforcement Centre,14/04/2023,RS148839,1000,0,Advance funds for debt registration for Wyre Council (Code WB),Private Contractors
Wyre Council,http://opendatacommunities.org/doc/district-council/wyre,29/04/2023,People and Places,Planning and Development Servs,132C,Fylde Promotional Merchandise,13/04/2023,PE148817,1185,0,Wyred Up branded merchandise,Project Costs
Wyre Council,http://opendatacommunities.org/doc/district-council/wyre,29/04/2023,People and Places,Planning and Development Servs,132C,STANTEC UK LTD,13/04/2023,PE148385,5748.72,0,Project: Cleveleys Transport Study (UKSPF: E1: Improvements to town centres & high streets) Consultancy Services: Business case development; Regeneration and economic development services.,Project Costs
Wyre Council,http://opendatacommunities.org/doc/district-council/wyre,29/04/2023,People and Places,Cultural and Related Services,132A,Preston City Council,28/04/2023,PE149120,3541,0,10 thousand Great outdoor brochure,Promotions - General
Wyre Council,http://opendatacommunities.org/doc/district-council/wyre,29/04/2023,People and Places,Cultural and Related Services,132A,Preston City Council,27/04/2023,PE148517,4066,0,Credited in full PE149112,Promotions - General
Wyre Council,http://opendatacommunities.org/doc/district-council/wyre,29/04/2023,People and Places,Cultural and Related Services,132A,Preston City Council,27/04/2023,PE149112,-4066,0,Offset invoice PE148517,Promotions - General
Wyre Council,http://opendatacommunities.org/doc/district-council/wyre,29/04/2023,Resources,Cultural and Related Services,132A,Preston City Council,04/04/2023,RS148516,588,0,"3000 x Holiday Activities and Food clubs - Easter 2023 brochure A5 12pp 150gsm silk, saddle stitched Delivery to Civic Centre FAO Carol Southern",Promotions - General
Wyre Council,http://opendatacommunities.org/doc/district-council/wyre,29/04/2023,People and Places,Planning and Development Servs,132C,Mcgrath Regional Media,17/04/2023,PE147881,2599.98,0,Adverts in Over 50`s Magazine,Promotions - General
Wyre Council,http://opendatacommunities.org/doc/district-council/wyre,29/04/2023,People and Places,Planning and Development Servs,132C,Visual Print and Design Ltd,28/04/2023,PE149124,900,0,100k DL leaflets Fleetwood Market,Promotions - General
Wyre Council,http://opendatacommunities.org/doc/district-council/wyre,29/04/2023,People and Places,Planning and Development Servs,132C,PSM Group,12/04/2023,PE148754,860,0,2 Larfe windows frosted new officesmeet and greet signage leage fitted 2LARGE A0 SIGNAGE TOULETS market open1 diabond sheet printed3 past present and future signs4 A1 Toilet and outside market signs printed,Promotions - General
Wyre Council,http://opendatacommunities.org/doc/district-council/wyre,29/04/2023,People and Places,Environmental Services,132B,Key Engineering & Hygiene Supplies LTD,26/04/2023,PE149038,386.43,0,Urgent Supply and deliver as per quotation 18622,Protective Clothing
Wyre Council,http://opendatacommunities.org/doc/district-council/wyre,29/04/2023,People and Places,Environmental Services,132B,Key Engineering & Hygiene Supplies LTD,28/04/2023,PE149123,37.09,0,Urgent Supply and deliver as per quotation 18622,Protective Clothing
Wyre Council,http://opendatacommunities.org/doc/district-council/wyre,29/04/2023,People and Places,Support Services,135B,Key Engineering & Hygiene Supplies LTD,28/04/2023,PE149123,37.09,0,Urgent Supply and deliver as per quotation 18622,Protective Clothing
Wyre Council,http://opendatacommunities.org/doc/district-council/wyre,29/04/2023,People and Places,Support Services,135B,Key Engineering & Hygiene Supplies LTD,26/04/2023,PE149038,386.43,0,Urgent Supply and deliver as per quotation 18622,Protective Clothing
Wyre Council,http://opendatacommunities.org/doc/district-council/wyre,29/04/2023,People and Places,Environmental Services,132B,Key Engineering & Hygiene Supplies LTD,28/04/2023,PE149123,12.6,0,Urgent Supply and deliver as per quotation 18622,Protective Clothing
Wyre Council,http://opendatacommunities.org/doc/district-council/wyre,29/04/2023,People and Places,Environmental Services,132B,Key Engineering & Hygiene Supplies LTD,28/04/2023,PE149123,48.8,0,Urgent Supply and deliver as per quotation 18622,Protective Clothing
Wyre Council,http://opendatacommunities.org/doc/district-council/wyre,29/04/2023,People and Places,Environmental Services,132B,Amazon Business,12/04/2023,PE148788,44.99,0,Boots Street Cleansing Grounds,Protective Clothing
Wyre Council,http://opendatacommunities.org/doc/district-council/wyre,29/04/2023,People and Places,Environmental Services,132B,Glasdon UK LTD,28/04/2023,PE149117,3624.07,0,"Supply and deliver as your quotation EQ70083935 27/3/238 no Glasdon Jubilee 110 litter binSupplied in black with metal liner, keyed lock, silver banding and litter/dog waste legends with an ashtray kit in gun metal (no fixings) Deliver to Wyre C","Provision of Bins, Boxes and Sacks"
Wyre Council,http://opendatacommunities.org/doc/district-council/wyre,29/04/2023,People and Places,Environmental Services,132B,Key Engineering & Hygiene Supplies LTD,25/04/2023,PE148792,883,0,Supply and deliver the following refuse bags 50 boxes of BL090C1 - Blue refuse bags @ 16.91 per box of 200,"Provision of Bins, Boxes and Sacks"
Wyre Council,http://opendatacommunities.org/doc/district-council/wyre,29/04/2023,People and Places,Environmental Services,132B,Key Engineering & Hygiene Supplies LTD,26/04/2023,PE149043,579,0,"30 boxes of GN090C1 - Green refuse bags @ 18.25 per 200 Delivery to Wyre Council, Copse Road Depot, Copse Road, Fleetwood, FY7 6RP.","Provision of Bins, Boxes and Sacks"
Wyre Council,http://opendatacommunities.org/doc/district-council/wyre,29/04/2023,People and Places,Environmental Services,132B,Veolia ES (UK) LTD,27/04/2023,PE149096,4584.49,0,Bin delivery,"Provision of Bins, Boxes and Sacks"
Wyre Council,http://opendatacommunities.org/doc/district-council/wyre,29/04/2023,People and Places,Cultural and Related Services,132A,HUWS GRAY LTD,27/04/2023,PE149101,127.44,0,6 x strainer posts round,Public Footpaths/Rights Of Way
Wyre Council,http://opendatacommunities.org/doc/district-council/wyre,29/04/2023,Resources,Support Services,135B,District Councils Network C/O Hinckley & Bosworth,28/04/2023,RS149164,3126,0,DCN Annual Membership for Wyre Council,Purchase of Publications
Wyre Council,http://opendatacommunities.org/doc/district-council/wyre,29/04/2023,Resources,Support Services,135B,Quadient UK LTD,27/04/2023,RS149115,196.53,0,im-16 Letter opener total care 29/5/23-28/5/24,Purchase of Tools or Equipment
Wyre Council,http://opendatacommunities.org/doc/district-council/wyre,29/04/2023,People and Places,Central Services to the Public,131C,Key Engineering & Hygiene Supplies LTD,24/04/2023,PE149005,72.95,0,"Supply and deliver as per quotation 18675 13/4/235 First Aid kitsFor Elections Delivery FAO Ken White, Wyre Council, Copse Road Depot, Copse Road, Fleetwood, FY7 6RP",Purchase of Tools or Equipment
Wyre Council,http://opendatacommunities.org/doc/district-council/wyre,29/04/2023,People and Places,Environmental Services,132B,Killgerm Chemicals LTD,28/04/2023,PE149119,6.84,0,Dust Nozzle Cap DUO13,Purchase of Tools or Equipment
Wyre Council,http://opendatacommunities.org/doc/district-council/wyre,29/04/2023,People and Places,Environmental Services,132B,Killgerm Chemicals LTD,28/04/2023,PE149119,5.85,0,Insect Viewer INSECTVIEW,Purchase of Tools or Equipment
Wyre Council,http://opendatacommunities.org/doc/district-council/wyre,29/04/2023,People and Places,Environmental Services,132B,Killgerm Chemicals LTD,28/04/2023,PE149119,26.51,0,DR5 Mini Flex Tip DR5FLEXTIP,Purchase of Tools or Equipment
Wyre Council,http://opendatacommunities.org/doc/district-council/wyre,29/04/2023,People and Places,Support Services,135B,Seddons (Plant & Engineers) LTD,24/04/2023,PE148734,720.68,0,Taskman PW150 PH11 Petrol Pressure Washer - 2250 PSI,Purchase of Tools or Equipment
Wyre Council,http://opendatacommunities.org/doc/district-council/wyre,29/04/2023,People and Places,Cultural and Related Services,132A,HUWS GRAY LTD,14/04/2023,PE148760,180.98,0,"Gorilla tubs, stacking boxes, hanging brackets",Purchase of Tools or Equipment
Wyre Council,http://opendatacommunities.org/doc/district-council/wyre,29/04/2023,People and Places,Support Services,135B,Amazon Business,14/04/2023,PE148789,14.98,0,jerry can Gareth bates,Purchase of Tools or Equipment
Wyre Council,http://opendatacommunities.org/doc/district-council/wyre,29/04/2023,People and Places,Planning and Development Servs,132C,Amazon Business,28/04/2023,PE149170,13.82,0,Spray packs @ 20.80brackets and cables @ 31.48Tools @ 52.89Toilet brushes @ 16.84,Purchase of Tools or Equipment
Wyre Council,http://opendatacommunities.org/doc/district-council/wyre,29/04/2023,People and Places,Planning and Development Servs,132C,Amazon Business,28/04/2023,PE149171,16.84,0,Spray packs @ 20.80brackets and cables @ 31.48Tools @ 52.89Toilet brushes @ 16.84,Purchase of Tools or Equipment
Wyre Council,http://opendatacommunities.org/doc/district-council/wyre,29/04/2023,People and Places,Environmental Services,132B,Amazon Business,28/04/2023,PE149157,13.82,0,Spray packs @ 20.80brackets and cables @ 31.48Tools @ 52.89Toilet brushes @ 16.84,Purchase of Tools or Equipment
Wyre Council,http://opendatacommunities.org/doc/district-council/wyre,29/04/2023,People and Places,Environmental Services,132B,Amazon Business,28/04/2023,PE149170,6.98,0,Spray packs @ 20.80brackets and cables @ 31.48Tools @ 52.89Toilet brushes @ 16.84,Purchase of Tools or Equipment
Wyre Council,http://opendatacommunities.org/doc/district-council/wyre,29/04/2023,Resources,Cultural and Related Services,132A,Amazon Business,14/04/2023,RS148818,130,0,"Wall Mounted Leaflet Dispenser Holders Brochure Clear Pockets - Office, Reception (8 X A5)65.00 (78.00 incl. VAT)Size Name: 8 X A52 units",Purchase of Tools or Equipment
Wyre Council,http://opendatacommunities.org/doc/district-council/wyre,29/04/2023,People and Places,Cultural and Related Services,132A,QUBICAAMF UK Ltd,25/04/2023,PE149014,8355,0,"EZ Touch Lane Machine, 220V CE - European Edition. PLease deliver to Thornton YMCA, Victoria Road East, Thornton Cleveleys, FY5 3SX",Purchase of Tools or Equipment
Wyre Council,http://opendatacommunities.org/doc/district-council/wyre,29/04/2023,People and Places,Cultural and Related Services,132A,Blackout Theatre Company,28/04/2023,PE149121,2392,0,"The Lion, the witch and the wardrobe ticket sales",Refund of Ticket Sales to Ext Promoters
Wyre Council,http://opendatacommunities.org/doc/district-council/wyre,29/04/2023,People and Places,Cultural and Related Services,132A,Scream Theatre Schools LLP,13/04/2023,PE148798,1702.5,0,Scream Oscars 30/03/23 Ticket sales,Refund of Ticket Sales to Ext Promoters
Wyre Council,http://opendatacommunities.org/doc/district-council/wyre,29/04/2023,People and Places,Cultural and Related Services,132A,KR Dance,19/04/2023,PE148897,1310,0,Final settlement related to KR Dance for ticket sales,Refund of Ticket Sales to Ext Promoters
Wyre Council,http://opendatacommunities.org/doc/district-council/wyre,29/04/2023,People and Places,Planning and Development Servs,132C,Trident Rentals Ltd,24/04/2023,PE148969,489.67,0,rental compactor,Refuse Collection
Wyre Council,http://opendatacommunities.org/doc/district-council/wyre,29/04/2023,People and Places,Planning and Development Servs,132C,Trident Rentals Ltd,04/04/2023,PE148503,489.67,0,rental compactor March 23,Refuse Collection
Wyre Council,http://opendatacommunities.org/doc/district-council/wyre,29/04/2023,People and Places,Environmental Services,132B,Veolia ES (UK) LTD,27/04/2023,PE149096,178535.49,0,Domestic Waste Management Collection Contract 2022/23,Refuse Collection Contract
Wyre Council,http://opendatacommunities.org/doc/district-council/wyre,29/04/2023,People and Places,Environmental Services,132B,Veolia ES (UK) LTD,27/04/2023,PE149096,1623.97,0,Pension pass through,Refuse Collection Contract
Wyre Council,http://opendatacommunities.org/doc/district-council/wyre,29/04/2023,People and Places,Environmental Services,132B,Calico Enterprise,26/04/2023,PE148710,1751.96,0,Bulky Matters Contract Calico 2022/23,Refuse Collection Contract
Wyre Council,http://opendatacommunities.org/doc/district-council/wyre,29/04/2023,People and Places,Environmental Services,132B,Calico Enterprise,26/04/2023,PE148709,2161.31,0,Bulky Matters Contract Calico 2022/23,Refuse Collection Contract
Wyre Council,http://opendatacommunities.org/doc/district-council/wyre,29/04/2023,People and Places,Environmental Services,132B,Calico Enterprise,26/04/2023,PE148708,2433.3,0,Bulky Matters Contract Calico 2022/23,Refuse Collection Contract
Wyre Council,http://opendatacommunities.org/doc/district-council/wyre,29/04/2023,People and Places,Environmental Services,132B,Calico Enterprise,26/04/2023,PE148707,1751.96,0,Offset via PE149029,Refuse Collection Contract
Wyre Council,http://opendatacommunities.org/doc/district-council/wyre,29/04/2023,People and Places,Environmental Services,132B,Calico Enterprise,26/04/2023,PE148706,1946.64,0,Bulky Matters Contract Calico 2022/23,Refuse Collection Contract
Wyre Council,http://opendatacommunities.org/doc/district-council/wyre,29/04/2023,People and Places,Environmental Services,132B,Calico Enterprise,26/04/2023,PE148704,1746.64,0,Bulky Matters Contract Calico 2022/23,Refuse Collection Contract
Wyre Council,http://opendatacommunities.org/doc/district-council/wyre,29/04/2023,People and Places,Environmental Services,132B,Calico Enterprise,04/04/2023,PE148522,1946.64,0,Bulky Matters Contract Calico 2022/23,Refuse Collection Contract
Wyre Council,http://opendatacommunities.org/doc/district-council/wyre,29/04/2023,People and Places,Environmental Services,132B,Calico Enterprise,26/04/2023,PE149029,-1751.96,0,Offset via PE148707,Refuse Collection Contract
Wyre Council,http://opendatacommunities.org/doc/district-council/wyre,29/04/2023,People and Places,Environmental Services,132B,Calico Enterprise,26/04/2023,PE148711,2433.3,0,Bulky Matters Contract Calico 2022/23,Refuse Collection Contract
Wyre Council,http://opendatacommunities.org/doc/district-council/wyre,29/04/2023,People and Places,Public Transport,133G,Andrew Signs LTD,11/04/2023,PE148715,798.5,0,Polycarbonate sheets - Bus shelters,Repairs to Non-WBC Buildings
Wyre Council,http://opendatacommunities.org/doc/district-council/wyre,29/04/2023,People and Places,Public Transport,133G,Ace Shelters,06/04/2023,PE148663,5660,0,"*** Confirmation of verbal order ***Please supply and install 3 bay full end bus shelter with Green Roof in 9005 Black with 6mm TSG - to include full length perch seat, DRU and flag,Installation to Carr Lane, Hambleton to existing site (details alread",Repairs to Non-WBC Buildings
Wyre Council,http://opendatacommunities.org/doc/district-council/wyre,29/04/2023,People and Places,Public Transport,133G,Ace Shelters,06/04/2023,PE148663,300,0,"*** Confirmation of verbal order ***Please supply and install 3 bay full end bus shelter with Green Roof in 9005 Black with 6mm TSG - to include full length perch seat, DRU and flag,Installation to Carr Lane, Hambleton to existing site labour",Repairs to Non-WBC Buildings
Wyre Council,http://opendatacommunities.org/doc/district-council/wyre,29/04/2023,People and Places,Cultural and Related Services,132A,Greens Environmental LTD,25/04/2023,PE149036,975,0,"To emergency emptying of pump chamber (30,000 litres)  to enable retrieval of concrete cover (13 April)",Responsive Building Maintenance
Wyre Council,http://opendatacommunities.org/doc/district-council/wyre,29/04/2023,People and Places,Cultural and Related Services,132A,ADP ENVIRONMENTAL SERVICES LTD,11/04/2023,PE148481,407,0,2023 Annual 1 year service and maintenance agreement including de-sludge and tankering for 1 x Klargester treatment plant at Rossall Tower Observatory Fleetwood,Responsive Building Maintenance
Wyre Council,http://opendatacommunities.org/doc/district-council/wyre,29/04/2023,People and Places,Planning and Development Servs,132C,ADP ENVIRONMENTAL SERVICES LTD,11/04/2023,PE148479,2513.5,0,NSFP100-2023Annual Service & Maintenance Agreement- Including Tankering. 1x oil seperator NSFP100 Visit- March 2023,Responsive Building Maintenance
Wyre Council,http://opendatacommunities.org/doc/district-council/wyre,29/04/2023,People and Places,Planning and Development Servs,132C,ADP ENVIRONMENTAL SERVICES LTD,11/04/2023,PE148478,1067,0,NSFP006-2023 Annual Service  & Maintenance agreement - including tankering - 1st service visit due march 2023- 1 x oil seperator NSFP006,Responsive Building Maintenance
Wyre Council,http://opendatacommunities.org/doc/district-council/wyre,29/04/2023,People and Places,Cultural and Related Services,132A,John Carney,14/04/2023,PE148842,280,0,Marine Hall electric storage beer gardens.  Carry out all urgent repairs to above property to stop water ingress,Responsive Building Maintenance
Wyre Council,http://opendatacommunities.org/doc/district-council/wyre,29/04/2023,People and Places,Cultural and Related Services,132A,John Carney,14/04/2023,PE148841,750,0,Marine Hall Office Ceiling - roofing works to flat roof bay includeing callout on 25/03/23.  Repair roof over disabled toilets near cables,Responsive Building Maintenance
Wyre Council,http://opendatacommunities.org/doc/district-council/wyre,29/04/2023,People and Places,Cultural and Related Services,132A,John Carney,14/04/2023,PE148845,380,0,"Cottam Hall, Poulton: Carry out all roof tile repairs.  Over kitchen area and also at rear of builgind and in valleys replacing all tiles",Responsive Building Maintenance
Wyre Council,http://opendatacommunities.org/doc/district-council/wyre,29/04/2023,People and Places,Environmental Services,132B,John Carney,14/04/2023,PE148844,220,0,"Danfo PC, Memorial Gardens, Par Ave, Fleetwood: Carry out all repairs to different areas of toilets",Responsive Building Maintenance
Wyre Council,http://opendatacommunities.org/doc/district-council/wyre,29/04/2023,People and Places,Cultural and Related Services,132A,John Carney,12/04/2023,PE148732,120,0,"Carrying out minor roofing repairs to roof at waterfront bar, Marine Gardens Fleetwood",Responsive Building Maintenance
Wyre Council,http://opendatacommunities.org/doc/district-council/wyre,29/04/2023,People and Places,Cultural and Related Services,132A,John Carney,14/04/2023,PE148843,1450,0,"Colonade Marine Gardens: Carry out all roofing works to above building, stripping off all felt and boards. Replace timber where needed and re-board using 3/4"" OSB. Felt over boards using 2 layers of HT polyester torch on felt",Responsive Building Maintenance
Wyre Council,http://opendatacommunities.org/doc/district-council/wyre,29/04/2023,People and Places,Cultural and Related Services,132A,EVOLUTION CONSTRUCTION GROUP LTD,05/04/2023,PE148595,61.34,0,Cottam Hall Pavilion: Following attempted break in on Saturday night; replace broken door handle to main doors and re-fix window board removed to front of building (exposing original glazed screen). Liaise with Keely if the lock has been damaged re replac,Responsive Building Maintenance
Wyre Council,http://opendatacommunities.org/doc/district-council/wyre,29/04/2023,People and Places,Cultural and Related Services,132A,EVOLUTION CONSTRUCTION GROUP LTD,06/04/2023,PE148600,178.27,0,"Cottam Hall Pavilion: WATER LEAK - URGENT REPAIRS: Take down and make sge all areas of water damaged ceiling to the changing room to ladies` end, door just before the shower room.  Light ftg to be made safe by EAS prior to commencement.",Responsive Building Maintenance
Wyre Council,http://opendatacommunities.org/doc/district-council/wyre,29/04/2023,People and Places,Cultural and Related Services,132A,EVOLUTION CONSTRUCTION GROUP LTD,05/04/2023,PE148586,110.48,0,Cottam Hall Pavilion: Vandalism/ break in: Repairs to fron entrance doors and ensure secure following attempted break in by kicking bottom threshold and panels of doors in 27/2/23,Responsive Building Maintenance
Wyre Council,http://opendatacommunities.org/doc/district-council/wyre,29/04/2023,People and Places,Cultural and Related Services,132A,EVOLUTION CONSTRUCTION GROUP LTD,06/04/2023,PE148601,130.2,0,"Promenade Unit Central Car Park, Fleetwood: Ceiling repairs following burst pipe in Dec.",Responsive Building Maintenance
Wyre Council,http://opendatacommunities.org/doc/district-council/wyre,29/04/2023,People and Places,Cultural and Related Services,132A,EVOLUTION CONSTRUCTION GROUP LTD,06/04/2023,PE148598,24.55,0,"Store room (kiosk 7), the promenade, Fleetwood, FY7 6QE. Works- extreme door repai. Please carry out repair to external door which has dropped (hinge broke)",Responsive Building Maintenance
Wyre Council,http://opendatacommunities.org/doc/district-council/wyre,29/04/2023,People and Places,Cultural and Related Services,132A,EVOLUTION CONSTRUCTION GROUP LTD,05/04/2023,PE148589,49.1,0,"Central car park building, the Promenade, Fleetwood: Ease and adjust doors to electric meter cupboard",Responsive Building Maintenance
Wyre Council,http://opendatacommunities.org/doc/district-council/wyre,29/04/2023,People and Places,Support Services,135B,EVOLUTION CONSTRUCTION GROUP LTD,06/04/2023,PE148585,61.38,0,Civic Centre: Ease fire door opposite room 150,Responsive Building Maintenance
Wyre Council,http://opendatacommunities.org/doc/district-council/wyre,29/04/2023,People and Places,Support Services,135B,EVOLUTION CONSTRUCTION GROUP LTD,06/04/2023,PE148603,307.72,0,Civic Centre: Replace cracked window pane to room 26,Responsive Building Maintenance
Wyre Council,http://opendatacommunities.org/doc/district-council/wyre,29/04/2023,People and Places,Cultural and Related Services,132A,EVOLUTION CONSTRUCTION GROUP LTD,05/04/2023,PE148579,117.69,0,Cottam Hall Pavilion: VANDALISM 07/02/23. Carry out repairs to exterior.  Re-build brickwork which supports end of timber walkway. Repair rotten/damaged boards above brickwork and check strength of joists. Repair damaged soffts (note asbestos content) etc,Responsive Building Maintenance
Wyre Council,http://opendatacommunities.org/doc/district-council/wyre,29/04/2023,People and Places,Central Services to the Public,131C,EVOLUTION CONSTRUCTION GROUP LTD,06/04/2023,PE148609,24.55,0,Teanlowe 60+ Community Centre: Repair/re-glaze door,Responsive Building Maintenance
Wyre Council,http://opendatacommunities.org/doc/district-council/wyre,29/04/2023,People and Places,Cultural and Related Services,132A,EVOLUTION CONSTRUCTION GROUP LTD,06/04/2023,PE148610,158.91,0,Memorial Park Pavilion: VANDALISM: Re-fix drain pipe and repair shutter both of which were vandalised over the weekend,Responsive Building Maintenance
Wyre Council,http://opendatacommunities.org/doc/district-council/wyre,29/04/2023,People and Places,Cultural and Related Services,132A,EVOLUTION CONSTRUCTION GROUP LTD,05/04/2023,PE148582,80.36,0,Mount Pavlion: VANDALISM - clear away all broken glass from smashed window and reglaze,Responsive Building Maintenance
Wyre Council,http://opendatacommunities.org/doc/district-council/wyre,29/04/2023,People and Places,Cultural and Related Services,132A,EVOLUTION CONSTRUCTION GROUP LTD,05/04/2023,PE148588,169.27,0,Mount Pavilion: Re-glaze 3 panes of glass to windows,Responsive Building Maintenance
Wyre Council,http://opendatacommunities.org/doc/district-council/wyre,29/04/2023,People and Places,Cultural and Related Services,132A,EVOLUTION CONSTRUCTION GROUP LTD,05/04/2023,PE148590,36.83,0,Mount Grounds: URGENT - VANDALISM - remove graffiti from windows,Responsive Building Maintenance
Wyre Council,http://opendatacommunities.org/doc/district-council/wyre,29/04/2023,People and Places,Cultural and Related Services,132A,EVOLUTION CONSTRUCTION GROUP LTD,11/04/2023,PE148611,271.5,0,Mount Cottages Vandalism Confirmation Ordewr. Please repair all broken windows as discussed.,Responsive Building Maintenance
Wyre Council,http://opendatacommunities.org/doc/district-council/wyre,29/04/2023,People and Places,Cultural and Related Services,132A,EVOLUTION CONSTRUCTION GROUP LTD,11/04/2023,PE148599,233.73,0,Mount Cottages. Please replace bothj front door locks to cottage east and west- Locks to be suited. Locks to be external mortice lock to suit Euro cylinder barrel with new handles in black traditional sytle to suit the cottages as discussed with Alistair.,Responsive Building Maintenance
Wyre Council,http://opendatacommunities.org/doc/district-council/wyre,29/04/2023,People and Places,Planning and Development Servs,132C,EVOLUTION CONSTRUCTION GROUP LTD,05/04/2023,PE148581,51.6,0,"Copse Rd Depot: Investigate and rectify fault to internal door handle to conference room, previously repaired but now cannot be secured and may require backplate as extra holes have already been drilled in previous repair",Responsive Building Maintenance
Wyre Council,http://opendatacommunities.org/doc/district-council/wyre,29/04/2023,People and Places,Planning and Development Servs,132C,EVOLUTION CONSTRUCTION GROUP LTD,05/04/2023,PE148594,36.83,0,Fleetwood Market: Investigate and rectify fault to studio front rh door which is not closing correctly leading to it being slammed and setting off the alarm,Responsive Building Maintenance
Wyre Council,http://opendatacommunities.org/doc/district-council/wyre,29/04/2023,People and Places,Planning and Development Servs,132C,EVOLUTION CONSTRUCTION GROUP LTD,06/04/2023,PE148593,60.78,0,Fleetwood Market: Repair/replace toilet seat to studios toilet,Responsive Building Maintenance
Wyre Council,http://opendatacommunities.org/doc/district-council/wyre,29/04/2023,People and Places,Planning and Development Servs,132C,EVOLUTION CONSTRUCTION GROUP LTD,06/04/2023,PE148591,36.83,0,Fleetwood Market: Carefully ease/adjust pair of fire doors between annexe and main hall (adjacent to old office) enabling them to close properly and Dorgard system to operate,Responsive Building Maintenance
Wyre Council,http://opendatacommunities.org/doc/district-council/wyre,29/04/2023,People and Places,Cultural and Related Services,132A,EVOLUTION CONSTRUCTION GROUP LTD,11/04/2023,PE148606,838.07,0,Marine Hall  reglaze the following vandalised windows: 2x large exterior windows with security glass 1x interior window,Responsive Building Maintenance
Wyre Council,http://opendatacommunities.org/doc/district-council/wyre,29/04/2023,People and Places,Cultural and Related Services,132A,EVOLUTION CONSTRUCTION GROUP LTD,11/04/2023,PE148592,344.35,0,MArine Hall. Works- please replace the fire door that leads from the mian kitchen into the hall as discussed with ALSTAIR,Responsive Building Maintenance
Wyre Council,http://opendatacommunities.org/doc/district-council/wyre,29/04/2023,People and Places,Cultural and Related Services,132A,EVOLUTION CONSTRUCTION GROUP LTD,05/04/2023,PE148584,54.06,0,Marine Hall: Supply and fit self closing arm to dressing room 6 main door,Responsive Building Maintenance
Wyre Council,http://opendatacommunities.org/doc/district-council/wyre,29/04/2023,People and Places,Cultural and Related Services,132A,EVOLUTION CONSTRUCTION GROUP LTD,05/04/2023,PE148583,24.55,0,"Ladies Toilets, The Esplanade, Fleetwood: Refit missing ceiling tiles which have come down due to water ingress, there are some hanging wires.  EAS should be on site and they will be able to confirm if wires/fittings are safe to enclose",Responsive Building Maintenance
Wyre Council,http://opendatacommunities.org/doc/district-council/wyre,29/04/2023,People and Places,Cultural and Related Services,132A,EVOLUTION CONSTRUCTION GROUP LTD,06/04/2023,PE148607,24.55,0,"Marine Hall. Works- Vandalism, please make repairs to doors at back stage, which have been brojen into again- please also install anti-vandal rollers",Responsive Building Maintenance
Wyre Council,http://opendatacommunities.org/doc/district-council/wyre,29/04/2023,People and Places,Cultural and Related Services,132A,EVOLUTION CONSTRUCTION GROUP LTD,06/04/2023,PE148604,36.83,0,Marine Hall works- make necessary repairs to exterior vent under colonnade photo sent under seperate cover,Responsive Building Maintenance
Wyre Council,http://opendatacommunities.org/doc/district-council/wyre,29/04/2023,People and Places,Cultural and Related Services,132A,EVOLUTION CONSTRUCTION GROUP LTD,06/04/2023,PE148608,173.33,0,Marine Hall- investigate and rectify the following ceilling leaks at marine hall:1. Disables toilets. 2. Main Ladies Toilets. 3. In the annex near the toilets. 4. in the foyer near the corner. 5. in the annex in the corner usual spot . where possible plea,Responsive Building Maintenance
Wyre Council,http://opendatacommunities.org/doc/district-council/wyre,29/04/2023,People and Places,Cultural and Related Services,132A,EVOLUTION CONSTRUCTION GROUP LTD,06/04/2023,PE148602,74.96,0,Rossall Point Observatory: Fit Self-closing device to FD30 door adjoining bird watch room,Responsive Building Maintenance
Wyre Council,http://opendatacommunities.org/doc/district-council/wyre,29/04/2023,People and Places,Planning and Development Servs,132C,EVOLUTION CONSTRUCTION GROUP LTD,05/04/2023,PE148580,85.93,0,"Croft Court, Butts Close, Thronton: Seal letterboxes at units 14 and 18",Responsive Building Maintenance
Wyre Council,http://opendatacommunities.org/doc/district-council/wyre,29/04/2023,People and Places,Support Services,135B,EVOLUTION CONSTRUCTION GROUP LTD,05/04/2023,PE148596,54.9,0,Garstang Rd Cemetery: re-seal area above main window where it is believed flies are coming in between wooden panels,Routine Maintenance
Wyre Council,http://opendatacommunities.org/doc/district-council/wyre,29/04/2023,People and Places,Cultural and Related Services,132A,WATER PLUS LTD,13/04/2023,PE148357,451.1,0,"Sewerage Charge Marine Hall, The Esplanade, FLEETWOOD, FY7 6HF",Sewerage
Wyre Council,http://opendatacommunities.org/doc/district-council/wyre,29/04/2023,People and Places,Cultural and Related Services,132A,WATER PLUS LTD,13/04/2023,PE148357,54.3,0,"Sewerage Charge Playing Fields, Cottam Hall, POULTON LE FYLDE, FY6 7RG",Sewerage
Wyre Council,http://opendatacommunities.org/doc/district-council/wyre,29/04/2023,People and Places,Cultural and Related Services,132A,WATER PLUS LTD,13/04/2023,PE148357,58.25,0,"Sewerage Charge Marine Lake, Laidleys Walk, FLEETWOOD, FY7 7HS",Sewerage
Wyre Council,http://opendatacommunities.org/doc/district-council/wyre,29/04/2023,People and Places,Cultural and Related Services,132A,WATER PLUS LTD,13/04/2023,PE148357,10.25,0,"Sewerage Charge Park, North Drive, THORNTON CLEVELEYS, FY5 3AR",Sewerage
Wyre Council,http://opendatacommunities.org/doc/district-council/wyre,29/04/2023,People and Places,Cultural and Related Services,132A,WATER PLUS LTD,13/04/2023,PE148357,6.73,0,"Sewerage Charge Club House, River Road, THORNTON-CLEVELEYS, FY5 5LR",Sewerage
Wyre Council,http://opendatacommunities.org/doc/district-council/wyre,29/04/2023,People and Places,Cultural and Related Services,132A,WATER PLUS LTD,13/04/2023,PE148357,5.56,0,"Sewerage Charge Wyreside Ecology Centre, River Road, THORNTON-CLEVELEYS,  FY5 5LR",Sewerage
Wyre Council,http://opendatacommunities.org/doc/district-council/wyre,29/04/2023,People and Places,Environmental Services,132B,WATER PLUS LTD,13/04/2023,PE148357,12.59,0,"Sewerage Charge Cemetery, Garstang Road East, POULTON LE FYLDE, FY6 8JH",Sewerage
Wyre Council,http://opendatacommunities.org/doc/district-council/wyre,29/04/2023,People and Places,Environmental Services,132B,WATER PLUS LTD,13/04/2023,PE148357,41.86,0,"Sewerage Charge Conveniences, Bold Street, FLEETWOOD, FY7 6HL",Sewerage
Wyre Council,http://opendatacommunities.org/doc/district-council/wyre,29/04/2023,People and Places,Environmental Services,132B,WATER PLUS LTD,13/04/2023,PE148357,28.98,0,"Sewerage Charge Fleetwood Corporation Toilets, Beach Road, FLEETWOOD, FY7  8PH",Sewerage
Wyre Council,http://opendatacommunities.org/doc/district-council/wyre,29/04/2023,People and Places,Environmental Services,132B,WATER PLUS LTD,13/04/2023,PE148357,7.9,0,"Sewerage Charge Public Convenience, View Lune, Bourne May Road, Knott  End-On-Sea, POULTON-LE-FYLDE, FY6 0AB",Sewerage
Wyre Council,http://opendatacommunities.org/doc/district-council/wyre,29/04/2023,People and Places,Environmental Services,132B,WATER PLUS LTD,13/04/2023,PE148357,72.9,0,"Sewerage Charge Public Conveniences, Rough Lea Road, THORNTON CLEVELEYS,  FY5 1DA",Sewerage
Wyre Council,http://opendatacommunities.org/doc/district-council/wyre,29/04/2023,People and Places,Environmental Services,132B,WATER PLUS LTD,13/04/2023,PE148357,93.33,0,"Sewerage Charge Public Toilet, Rough Lea Road, THORNTON CLEVELEYS, FY5  1BW",Sewerage
Wyre Council,http://opendatacommunities.org/doc/district-council/wyre,29/04/2023,People and Places,Environmental Services,132B,WATER PLUS LTD,13/04/2023,PE148357,12.59,0,"Sewerage Charge Toilets, Higher Lane, Scorton, PRESTON, PR3 1BE",Sewerage
Wyre Council,http://opendatacommunities.org/doc/district-council/wyre,29/04/2023,People and Places,Environmental Services,132B,WATER PLUS LTD,13/04/2023,PE148357,24.3,0,"Sewerage Charge Toilets, Preston Street, FLEETWOOD, FY7 6JA",Sewerage
Wyre Council,http://opendatacommunities.org/doc/district-council/wyre,29/04/2023,People and Places,Environmental Services,132B,WATER PLUS LTD,13/04/2023,PE148357,5.56,0,"Sewerage Charge Toilets, Smallwood Hey, Pilling, PRESTON, PR3 6HB",Sewerage
Wyre Council,http://opendatacommunities.org/doc/district-council/wyre,29/04/2023,People and Places,Environmental Services,132B,WATER PLUS LTD,13/04/2023,PE148357,34.83,0,"Sewerage Charge Toilets, Teanlowe Centre, POULTON-LE-FYLDE, FY6 7DF",Sewerage
Wyre Council,http://opendatacommunities.org/doc/district-council/wyre,29/04/2023,People and Places,Environmental Services,132B,WATER PLUS LTD,13/04/2023,PE148357,17.32,0,"Sewerage Charge Public Toilets, Off Quail Holme Road, Knott End-On-Sea,  POULTON-LE-FYLDE, FY6 0BT",Sewerage
Wyre Council,http://opendatacommunities.org/doc/district-council/wyre,29/04/2023,People and Places,Environmental Services,132B,WATER PLUS LTD,13/04/2023,PE148357,9.07,0,"Sewerage Charge Toilet Block, Lawson Road, Little Thornton, THORNTON  CLEVELEYS, FY5 5DX",Sewerage
Wyre Council,http://opendatacommunities.org/doc/district-council/wyre,29/04/2023,People and Places,Environmental Services,132B,WATER PLUS LTD,13/04/2023,PE148357,14.93,0,"Sewerage Charge Toilet Block, Park Hill Road, Garstang, PRESTON, PR3 1EL",Sewerage
Wyre Council,http://opendatacommunities.org/doc/district-council/wyre,29/04/2023,People and Places,Environmental Services,132B,WATER PLUS LTD,13/04/2023,PE148357,11.42,0,"Sewerage Charge Toilets Rear, White Bull Hotel, The Square, High Street,  Great Eccleston, PRESTON, PR3 0ZB",Sewerage
Wyre Council,http://opendatacommunities.org/doc/district-council/wyre,29/04/2023,People and Places,Environmental Services,132B,WATER PLUS LTD,13/04/2023,PE148357,88.52,0,"Sewerage Charge Toilets, Car Park, High Street, Garstang, PRESTON, PR3  1FA",Sewerage
Wyre Council,http://opendatacommunities.org/doc/district-council/wyre,29/04/2023,People and Places,Support Services,135B,WATER PLUS LTD,13/04/2023,PE148357,5208.52,0,"Sewerage Charge Wyre Civic Centre, Breck Road, POULTON-LE-FYLDE, FY6 7PU",Sewerage
Wyre Council,http://opendatacommunities.org/doc/district-council/wyre,29/04/2023,People and Places,Central Services to the Public,131C,WATER PLUS LTD,13/04/2023,PE148357,48.89,0,"Sewerage Charge Day Centre, Queensway, POULTON LE FYLDE, FY6 7ST",Sewerage
Wyre Council,http://opendatacommunities.org/doc/district-council/wyre,29/04/2023,People and Places,Cultural and Related Services,132A,WATER PLUS LTD,13/04/2023,PE148357,3.22,0,"Sewerage Charge Changing Room King George V Pl, Fleetwood Road,  FLEETWOOD, FY7 8AS",Sewerage
Wyre Council,http://opendatacommunities.org/doc/district-council/wyre,29/04/2023,People and Places,Cultural and Related Services,132A,WATER PLUS LTD,13/04/2023,PE148357,14.93,0,"Sewerage Charge Ashdell Nursery Bowling Green &amp; Pc`S, Victoria Road  East, THORNTON CLEVELEYS, FY5 3SZ",Sewerage
Wyre Council,http://opendatacommunities.org/doc/district-council/wyre,29/04/2023,People and Places,Cultural and Related Services,132A,WATER PLUS LTD,13/04/2023,PE148357,1650.11,0,"Sewerage Charge Marine Gardens, The Esplanade, FLEETWOOD, FY7 6HE",Sewerage
Wyre Council,http://opendatacommunities.org/doc/district-council/wyre,29/04/2023,People and Places,Cultural and Related Services,132A,WATER PLUS LTD,13/04/2023,PE148357,245.9,0,"Sewerage Charge Paddling Pool, Marine Gardens, FLEETWOOD, FY7 6HE",Sewerage
Wyre Council,http://opendatacommunities.org/doc/district-council/wyre,29/04/2023,People and Places,Cultural and Related Services,132A,WATER PLUS LTD,13/04/2023,PE148357,22.6,0,"Sewerage Charge Toilets, Warrenhurst Park, FLEETWOOD, FY7 6SH",Sewerage
Wyre Council,http://opendatacommunities.org/doc/district-council/wyre,29/04/2023,People and Places,Cultural and Related Services,132A,WATER PLUS LTD,13/04/2023,PE148357,5.56,0,"Sewerage Charge Mount Pavilion, The Esplanade, FLEETWOOD, FY7 6HF",Sewerage
Wyre Council,http://opendatacommunities.org/doc/district-council/wyre,29/04/2023,People and Places,Environmental Services,132B,WATER PLUS LTD,13/04/2023,PE148357,12.59,0,"Sewerage Charge Cemetery &amp; Offices, Beach Road, FLEETWOOD, FY7 8PN",Sewerage
Wyre Council,http://opendatacommunities.org/doc/district-council/wyre,29/04/2023,People and Places,Environmental Services,132B,WATER PLUS LTD,13/04/2023,PE148357,7.9,0,"Sewerage Charge Fleetwood Corporation Cemetery, Beach Road, FLEETWOOD,  FY7 8PH",Sewerage
Wyre Council,http://opendatacommunities.org/doc/district-council/wyre,29/04/2023,People and Places,Planning and Development Servs,132C,WATER PLUS LTD,13/04/2023,PE148357,3.22,0,"Sewerage Charge Fleetwood Traditional Market, Adelaide Street, FLEETWOOD,  FY7 6AB",Sewerage
Wyre Council,http://opendatacommunities.org/doc/district-council/wyre,29/04/2023,People and Places,Planning and Development Servs,132C,WATER PLUS LTD,13/04/2023,PE148357,53.57,0,"Sewerage Charge Highway Dept, Copse Road, FLEETWOOD, FY7 7HB",Sewerage
Wyre Council,http://opendatacommunities.org/doc/district-council/wyre,29/04/2023,People and Places,Planning and Development Servs,132C,WATER PLUS LTD,13/04/2023,PE148357,3.22,0,"Sewerage Charge Swilling Bay, Copse Road, FLEETWOOD, FY7 7HB",Sewerage
Wyre Council,http://opendatacommunities.org/doc/district-council/wyre,29/04/2023,People and Places,Planning and Development Servs,132C,WATER PLUS LTD,13/04/2023,PE148357,49.75,0,"Total Charge per DPID Copse Road Depot, FLEETWOOD, FY7 6RP",Sewerage
Wyre Council,http://opendatacommunities.org/doc/district-council/wyre,29/04/2023,People and Places,Environmental Services,132B,WATER PLUS LTD,13/04/2023,PE148357,6.73,0,"Sewerage Charge Wyre Sea Defences Depot, Chatsworth Avenue, Fleetwood,  FY7 8EJ",Sewerage
Wyre Council,http://opendatacommunities.org/doc/district-council/wyre,29/04/2023,People and Places,Cultural and Related Services,132A,WATER PLUS LTD,13/04/2023,PE148357,360.04,0,"Sewerage Charge The New Wave, North Promenade, THORNTON-CLEVELEYS, FY5  1LW",Sewerage
Wyre Council,http://opendatacommunities.org/doc/district-council/wyre,29/04/2023,People and Places,Cultural and Related Services,132A,WATER PLUS LTD,13/04/2023,PE148357,10.25,0,"Sewerage Charge Jean Stansfield Memorial Park, Vicarage Road, Knott  End-On-Sea, POULTON-LE-FYLDE, FY6 0BH",Sewerage
Wyre Council,http://opendatacommunities.org/doc/district-council/wyre,29/04/2023,People and Places,Cultural and Related Services,132A,WATER PLUS LTD,13/04/2023,PE148357,5.56,0,"Sewerage Charge Tourist Information Centre, Unit 1 Cherestanc Square,  Garstang, PRESTON, PR3 1EF",Sewerage
Wyre Council,http://opendatacommunities.org/doc/district-council/wyre,29/04/2023,Resources,Support Services,135B,Idox Software LTD,17/04/2023,RS148795,46660,0,"Software, Support & Maintenance: Contract renewal. 5 year term licence from 1st April 2023 until 31st March 2028 for the Uniform system and associated software currently deployed on premise at Wyre Borough Council(WBC). Software term licences, su",Software Maintenance
Wyre Council,http://opendatacommunities.org/doc/district-council/wyre,29/04/2023,Resources,Support Services,135B,Patronbase (UK) Partners LTD,25/04/2023,RS148649,3756.43,0,Annual Software Support.,Software Maintenance
Wyre Council,http://opendatacommunities.org/doc/district-council/wyre,29/04/2023,Resources,Support Services,135B,Patronbase (UK) Partners LTD,25/04/2023,RS148649,1673,0,Annual Software Maintenance.,Software Maintenance
Wyre Council,http://opendatacommunities.org/doc/district-council/wyre,29/04/2023,Resources,Support Services,135B,Patronbase (UK) Partners LTD,25/04/2023,RS148649,1648.1,0,Annual Web Hosting.,Software Maintenance
Wyre Council,http://opendatacommunities.org/doc/district-council/wyre,29/04/2023,Resources,Support Services,135B,JADU CREATIVE LTD,04/04/2023,RS148495,800,0,Annual support for Bin Lookup Page,Software Maintenance
Wyre Council,http://opendatacommunities.org/doc/district-council/wyre,29/04/2023,Resources,Support Services,135B,JADU CREATIVE LTD,04/04/2023,RS147672,1956.16,0,CXM Sandbox Subscription,Software Maintenance
Wyre Council,http://opendatacommunities.org/doc/district-council/wyre,29/04/2023,People and Places,Cultural and Related Services,132A,Tina Warren,13/04/2023,PE148813,1043.36,0,Fee for 4 X sessions at HAF Easter 2023 - 960 plus payment for support assistant 83.36,Special Events
Wyre Council,http://opendatacommunities.org/doc/district-council/wyre,29/04/2023,People and Places,Cultural and Related Services,132A,Salina Somalya,19/04/2023,PE148893,720,0,Fee for 3 creative session at HAF Easter 2023,Special Events
Wyre Council,http://opendatacommunities.org/doc/district-council/wyre,29/04/2023,People and Places,Cultural and Related Services,132A,JULIA M SWARBRICK,26/04/2023,PE149066,1200,0,Fee for 5 X creative sessions at HAF Easter 2023,Special Events
Wyre Council,http://opendatacommunities.org/doc/district-council/wyre,29/04/2023,People and Places,Cultural and Related Services,132A,DENISE KEEN-JUNK,19/04/2023,PE148892,720,0,Fee for 3 creative sessions at HAF Easter 2023,Special Events
Wyre Council,http://opendatacommunities.org/doc/district-council/wyre,29/04/2023,People and Places,Cultural and Related Services,132A,JANINE WALKER ART,17/04/2023,PE148856,1200,0,Fee for 5 X creative sessions at HAF Easter 2023,Special Events
Wyre Council,http://opendatacommunities.org/doc/district-council/wyre,29/04/2023,People and Places,Cultural and Related Services,132A,Amazon Business,18/04/2023,PE148850,14.98,0,Events Materials,Special Events
Wyre Council,http://opendatacommunities.org/doc/district-council/wyre,29/04/2023,People and Places,Cultural and Related Services,132A,Amazon Business,18/04/2023,PE148880,4.12,0,Events Materials,Special Events
Wyre Council,http://opendatacommunities.org/doc/district-council/wyre,29/04/2023,People and Places,Cultural and Related Services,132A,Amazon Business,14/04/2023,PE148836,265.87,0,PA system 20 outdoor chairs 6 - 6ft folding trestle tables,Special Events
Wyre Council,http://opendatacommunities.org/doc/district-council/wyre,29/04/2023,People and Places,Cultural and Related Services,132A,Amazon Business,14/04/2023,PE148835,227.95,0,PA system 20 outdoor chairs 6 - 6ft folding trestle tables,Special Events
Wyre Council,http://opendatacommunities.org/doc/district-council/wyre,29/04/2023,People and Places,Cultural and Related Services,132A,Amazon Business,18/04/2023,PE148852,92.46,0,3 Heavy Duty Storage Boxes with Wheels,Special Events
Wyre Council,http://opendatacommunities.org/doc/district-council/wyre,29/04/2023,People and Places,Cultural and Related Services,132A,Amazon Business,18/04/2023,PE148851,99.98,0,PA system 20 outdoor chairs 6 - 6ft folding trestle tables,Special Events
Wyre Council,http://opendatacommunities.org/doc/district-council/wyre,29/04/2023,People and Places,Cultural and Related Services,132A,Amazon Business,18/04/2023,PE148849,99.98,0,PA system20 outdoor chairs6 - 6ft folding trestle tables,Special Events
Wyre Council,http://opendatacommunities.org/doc/district-council/wyre,29/04/2023,People and Places,Cultural and Related Services,132A,Amazon Business,26/04/2023,PE149049,22.32,0,Coronation Memorabilia,Special Events
Wyre Council,http://opendatacommunities.org/doc/district-council/wyre,29/04/2023,People and Places,Cultural and Related Services,132A,Amazon Business,26/04/2023,PE149048,7.5,0,Coronation Memorabilia,Special Events
Wyre Council,http://opendatacommunities.org/doc/district-council/wyre,29/04/2023,People and Places,Cultural and Related Services,132A,Amazon Business,26/04/2023,PE149047,16.64,0,Coronation Memorabilia,Special Events
Wyre Council,http://opendatacommunities.org/doc/district-council/wyre,29/04/2023,People and Places,Cultural and Related Services,132A,Amazon Business,26/04/2023,PE149046,38.64,0,Coronation Memorabilia,Special Events
Wyre Council,http://opendatacommunities.org/doc/district-council/wyre,29/04/2023,People and Places,Cultural and Related Services,132A,Amazon Business,26/04/2023,PE149037,31.64,0,Coronation Memorabilia,Special Events
Wyre Council,http://opendatacommunities.org/doc/district-council/wyre,29/04/2023,People and Places,Cultural and Related Services,132A,Amazon Business,26/04/2023,PE149035,10.98,0,Coronation Memorabilia,Special Events
Wyre Council,http://opendatacommunities.org/doc/district-council/wyre,29/04/2023,People and Places,Cultural and Related Services,132A,Amazon Business,25/04/2023,PE149025,14.46,0,Coronation Memorabilia,Special Events
Wyre Council,http://opendatacommunities.org/doc/district-council/wyre,29/04/2023,People and Places,Cultural and Related Services,132A,Amazon Business,24/04/2023,PE149002,99.98,0,PA system20 outdoor chairs6 - 6ft folding trestle tables,Special Events
Wyre Council,http://opendatacommunities.org/doc/district-council/wyre,29/04/2023,People and Places,Planning and Development Servs,132C,Amazon Business,14/04/2023,PE148807,18.48,0,Fleetwood Market Coronation Day memorabilia,Special Events
Wyre Council,http://opendatacommunities.org/doc/district-council/wyre,29/04/2023,People and Places,Planning and Development Servs,132C,Amazon Business,14/04/2023,PE148772,7.49,0,Fleetwood Market Coronation Day memorabilia,Special Events
Wyre Council,http://opendatacommunities.org/doc/district-council/wyre,29/04/2023,People and Places,Planning and Development Servs,132C,Amazon Business,25/04/2023,PE149020,34.99,0,Fleetwood Market Coronation Day memorabilia,Special Events
Wyre Council,http://opendatacommunities.org/doc/district-council/wyre,29/04/2023,People and Places,Cultural and Related Services,132A,AFORD AWARDS LIMITED,24/04/2023,PE148878,860,0,Medals for coronation,Special Events
Wyre Council,http://opendatacommunities.org/doc/district-council/wyre,29/04/2023,People and Places,Environmental Services,132B,Wyre Memorials LTD,05/04/2023,PE148518,200,0,To refix old RC 198 novo & Old RC 956e leadbetter,Special Works
Wyre Council,http://opendatacommunities.org/doc/district-council/wyre,29/04/2023,People and Places,Environmental Services,132B,Wyre Memorials LTD,21/04/2023,PE148891,600,0,"Safety refixes at Preesall Cem ,  Strickland/Poole/ and Elletson",Special Works
Wyre Council,http://opendatacommunities.org/doc/district-council/wyre,29/04/2023,People and Places,Environmental Services,132B,Wyre Memorials LTD,05/04/2023,PE148518,165,0,to move and refix WELFORD Z13 @poulton new cem.,Special Works
Wyre Council,http://opendatacommunities.org/doc/district-council/wyre,29/04/2023,People and Places,Environmental Services,132B,Wyre Memorials LTD,05/04/2023,PE148518,145,0, to Move and refix COOPER - poulton cem new C/9,Special Works
Wyre Council,http://opendatacommunities.org/doc/district-council/wyre,29/04/2023,Resources,Support Services,135B,Quadient UK LTD,19/04/2023,RS148853,447.5,0,300478 - White window envelopes,Stationery
Wyre Council,http://opendatacommunities.org/doc/district-council/wyre,29/04/2023,People and Places,Planning and Development Servs,132C,Lyreco UK LTD,05/04/2023,PE148627,298.02,0,Stationery,Stationery
Wyre Council,http://opendatacommunities.org/doc/district-council/wyre,29/04/2023,People and Places,Cultural and Related Services,132A,Lyreco UK LTD,05/04/2023,PE148625,32.5,0,234.406  RM500 LYRECO BUDGET PAPER A3 80G WH Box of 5 Reams Price: 32.50 per box,Stationery
Wyre Council,http://opendatacommunities.org/doc/district-council/wyre,29/04/2023,Resources,Support Services,135B,Lyreco UK LTD,05/04/2023,RS148626,486,0,A4 Copier Paper,Stationery
Wyre Council,http://opendatacommunities.org/doc/district-council/wyre,29/04/2023,Resources,Central Services to the Public,131C,Shaw & Sons LTD,13/04/2023,RS148562,1792.8,0,"90 x LESDBAG Sundry Pack - Local Gov`t Election @17.81 each = 1,602.90 + VAT 30 x PCELECP Conversion Pack - Local Gov`t to Parish/Town Election @ 6.33 each = 189.90 + VAT",Stationery
Wyre Council,http://opendatacommunities.org/doc/district-council/wyre,29/04/2023,People and Places,Support Services,135B,Amazon Business,14/04/2023,PE148831,31.64,0,Folders  Street Cleansing,Stationery
Wyre Council,http://opendatacommunities.org/doc/district-council/wyre,29/04/2023,Resources,Support Services,135B,Amazon Business,12/04/2023,RS148727,5.35,0,Rolson 50824 300 mm Stainless Steel Ruler.,Stationery
Wyre Council,http://opendatacommunities.org/doc/district-council/wyre,29/04/2023,Resources,Support Services,135B,Amazon Business,12/04/2023,RS148757,7.49,0,"KUONIIY Scissors 8 Inch Soft Comfort-Grip Handles Sharp Blades, 3-Pack.",Stationery
Wyre Council,http://opendatacommunities.org/doc/district-council/wyre,29/04/2023,Resources,Current Assets,130B,Whistl Uk Limited,17/04/2023,RS148642,315.9,0,Annual postage charges 01/04/2022 - 31/03/2022,Stores Purchases
Wyre Council,http://opendatacommunities.org/doc/district-council/wyre,29/04/2023,Resources,Current Assets,130B,Whistl Uk Limited,27/04/2023,RS149088,676.48,0,Postal charges 01/04/2023 - 31/03/2024,Stores Purchases
Wyre Council,http://opendatacommunities.org/doc/district-council/wyre,29/04/2023,Resources,Current Assets,130B,Whistl Uk Limited,24/04/2023,RS148797,255.71,0,Postal charges 01/04/2023 - 31/03/2024,Stores Purchases
Wyre Council,http://opendatacommunities.org/doc/district-council/wyre,29/04/2023,Resources,Current Assets,130B,Whistl Uk Limited,24/04/2023,RS148797,23.2,0,Postal charges 01/04/2023 - 31/03/2024,Stores Purchases
Wyre Council,http://opendatacommunities.org/doc/district-council/wyre,29/04/2023,Resources,Current Assets,130B,Whistl Uk Limited,24/04/2023,RS148975,157.79,0,Postal charges 01/04/2023 - 31/03/2024,Stores Purchases
Wyre Council,http://opendatacommunities.org/doc/district-council/wyre,29/04/2023,Resources,Current Assets,130B,Pitney Bowes LTD  Postage By Phone,24/04/2023,RS148879,1001.18,0,Franking Machine top up March 2023,Stores Purchases
Wyre Council,http://opendatacommunities.org/doc/district-council/wyre,29/04/2023,People and Places,Planning and Development Servs,132C,WATER PLUS LTD,13/04/2023,PE148357,10.86,0,"Highway Drainage Toll Ferry Office, The Esplanade, FLEETWOOD, FY7 6DN",Surface Water/Highway Drainage
Wyre Council,http://opendatacommunities.org/doc/district-council/wyre,29/04/2023,People and Places,Cultural and Related Services,132A,WATER PLUS LTD,13/04/2023,PE148357,35.88,0,"Highway Drainage Toilets, Warrenhurst Park, FLEETWOOD, FY7 6SH",Surface Water/Highway Drainage
Wyre Council,http://opendatacommunities.org/doc/district-council/wyre,29/04/2023,People and Places,Cultural and Related Services,132A,WATER PLUS LTD,13/04/2023,PE148357,284.61,0,"Highway Drainage Ashdell Nursery Bowling Green &amp; Pc`S, Victoria Road  East, THORNTON CLEVELEYS, FY5 3SZ",Surface Water/Highway Drainage
Wyre Council,http://opendatacommunities.org/doc/district-council/wyre,29/04/2023,People and Places,Cultural and Related Services,132A,WATER PLUS LTD,13/04/2023,PE148357,284.61,0,"Highway Drainage Park, North Drive, THORNTON CLEVELEYS, FY5 3AR",Surface Water/Highway Drainage
Wyre Council,http://opendatacommunities.org/doc/district-council/wyre,29/04/2023,People and Places,Environmental Services,132B,WATER PLUS LTD,13/04/2023,PE148357,136.07,0,"Highway Drainage Wyre Sea Defences Depot, Chatsworth Avenue, Fleetwood,  FY7 8EJ",Surface Water/Highway Drainage
Wyre Council,http://opendatacommunities.org/doc/district-council/wyre,29/04/2023,People and Places,Environmental Services,132B,WATER PLUS LTD,13/04/2023,PE148357,26.99,0,"Highway Drainage Public Toilet, Rough Lea Road, THORNTON CLEVELEYS, FY5  1BW",Surface Water/Highway Drainage
Wyre Council,http://opendatacommunities.org/doc/district-council/wyre,29/04/2023,People and Places,Environmental Services,132B,WATER PLUS LTD,13/04/2023,PE148357,10.86,0,"Highway Drainage Toilet Block, Lawson Road, Little Thornton, THORNTON  CLEVELEYS, FY5 5DX",Surface Water/Highway Drainage
Wyre Council,http://opendatacommunities.org/doc/district-council/wyre,29/04/2023,People and Places,Environmental Services,132B,WATER PLUS LTD,13/04/2023,PE148357,199.91,0,"Highway Drainage Toilets, Car Park, High Street, Garstang, PRESTON, PR3  1FA",Surface Water/Highway Drainage
Wyre Council,http://opendatacommunities.org/doc/district-council/wyre,29/04/2023,People and Places,Environmental Services,132B,WATER PLUS LTD,13/04/2023,PE148357,10.86,0,"Highway Drainage Toilets, Teanlowe Centre, POULTON-LE-FYLDE, FY6 7DF",Surface Water/Highway Drainage
Wyre Council,http://opendatacommunities.org/doc/district-council/wyre,29/04/2023,People and Places,Environmental Services,132B,WATER PLUS LTD,13/04/2023,PE148357,26.99,0,"Drainage Charge Toilets, Gubberford Lane, Scorton, PRESTON, PR3 1AX",Surface Water/Highway Drainage
Wyre Council,http://opendatacommunities.org/doc/district-council/wyre,29/04/2023,People and Places,Environmental Services,132B,WATER PLUS LTD,13/04/2023,PE148357,10.86,0,"Highway Drainage Conveniences, Bold Street, FLEETWOOD, FY7 6HL",Surface Water/Highway Drainage
Wyre Council,http://opendatacommunities.org/doc/district-council/wyre,29/04/2023,People and Places,Environmental Services,132B,WATER PLUS LTD,13/04/2023,PE148357,10.86,0,"Highway Drainage Fleetwood Corporation Toilets, Beach Road, FLEETWOOD,  FY7 8PH",Surface Water/Highway Drainage
Wyre Council,http://opendatacommunities.org/doc/district-council/wyre,29/04/2023,People and Places,Environmental Services,132B,WATER PLUS LTD,13/04/2023,PE148357,10.86,0,"Highway Drainage Public Conveniences, Rough Lea Road, THORNTON CLEVELEYS,  FY5 1DA",Surface Water/Highway Drainage
Wyre Council,http://opendatacommunities.org/doc/district-council/wyre,29/04/2023,People and Places,Planning and Development Servs,132C,WATER PLUS LTD,13/04/2023,PE148357,10.86,0,"Highway Drainage Store 6 26 Adelaide Street, FLEETWOOD, FY7 6AB",Surface Water/Highway Drainage
Wyre Council,http://opendatacommunities.org/doc/district-council/wyre,29/04/2023,People and Places,Planning and Development Servs,132C,WATER PLUS LTD,13/04/2023,PE148357,10.86,0,"Highway Drainage Store 7 26 Adelaide Street, FLEETWOOD, FY7 6AB",Surface Water/Highway Drainage
Wyre Council,http://opendatacommunities.org/doc/district-council/wyre,29/04/2023,People and Places,Planning and Development Servs,132C,WATER PLUS LTD,13/04/2023,PE148357,10.86,0,"Highway Drainage Store 8 26 Adelaide Street, FLEETWOOD, FY7 6AB",Surface Water/Highway Drainage
Wyre Council,http://opendatacommunities.org/doc/district-council/wyre,29/04/2023,People and Places,Cultural and Related Services,132A,WATER PLUS LTD,13/04/2023,PE148357,10.86,0,"Highway Drainage Jean Stansfield Memorial Park, Vicarage Road, Knott  End-On-Sea, POULTON-LE-FYLDE, FY6 0BH",Surface Water/Highway Drainage
Wyre Council,http://opendatacommunities.org/doc/district-council/wyre,29/04/2023,People and Places,Cultural and Related Services,132A,WATER PLUS LTD,13/04/2023,PE148357,10.86,0,"Highway Drainage Mount Pavilion, The Esplanade, FLEETWOOD, FY7 6HF",Surface Water/Highway Drainage
Wyre Council,http://opendatacommunities.org/doc/district-council/wyre,29/04/2023,People and Places,Cultural and Related Services,132A,WATER PLUS LTD,13/04/2023,PE148357,26.99,0,"Highway Drainage Tourist Information Centre, Unit 1 Cherestanc Square,  Garstang, PRESTON, PR3 1EF",Surface Water/Highway Drainage
Wyre Council,http://opendatacommunities.org/doc/district-council/wyre,29/04/2023,People and Places,Central Services to the Public,131C,WATER PLUS LTD,13/04/2023,PE148357,10.86,0,"Highway Drainage Day Centre, Queensway, POULTON LE FYLDE, FY6 7ST",Surface Water/Highway Drainage
Wyre Council,http://opendatacommunities.org/doc/district-council/wyre,29/04/2023,People and Places,Cultural and Related Services,132A,WATER PLUS LTD,13/04/2023,PE148357,3463.07,0,"Highway Drainage Marine Hall, The Esplanade, FLEETWOOD, FY7 6HF",Surface Water/Highway Drainage
Wyre Council,http://opendatacommunities.org/doc/district-council/wyre,29/04/2023,People and Places,Cultural and Related Services,132A,WATER PLUS LTD,13/04/2023,PE148357,10.86,0,"Highway Drainage Club House, River Road, THORNTON-CLEVELEYS, FY5 5LR",Surface Water/Highway Drainage
Wyre Council,http://opendatacommunities.org/doc/district-council/wyre,29/04/2023,People and Places,Cultural and Related Services,132A,WATER PLUS LTD,13/04/2023,PE148357,136.07,0,"Highway Drainage Wyreside Ecology Centre, River Road, THORNTON-CLEVELEYS,  FY5 5LR",Surface Water/Highway Drainage
Wyre Council,http://opendatacommunities.org/doc/district-council/wyre,29/04/2023,People and Places,Environmental Services,132B,WATER PLUS LTD,13/04/2023,PE148357,10.86,0,"Highway Drainage Cemetery &amp; Offices, Beach Road, FLEETWOOD, FY7 8PN",Surface Water/Highway Drainage
Wyre Council,http://opendatacommunities.org/doc/district-council/wyre,29/04/2023,People and Places,Environmental Services,132B,WATER PLUS LTD,13/04/2023,PE148357,10.86,0,"Highway Drainage Cemetery, Garstang Road East, POULTON LE FYLDE, FY6 8JH",Surface Water/Highway Drainage
Wyre Council,http://opendatacommunities.org/doc/district-council/wyre,29/04/2023,Resources,Cultural and Related Services,132A,Daisy Communications LTD,25/04/2023,RS148700,27.74,0,Calls and Service Charges to 31/03/23,Telephone - Buildings and Offices
Wyre Council,http://opendatacommunities.org/doc/district-council/wyre,29/04/2023,Resources,Cultural and Related Services,132A,Daisy Communications LTD,25/04/2023,RS148700,13.87,0,Calls and Service Charges to 31/03/23,Telephone - Buildings and Offices
Wyre Council,http://opendatacommunities.org/doc/district-council/wyre,29/04/2023,Resources,Cultural and Related Services,132A,Daisy Communications LTD,25/04/2023,RS148700,79.43,0,Calls and Service Charges to 31/03/23,Telephone - Buildings and Offices
Wyre Council,http://opendatacommunities.org/doc/district-council/wyre,29/04/2023,Resources,Support Services,135B,Daisy Communications LTD,25/04/2023,RS148700,39.72,0,Calls and Service Charges to 31/03/23,Telephone - Buildings and Offices
Wyre Council,http://opendatacommunities.org/doc/district-council/wyre,29/04/2023,Resources,Support Services,135B,Daisy Communications LTD,25/04/2023,RS148700,14.02,0,Calls and Service Charges to 31/03/23,Telephone - Buildings and Offices
Wyre Council,http://opendatacommunities.org/doc/district-council/wyre,29/04/2023,Resources,Support Services,135B,Daisy Communications LTD,25/04/2023,RS148700,2002.92,0,Calls and Service Charges to 31/03/23,Telephone - Buildings and Offices
Wyre Council,http://opendatacommunities.org/doc/district-council/wyre,29/04/2023,Resources,Planning and Development Servs,132C,Daisy Communications LTD,25/04/2023,RS148700,2.52,0,Calls and Service Charges to 31/03/23,Telephone - Buildings and Offices
Wyre Council,http://opendatacommunities.org/doc/district-council/wyre,29/04/2023,Resources,Cultural and Related Services,132A,Daisy Communications LTD,25/04/2023,RS148700,72.96,0,Calls and Service Charges to 31/03/23,Telephone - Buildings and Offices
Wyre Council,http://opendatacommunities.org/doc/district-council/wyre,29/04/2023,Resources,Cultural and Related Services,132A,Daisy Communications LTD,25/04/2023,RS148700,13.87,0,Calls and Service Charges to 31/03/23,Telephone - Buildings and Offices
Wyre Council,http://opendatacommunities.org/doc/district-council/wyre,29/04/2023,Resources,Cultural and Related Services,132A,Daisy Communications LTD,25/04/2023,RS148700,13.87,0,Calls and Service Charges to 31/03/23,Telephone - Buildings and Offices
Wyre Council,http://opendatacommunities.org/doc/district-council/wyre,29/04/2023,Resources,Support Services,135B,Daisy Communications LTD,25/04/2023,RS148700,2.52,0,Calls and Service Charges to 31/03/23,Telephone - Buildings and Offices
Wyre Council,http://opendatacommunities.org/doc/district-council/wyre,29/04/2023,Resources,Cultural and Related Services,132A,Daisy Communications LTD,25/04/2023,RS148700,14.26,0,Calls and Service Charges to 31/03/23,Telephone - Buildings and Offices
Wyre Council,http://opendatacommunities.org/doc/district-council/wyre,29/04/2023,Resources,Cultural and Related Services,132A,Daisy Communications LTD,25/04/2023,RS148700,39.86,0,Calls and Service Charges to 31/03/23,Telephone - Buildings and Offices
Wyre Council,http://opendatacommunities.org/doc/district-council/wyre,29/04/2023,Resources,Environmental Services,132B,Daisy Communications LTD,25/04/2023,RS148700,13.87,0,Calls and Service Charges to 31/03/23,Telephone - Buildings and Offices
Wyre Council,http://opendatacommunities.org/doc/district-council/wyre,29/04/2023,Resources,Environmental Services,132B,Daisy Communications LTD,25/04/2023,RS148700,41.61,0,Calls and Service Charges to 31/03/23,Telephone - Buildings and Offices
Wyre Council,http://opendatacommunities.org/doc/district-council/wyre,29/04/2023,Resources,Planning and Development Servs,132C,Daisy Communications LTD,25/04/2023,RS148700,0.59,0,Calls and Service Charges to 31/03/23,Telephone - Buildings and Offices
Wyre Council,http://opendatacommunities.org/doc/district-council/wyre,29/04/2023,Resources,Planning and Development Servs,132C,Daisy Communications LTD,25/04/2023,RS148700,13.87,0,Calls and Service Charges to 31/03/23,Telephone - Buildings and Offices
Wyre Council,http://opendatacommunities.org/doc/district-council/wyre,29/04/2023,People and Places,Current Liabilities,130C,ASPINS MENSWEAR,28/04/2023,PE149142,134.83,0,Refund for March rent payment,Tenants Refunds
Wyre Council,http://opendatacommunities.org/doc/district-council/wyre,29/04/2023,People and Places,Current Liabilities,130C,ASPINS MENSWEAR,28/04/2023,PE149143,307.33,0,Refund for March rent payment,Tenants Refunds
Wyre Council,http://opendatacommunities.org/doc/district-council/wyre,29/04/2023,People and Places,Current Liabilities,130C,ASPINS MENSWEAR,28/04/2023,PE149144,307.33,0,Refund for March rent payment,Tenants Refunds
Wyre Council,http://opendatacommunities.org/doc/district-council/wyre,29/04/2023,People and Places,Current Liabilities,130C,ASPINS MENSWEAR,28/04/2023,PE149148,320,0,Refund for March rent payment,Tenants Refunds
Wyre Council,http://opendatacommunities.org/doc/district-council/wyre,29/04/2023,People and Places,Current Liabilities,130C,Jacqueline Wilson,28/04/2023,PE149149,396.91,0,Refund for March rent payment,Tenants Refunds
Wyre Council,http://opendatacommunities.org/doc/district-council/wyre,29/04/2023,People and Places,Current Liabilities,130C,Jacqueline Wilson,28/04/2023,PE149150,169.09,0,Refund for March rent payment,Tenants Refunds
Wyre Council,http://opendatacommunities.org/doc/district-council/wyre,29/04/2023,People and Places,Current Liabilities,130C,Jacqueline Wilson,28/04/2023,PE149151,396.91,0,Refund for March rent payment,Tenants Refunds
Wyre Council,http://opendatacommunities.org/doc/district-council/wyre,29/04/2023,People and Places,Current Liabilities,130C,Jacqueline Wilson,28/04/2023,PE149152,169.09,0,Refund for March rent payment,Tenants Refunds
Wyre Council,http://opendatacommunities.org/doc/district-council/wyre,29/04/2023,People and Places,Current Liabilities,130C,PETER MCKECHNIE,28/04/2023,PE149153,184.72,0,Refund for March rent payment,Tenants Refunds
Wyre Council,http://opendatacommunities.org/doc/district-council/wyre,29/04/2023,People and Places,Current Liabilities,130C,PETER MCKECHNIE,28/04/2023,PE149154,183.92,0,Refund for March rent payment,Tenants Refunds
Wyre Council,http://opendatacommunities.org/doc/district-council/wyre,29/04/2023,People and Places,Current Liabilities,130C,PETER MCKECHNIE,28/04/2023,PE149137,46.18,0,Refund for March rent payment,Tenants Refunds
Wyre Council,http://opendatacommunities.org/doc/district-council/wyre,29/04/2023,People and Places,Current Liabilities,130C,PETER MCKECHNIE,28/04/2023,PE149138,98,0,Refund for March rent payment,Tenants Refunds
Wyre Council,http://opendatacommunities.org/doc/district-council/wyre,29/04/2023,People and Places,Current Liabilities,130C,PETER MCKECHNIE,28/04/2023,PE149139,24.5,0,Refund for March rent payment,Tenants Refunds
Wyre Council,http://opendatacommunities.org/doc/district-council/wyre,29/04/2023,People and Places,Current Liabilities,130C,PETER MCKECHNIE,28/04/2023,PE149140,45.45,0,Refund for March rent payment,Tenants Refunds
Wyre Council,http://opendatacommunities.org/doc/district-council/wyre,29/04/2023,Resources,Support Services,135B,Idox Software LTD,26/04/2023,RS149051,1400,0,Environmental Health Module Overview,Training - Non HR Controlled
Wyre Council,http://opendatacommunities.org/doc/district-council/wyre,29/04/2023,Resources,Support Services,135B,Idox Software LTD,26/04/2023,RS149051,1400,0,Planning Component Module,Training - Non HR Controlled
Wyre Council,http://opendatacommunities.org/doc/district-council/wyre,29/04/2023,Resources,Support Services,135B,Idox Software LTD,26/04/2023,RS149051,2800,0,System Supervisor,Training - Non HR Controlled
Wyre Council,http://opendatacommunities.org/doc/district-council/wyre,29/04/2023,Resources,Support Services,135B,Idox Software LTD,26/04/2023,RS149051,2800,0,Document Template,Training - Non HR Controlled
Wyre Council,http://opendatacommunities.org/doc/district-council/wyre,29/04/2023,Resources,Support Services,135B,Idox Software LTD,26/04/2023,RS149051,2800,0,Spatial Administration,Training - Non HR Controlled
Wyre Council,http://opendatacommunities.org/doc/district-council/wyre,29/04/2023,Resources,Support Services,135B,Idox Software LTD,26/04/2023,RS149051,2800,0,Using MS Access with Uniform,Training - Non HR Controlled
Wyre Council,http://opendatacommunities.org/doc/district-council/wyre,29/04/2023,Resources,Support Services,135B,Idox Software LTD,26/04/2023,RS149051,2800,0,Building Control Module,Training - Non HR Controlled
Wyre Council,http://opendatacommunities.org/doc/district-council/wyre,29/04/2023,People and Places,Support Services,135B,The County Tyre (Holdings) LTD,17/04/2023,PE148874,686.8,0,Tyres,Tyres
Wyre Council,http://opendatacommunities.org/doc/district-council/wyre,29/04/2023,People and Places,Environmental Services,132B,M J Wilkinson,18/04/2023,PE148872,330.4,0,Vehicle hire,Vehicle Hire
Wyre Council,http://opendatacommunities.org/doc/district-council/wyre,29/04/2023,People and Places,Environmental Services,132B,M J Wilkinson,18/04/2023,PE148871,1675.2,0,Vehicle hire,Vehicle Hire
Wyre Council,http://opendatacommunities.org/doc/district-council/wyre,29/04/2023,People and Places,Environmental Services,132B,M J Wilkinson,18/04/2023,PE148870,891.92,0,Vehicle hire,Vehicle Hire
Wyre Council,http://opendatacommunities.org/doc/district-council/wyre,29/04/2023,People and Places,Environmental Services,132B,M J Wilkinson,18/04/2023,PE148868,670.34,0,Hire of Hitachi ZX29 Excavator 6/3/23 to 12/3/23 @ 506.64 Breaker@ 110.88 Delivery charge @ 26.41 Collection charge @ 26.41,Vehicle Hire
Wyre Council,http://opendatacommunities.org/doc/district-council/wyre,29/04/2023,People and Places,Support Services,135B,QUARTIX LTD,14/04/2023,PE148511,4770,0,System Rental & Communications charge for 53 vehicles for 12 months from 1/4/2023,Vehicle Tracking System
Wyre Council,http://opendatacommunities.org/doc/district-council/wyre,29/04/2023,People and Places,Cultural and Related Services,132A,WATER PLUS LTD,13/04/2023,PE148357,666.2,0,"Water Charge Marine Hall, The Esplanade, FLEETWOOD, FY7 6HF",Water Charges-Metered
Wyre Council,http://opendatacommunities.org/doc/district-council/wyre,29/04/2023,People and Places,Cultural and Related Services,132A,WATER PLUS LTD,13/04/2023,PE148357,41.99,0,"Water Standing Charge Marine Hall, The Esplanade, FLEETWOOD, FY7 6HF",Water Charges-Metered
Wyre Council,http://opendatacommunities.org/doc/district-council/wyre,29/04/2023,People and Places,Cultural and Related Services,132A,WATER PLUS LTD,13/04/2023,PE148357,78.66,0,"Water Charge Playing Fields, Cottam Hall, POULTON LE FYLDE, FY6 7RG",Water Charges-Metered
Wyre Council,http://opendatacommunities.org/doc/district-council/wyre,29/04/2023,People and Places,Cultural and Related Services,132A,WATER PLUS LTD,13/04/2023,PE148357,3.32,0,"Water Standing Charge Playing Fields, Cottam Hall, POULTON LE FYLDE, FY6  7RG",Water Charges-Metered
Wyre Council,http://opendatacommunities.org/doc/district-council/wyre,29/04/2023,People and Places,Cultural and Related Services,132A,WATER PLUS LTD,13/04/2023,PE148357,83.36,0,"Water Charge Marine Lake, Laidleys Walk, FLEETWOOD, FY7 7HS",Water Charges-Metered
Wyre Council,http://opendatacommunities.org/doc/district-council/wyre,29/04/2023,People and Places,Cultural and Related Services,132A,WATER PLUS LTD,13/04/2023,PE148357,7.27,0,"Water Standing Charge Marine Lake, Laidleys Walk, FLEETWOOD, FY7 7HS",Water Charges-Metered
Wyre Council,http://opendatacommunities.org/doc/district-council/wyre,29/04/2023,People and Places,Cultural and Related Services,132A,WATER PLUS LTD,13/04/2023,PE148357,13.1,0,"Water Charge Park, North Drive, THORNTON CLEVELEYS, FY5 3AR",Water Charges-Metered
Wyre Council,http://opendatacommunities.org/doc/district-council/wyre,29/04/2023,People and Places,Cultural and Related Services,132A,WATER PLUS LTD,13/04/2023,PE148357,1.71,0,"Water Standing Charge Park, North Drive, THORNTON CLEVELEYS, FY5 3AR",Water Charges-Metered
Wyre Council,http://opendatacommunities.org/doc/district-council/wyre,29/04/2023,People and Places,Cultural and Related Services,132A,WATER PLUS LTD,13/04/2023,PE148357,7.96,0,"Water Charge Club House, River Road, THORNTON-CLEVELEYS, FY5 5LR",Water Charges-Metered
Wyre Council,http://opendatacommunities.org/doc/district-council/wyre,29/04/2023,People and Places,Environmental Services,132B,WATER PLUS LTD,13/04/2023,PE148357,130.85,0,"Water Charge Toilets, Car Park, High Street, Garstang, PRESTON, PR3 1FA",Water Charges-Metered
Wyre Council,http://opendatacommunities.org/doc/district-council/wyre,29/04/2023,People and Places,Environmental Services,132B,WATER PLUS LTD,13/04/2023,PE148357,16.53,0,"Water Charge Toilets, Higher Lane, Scorton, PRESTON, PR3 1BE",Water Charges-Metered
Wyre Council,http://opendatacommunities.org/doc/district-council/wyre,29/04/2023,People and Places,Environmental Services,132B,WATER PLUS LTD,13/04/2023,PE148357,1.71,0,"Water Standing Charge White House, The Square, Great Eccleston, Preston,  PR3 0ZB",Water Charges-Metered
Wyre Council,http://opendatacommunities.org/doc/district-council/wyre,29/04/2023,People and Places,Environmental Services,132B,WATER PLUS LTD,13/04/2023,PE148357,59.37,0,"Water Charge Conveniences, Bold Street, FLEETWOOD, FY7 6HL",Water Charges-Metered
Wyre Council,http://opendatacommunities.org/doc/district-council/wyre,29/04/2023,People and Places,Environmental Services,132B,WATER PLUS LTD,13/04/2023,PE148357,40.52,0,"Water Charge Fleetwood Corporation Toilets, Beach Road, FLEETWOOD, FY7  8PH",Water Charges-Metered
Wyre Council,http://opendatacommunities.org/doc/district-council/wyre,29/04/2023,People and Places,Environmental Services,132B,WATER PLUS LTD,13/04/2023,PE148357,9.67,0,"Water Charge Public Convenience, View Lune, Bourne May Road, Knott  End-On-Sea, POULTON-LE-FYLDE, FY6 0AB",Water Charges-Metered
Wyre Council,http://opendatacommunities.org/doc/district-council/wyre,29/04/2023,People and Places,Environmental Services,132B,WATER PLUS LTD,13/04/2023,PE148357,33.66,0,"Water Charge Toilets, Preston Street, FLEETWOOD, FY7 6JA",Water Charges-Metered
Wyre Council,http://opendatacommunities.org/doc/district-council/wyre,29/04/2023,People and Places,Environmental Services,132B,WATER PLUS LTD,13/04/2023,PE148357,6.25,0,"Water Charge Toilets, Smallwood Hey, Pilling, PRESTON, PR3 6HB",Water Charges-Metered
Wyre Council,http://opendatacommunities.org/doc/district-council/wyre,29/04/2023,People and Places,Environmental Services,132B,WATER PLUS LTD,13/04/2023,PE148357,49.09,0,"Water Charge Toilets, Teanlowe Centre, POULTON-LE-FYLDE, FY6 7DF",Water Charges-Metered
Wyre Council,http://opendatacommunities.org/doc/district-council/wyre,29/04/2023,People and Places,Environmental Services,132B,WATER PLUS LTD,13/04/2023,PE148357,14.82,0,"Water Charge White House, The Square, Great Eccleston, Preston, PR3 0ZB",Water Charges-Metered
Wyre Council,http://opendatacommunities.org/doc/district-council/wyre,29/04/2023,People and Places,Environmental Services,132B,WATER PLUS LTD,13/04/2023,PE148357,3.32,0,"Water Standing Charge Conveniences, Bold Street, FLEETWOOD, FY7 6HL",Water Charges-Metered
Wyre Council,http://opendatacommunities.org/doc/district-council/wyre,29/04/2023,People and Places,Cultural and Related Services,132A,WATER PLUS LTD,13/04/2023,PE148357,6.25,0,"Water Charge Wyreside Ecology Centre, River Road, THORNTON-CLEVELEYS, FY5  5LR",Water Charges-Metered
Wyre Council,http://opendatacommunities.org/doc/district-council/wyre,29/04/2023,People and Places,Cultural and Related Services,132A,WATER PLUS LTD,13/04/2023,PE148357,1.54,0,"Water Standing Charge Club House, River Road, THORNTON-CLEVELEYS, FY5 5LR",Water Charges-Metered
Wyre Council,http://opendatacommunities.org/doc/district-council/wyre,29/04/2023,People and Places,Cultural and Related Services,132A,WATER PLUS LTD,13/04/2023,PE148357,1.71,0,"Water Standing Charge Wyreside Ecology Centre, River Road,  THORNTON-CLEVELEYS, FY5 5LR",Water Charges-Metered
Wyre Council,http://opendatacommunities.org/doc/district-council/wyre,29/04/2023,People and Places,Environmental Services,132B,WATER PLUS LTD,13/04/2023,PE148357,7.96,0,"Water Charge Wyre Sea Defences Depot, Chatsworth Avenue, Fleetwood, FY7  8EJ",Water Charges-Metered
Wyre Council,http://opendatacommunities.org/doc/district-council/wyre,29/04/2023,People and Places,Environmental Services,132B,WATER PLUS LTD,13/04/2023,PE148357,1.54,0,"Water Standing Charge Wyre Sea Defences Depot, Chatsworth Avenue,  Fleetwood, FY7 8EJ",Water Charges-Metered
Wyre Council,http://opendatacommunities.org/doc/district-council/wyre,29/04/2023,People and Places,Environmental Services,132B,WATER PLUS LTD,13/04/2023,PE148357,107.41,0,"Water Charge Public Conveniences, Rough Lea Road, THORNTON CLEVELEYS, FY5  1DA",Water Charges-Metered
Wyre Council,http://opendatacommunities.org/doc/district-council/wyre,29/04/2023,People and Places,Environmental Services,132B,WATER PLUS LTD,13/04/2023,PE148357,138.07,0,"Water Charge Public Toilet, Rough Lea Road, THORNTON CLEVELEYS, FY5 1BW",Water Charges-Metered
Wyre Council,http://opendatacommunities.org/doc/district-council/wyre,29/04/2023,People and Places,Environmental Services,132B,WATER PLUS LTD,13/04/2023,PE148357,21.36,0,"Water Charge Public Toilets, Off Quail Holme Road, Knott End-On-Sea,  POULTON-LE-FYLDE, FY6 0BT",Water Charges-Metered
Wyre Council,http://opendatacommunities.org/doc/district-council/wyre,29/04/2023,People and Places,Environmental Services,132B,WATER PLUS LTD,13/04/2023,PE148357,11.39,0,"Water Charge Toilet Block, Lawson Road, Little Thornton, THORNTON  CLEVELEYS, FY5 5DX",Water Charges-Metered
Wyre Council,http://opendatacommunities.org/doc/district-council/wyre,29/04/2023,People and Places,Environmental Services,132B,WATER PLUS LTD,13/04/2023,PE148357,19.96,0,"Water Charge Toilet Block, Park Hill Road, Garstang, PRESTON, PR3 1EL",Water Charges-Metered
Wyre Council,http://opendatacommunities.org/doc/district-council/wyre,29/04/2023,People and Places,Environmental Services,132B,WATER PLUS LTD,13/04/2023,PE148357,1.54,0,"Water Standing Charge Fleetwood Corporation Toilets, Beach Road,  FLEETWOOD, FY7 8PH",Water Charges-Metered
Wyre Council,http://opendatacommunities.org/doc/district-council/wyre,29/04/2023,People and Places,Environmental Services,132B,WATER PLUS LTD,13/04/2023,PE148357,1.54,0,"Water Standing Charge Public Convenience, View Lune, Bourne May Road,  Knott End-On-Sea, POULTON-LE-FYLDE, FY6 0AB",Water Charges-Metered
Wyre Council,http://opendatacommunities.org/doc/district-council/wyre,29/04/2023,People and Places,Environmental Services,132B,WATER PLUS LTD,13/04/2023,PE148357,3.32,0,"Water Standing Charge Public Conveniences, Rough Lea Road, THORNTON  CLEVELEYS, FY5 1DA",Water Charges-Metered
Wyre Council,http://opendatacommunities.org/doc/district-council/wyre,29/04/2023,People and Places,Environmental Services,132B,WATER PLUS LTD,13/04/2023,PE148357,1.54,0,"Water Standing Charge Public Toilet, Rough Lea Road, THORNTON CLEVELEYS,  FY5 1BW",Water Charges-Metered
Wyre Council,http://opendatacommunities.org/doc/district-council/wyre,29/04/2023,People and Places,Environmental Services,132B,WATER PLUS LTD,13/04/2023,PE148357,3.25,0,"Water Standing Charge Public Toilets, Off Quail Holme Road, Knott  End-On-Sea, POULTON-LE-FYLDE, FY6 0BT",Water Charges-Metered
Wyre Council,http://opendatacommunities.org/doc/district-council/wyre,29/04/2023,People and Places,Environmental Services,132B,WATER PLUS LTD,13/04/2023,PE148357,1.54,0,"Water Standing Charge Toilet Block, Lawson Road, Little Thornton,  THORNTON CLEVELEYS, FY5 5DX",Water Charges-Metered
Wyre Council,http://opendatacommunities.org/doc/district-council/wyre,29/04/2023,People and Places,Environmental Services,132B,WATER PLUS LTD,13/04/2023,PE148357,1.71,0,"Water Standing Charge Toilet Block, Park Hill Road, Garstang, PRESTON,  PR3 1EL",Water Charges-Metered
Wyre Council,http://opendatacommunities.org/doc/district-council/wyre,29/04/2023,People and Places,Environmental Services,132B,WATER PLUS LTD,13/04/2023,PE148357,1.71,0,"Water Standing Charge Toilets, Car Park, High Street, Garstang, PRESTON,  PR3 1FA",Water Charges-Metered
Wyre Council,http://opendatacommunities.org/doc/district-council/wyre,29/04/2023,People and Places,Environmental Services,132B,WATER PLUS LTD,13/04/2023,PE148357,1.54,0,"Water Standing Charge Toilets, Higher Lane, Scorton, PRESTON, PR3 1BE",Water Charges-Metered
Wyre Council,http://opendatacommunities.org/doc/district-council/wyre,29/04/2023,People and Places,Environmental Services,132B,WATER PLUS LTD,13/04/2023,PE148357,1.54,0,"Water Standing Charge Toilets, Preston Street, FLEETWOOD, FY7 6JA",Water Charges-Metered
Wyre Council,http://opendatacommunities.org/doc/district-council/wyre,29/04/2023,People and Places,Environmental Services,132B,WATER PLUS LTD,13/04/2023,PE148357,1.54,0,"Water Standing Charge Toilets, Smallwood Hey, Pilling, PRESTON, PR3 6HB",Water Charges-Metered
Wyre Council,http://opendatacommunities.org/doc/district-council/wyre,29/04/2023,People and Places,Environmental Services,132B,WATER PLUS LTD,13/04/2023,PE148357,1.71,0,"Water Standing Charge Toilets, Teanlowe Centre, POULTON-LE-FYLDE, FY6 7DF",Water Charges-Metered
Wyre Council,http://opendatacommunities.org/doc/district-council/wyre,29/04/2023,People and Places,Support Services,135B,WATER PLUS LTD,13/04/2023,PE148357,7850.25,0,"Water Charge Wyre Civic Centre, Breck Road, POULTON-LE-FYLDE, FY6 7PU",Water Charges-Metered
Wyre Council,http://opendatacommunities.org/doc/district-council/wyre,29/04/2023,People and Places,Support Services,135B,WATER PLUS LTD,13/04/2023,PE148357,11.09,0,"Water Standing Charge Wyre Civic Centre, Breck Road, POULTON-LE-FYLDE,  FY6 7PU",Water Charges-Metered
Wyre Council,http://opendatacommunities.org/doc/district-council/wyre,29/04/2023,People and Places,Environmental Services,132B,WATER PLUS LTD,13/04/2023,PE148357,16.53,0,"Water Charge Cemetery &amp; Offices, Beach Road, FLEETWOOD, FY7 8PN",Water Charges-Metered
Wyre Council,http://opendatacommunities.org/doc/district-council/wyre,29/04/2023,People and Places,Environmental Services,132B,WATER PLUS LTD,13/04/2023,PE148357,9.67,0,"Water Charge Fleetwood Corporation Cemetery, Beach Road, FLEETWOOD, FY7  8PH",Water Charges-Metered
Wyre Council,http://opendatacommunities.org/doc/district-council/wyre,29/04/2023,People and Places,Environmental Services,132B,WATER PLUS LTD,13/04/2023,PE148357,1.71,0,"Water Standing Charge Cemetery &amp; Offices, Beach Road, FLEETWOOD, FY7  8PN",Water Charges-Metered
Wyre Council,http://opendatacommunities.org/doc/district-council/wyre,29/04/2023,People and Places,Environmental Services,132B,WATER PLUS LTD,13/04/2023,PE148357,4.72,0,"Water Standing Charge Fleetwood Corporation Cemetery, Beach Road,  FLEETWOOD, FY7 8PH",Water Charges-Metered
Wyre Council,http://opendatacommunities.org/doc/district-council/wyre,29/04/2023,People and Places,Environmental Services,132B,WATER PLUS LTD,13/04/2023,PE148357,7.96,0,"Water Charge Cemetery, Cemetery Lane, Preesall, POULTON LE FYLDE, FY6 0JA",Water Charges-Metered
Wyre Council,http://opendatacommunities.org/doc/district-council/wyre,29/04/2023,People and Places,Environmental Services,132B,WATER PLUS LTD,13/04/2023,PE148357,1.54,0,"Water Standing Charge Cemetery, Cemetery Lane, Preesall, POULTON LE  FYLDE, FY6 0JA",Water Charges-Metered
Wyre Council,http://opendatacommunities.org/doc/district-council/wyre,29/04/2023,People and Places,Environmental Services,132B,WATER PLUS LTD,13/04/2023,PE148357,16.53,0,"Water Charge Cemetery, Garstang Road East, POULTON LE FYLDE, FY6 8JH",Water Charges-Metered
Wyre Council,http://opendatacommunities.org/doc/district-council/wyre,29/04/2023,People and Places,Environmental Services,132B,WATER PLUS LTD,13/04/2023,PE148357,1.71,0,"Water Standing Charge Cemetery, Garstang Road East, POULTON LE FYLDE, FY6  8JH",Water Charges-Metered
Wyre Council,http://opendatacommunities.org/doc/district-council/wyre,29/04/2023,People and Places,Planning and Development Servs,132C,WATER PLUS LTD,13/04/2023,PE148357,2.82,0,"Water Charge Fleetwood Traditional Market, Adelaide Street, FLEETWOOD,  FY7 6AB",Water Charges-Metered
Wyre Council,http://opendatacommunities.org/doc/district-council/wyre,29/04/2023,People and Places,Planning and Development Servs,132C,WATER PLUS LTD,13/04/2023,PE148357,1.54,0,"Water Standing Charge Fleetwood Traditional Market, Adelaide Street,  FLEETWOOD, FY7 6AB",Water Charges-Metered
Wyre Council,http://opendatacommunities.org/doc/district-council/wyre,29/04/2023,People and Places,Central Services to the Public,131C,WATER PLUS LTD,13/04/2023,PE148357,69.65,0,"Water Charge Day Centre, Queensway, POULTON  LE FYLDE, FY6 7ST",Water Charges-Metered
Wyre Council,http://opendatacommunities.org/doc/district-council/wyre,29/04/2023,People and Places,Central Services to the Public,131C,WATER PLUS LTD,13/04/2023,PE148357,3.32,0,"Water Standing Charge Day Centre, Queensway, POULTON LE FYLDE, FY6 7ST",Water Charges-Metered
Wyre Council,http://opendatacommunities.org/doc/district-council/wyre,29/04/2023,People and Places,Cultural and Related Services,132A,WATER PLUS LTD,13/04/2023,PE148357,2.82,0,"Water Charge Changing Room King George V Pl, Fleetwood Road, FLEETWOOD,  FY7 8AS",Water Charges-Metered
Wyre Council,http://opendatacommunities.org/doc/district-council/wyre,29/04/2023,People and Places,Cultural and Related Services,132A,WATER PLUS LTD,13/04/2023,PE148357,1.71,0,"Water Standing Charge Changing Room King George V Pl, Fleetwood Road,  FLEETWOOD, FY7 8AS",Water Charges-Metered
Wyre Council,http://opendatacommunities.org/doc/district-council/wyre,29/04/2023,People and Places,Cultural and Related Services,132A,WATER PLUS LTD,13/04/2023,PE148357,19.96,0,"Water Charge Ashdell Nursery Bowling Green &amp; Pc`S, Victoria Road  East, THORNTON CLEVELEYS, FY5 3SZ",Water Charges-Metered
Wyre Council,http://opendatacommunities.org/doc/district-council/wyre,29/04/2023,People and Places,Cultural and Related Services,132A,WATER PLUS LTD,13/04/2023,PE148357,3.32,0,"Water Standing Charge Ashdell Nursery Bowling Green &amp; Pc`S, Victoria  Road East, THORNTON CLEVELEYS, FY5 3SZ",Water Charges-Metered
Wyre Council,http://opendatacommunities.org/doc/district-council/wyre,29/04/2023,People and Places,Cultural and Related Services,132A,WATER PLUS LTD,13/04/2023,PE148357,2468.17,0,"Water Charge Marine Gardens, The Esplanade, FLEETWOOD, FY7 6HE",Water Charges-Metered
Wyre Council,http://opendatacommunities.org/doc/district-council/wyre,29/04/2023,People and Places,Cultural and Related Services,132A,WATER PLUS LTD,13/04/2023,PE148357,367.09,0,"Water Charge Paddling Pool, Marine Gardens, FLEETWOOD, FY7 6HE",Water Charges-Metered
Wyre Council,http://opendatacommunities.org/doc/district-council/wyre,29/04/2023,People and Places,Cultural and Related Services,132A,WATER PLUS LTD,13/04/2023,PE148357,31.16,0,"Water Standing Charge Marine Gardens, The Esplanade, FLEETWOOD, FY7 6HE",Water Charges-Metered
Wyre Council,http://opendatacommunities.org/doc/district-council/wyre,29/04/2023,People and Places,Cultural and Related Services,132A,WATER PLUS LTD,13/04/2023,PE148357,4.72,0,"Water Standing Charge Paddling Pool, Marine Gardens, FLEETWOOD, FY7 6HE",Water Charges-Metered
Wyre Council,http://opendatacommunities.org/doc/district-council/wyre,29/04/2023,People and Places,Cultural and Related Services,132A,WATER PLUS LTD,13/04/2023,PE148357,27.4,0,"Water Charge Toilets, Warrenhurst Park, FLEETWOOD, FY7 6SH",Water Charges-Metered
Wyre Council,http://opendatacommunities.org/doc/district-council/wyre,29/04/2023,People and Places,Cultural and Related Services,132A,WATER PLUS LTD,13/04/2023,PE148357,28.67,0,"Water Standing Charge Toilets, Warrenhurst Park, FLEETWOOD, FY7 6SH",Water Charges-Metered
Wyre Council,http://opendatacommunities.org/doc/district-council/wyre,29/04/2023,People and Places,Cultural and Related Services,132A,WATER PLUS LTD,13/04/2023,PE148357,6.25,0,"Water Charge Nursery, Rutland Avenue, POULTON LE FYLDE, FY6 7SA",Water Charges-Metered
Wyre Council,http://opendatacommunities.org/doc/district-council/wyre,29/04/2023,People and Places,Cultural and Related Services,132A,WATER PLUS LTD,13/04/2023,PE148357,2.82,0,"Water Charge Standpipe, Allotments, Hargate Road, THORNTON CLEVELEYS, FY5  4PG",Water Charges-Metered
Wyre Council,http://opendatacommunities.org/doc/district-council/wyre,29/04/2023,People and Places,Cultural and Related Services,132A,WATER PLUS LTD,13/04/2023,PE148357,7.96,0,"Water Charge Supply To Allotments, Sandringham Avenue, THORNTON  CLEVELEYS, FY5 4LU",Water Charges-Metered
Wyre Council,http://opendatacommunities.org/doc/district-council/wyre,29/04/2023,People and Places,Cultural and Related Services,132A,WATER PLUS LTD,13/04/2023,PE148357,1.54,0,"Water Standing Charge Nursery, Rutland Avenue, POULTON LE FYLDE, FY6 7SA",Water Charges-Metered
Wyre Council,http://opendatacommunities.org/doc/district-council/wyre,29/04/2023,People and Places,Cultural and Related Services,132A,WATER PLUS LTD,13/04/2023,PE148357,1.71,0,"Water Standing Charge Standpipe, Allotments, Hargate Road, THORNTON  CLEVELEYS, FY5 4PG",Water Charges-Metered
Wyre Council,http://opendatacommunities.org/doc/district-council/wyre,29/04/2023,People and Places,Cultural and Related Services,132A,WATER PLUS LTD,13/04/2023,PE148357,3.32,0,"Water Standing Charge Supply To Allotments, Sandringham Avenue, THORNTON  CLEVELEYS, FY5 4LU",Water Charges-Metered
Wyre Council,http://opendatacommunities.org/doc/district-council/wyre,29/04/2023,People and Places,Cultural and Related Services,132A,WATER PLUS LTD,13/04/2023,PE148357,25.1,0,"Water Charge Rossall Point Outer Promenade, The Esplanade, Fleetwood, FY7  6DN",Water Charges-Metered
Wyre Council,http://opendatacommunities.org/doc/district-council/wyre,29/04/2023,People and Places,Cultural and Related Services,132A,WATER PLUS LTD,13/04/2023,PE148357,1.54,0,"Water Standing Charge Rossall Point Outer Promenade, The Esplanade,  Fleetwood, FY7 6DN",Water Charges-Metered
Wyre Council,http://opendatacommunities.org/doc/district-council/wyre,29/04/2023,People and Places,Cultural and Related Services,132A,WATER PLUS LTD,13/04/2023,PE148357,6.25,0,"Water Charge Mount Pavilion, The Esplanade, FLEETWOOD, FY7 6HF",Water Charges-Metered
Wyre Council,http://opendatacommunities.org/doc/district-council/wyre,29/04/2023,People and Places,Cultural and Related Services,132A,WATER PLUS LTD,13/04/2023,PE148357,3.32,0,"Water Standing Charge Mount Pavilion, The Esplanade, FLEETWOOD, FY7 6HF",Water Charges-Metered
Wyre Council,http://opendatacommunities.org/doc/district-council/wyre,29/04/2023,People and Places,Cultural and Related Services,132A,WATER PLUS LTD,13/04/2023,PE148357,13.1,0,"Water Charge Jean Stansfield Memorial Park, Vicarage Road, Knott  End-On-Sea, POULTON-LE-FYLDE, FY6 0BH",Water Charges-Metered
Wyre Council,http://opendatacommunities.org/doc/district-council/wyre,29/04/2023,People and Places,Cultural and Related Services,132A,WATER PLUS LTD,13/04/2023,PE148357,1.54,0,"Water Standing Charge Jean Stansfield Memorial Park, Vicarage Road, Knott  End-On-Sea, POULTON-LE-FYLDE, FY6 0BH",Water Charges-Metered
Wyre Council,http://opendatacommunities.org/doc/district-council/wyre,29/04/2023,People and Places,Planning and Development Servs,132C,WATER PLUS LTD,13/04/2023,PE148357,76.5,0,"Water Charge Highway Dept, Copse Road, FLEETWOOD, FY7 7HB",Water Charges-Metered
Wyre Council,http://opendatacommunities.org/doc/district-council/wyre,29/04/2023,People and Places,Planning and Development Servs,132C,WATER PLUS LTD,13/04/2023,PE148357,116.43,0,"Water Charge Swilling Bay, Copse Road, FLEETWOOD, FY7 7HB",Water Charges-Metered
Wyre Council,http://opendatacommunities.org/doc/district-council/wyre,29/04/2023,People and Places,Planning and Development Servs,132C,WATER PLUS LTD,13/04/2023,PE148357,7.27,0,"Water Standing Charge Highway Dept, Copse Road, FLEETWOOD, FY7 7HB",Water Charges-Metered
